Transaction Date,Local Authority Department,BENEFICIARY,Purpose,Amount,Non Recoverable,Merchant Category
01-11-2022,Housing Revenue Account,Juniper Ventures Ltd,Cleaning Services,8540.05,0,COMMERCIAL SUPPLIER
01-11-2022,Adults & Health,Voiceability,Private Contractors Payment - Other,15625,0,COMMERCIAL SUPPLIER
01-11-2022,Environment and Sustainable Transport,Project Centre Ltd,Consultancy Fees,1050,0,COMMERCIAL SUPPLIER
01-11-2022,Adults & Health,T J Building Services,Private Contractors Payment - Other,12823.6,0,VENDOR
01-11-2022,Adults & Health,Hospiva Care & Associates Agency Ltd,Home Care - Private Contractors Payment,18.72,0,COMMERCIAL SUPPLIER
01-11-2022,Adults & Health,Hospiva Care & Associates Agency Ltd,Home Care - Private Contractors Payment,18.72,0,COMMERCIAL SUPPLIER
01-11-2022,Adults & Health,Hospiva Care & Associates Agency Ltd,Home Care - Private Contractors Payment,687.96,0,COMMERCIAL SUPPLIER
01-11-2022,Adults & Health,Hospiva Care & Associates Agency Ltd,Home Care - Private Contractors Payment,18.72,0,COMMERCIAL SUPPLIER
01-11-2022,Adults & Health,Hospiva Care & Associates Agency Ltd,Home Care - Private Contractors Payment,18.72,0,COMMERCIAL SUPPLIER
01-11-2022,Adults & Health,Hospiva Care & Associates Agency Ltd,Home Care - Private Contractors Payment,18.72,0,COMMERCIAL SUPPLIER
01-11-2022,Adults & Health,Hospiva Care & Associates Agency Ltd,Home Care - Private Contractors Payment,18.72,0,COMMERCIAL SUPPLIER
01-11-2022,Adults & Health,Hospiva Care & Associates Agency Ltd,Home Care - Private Contractors Payment,229.32,0,COMMERCIAL SUPPLIER
01-11-2022,Adults & Health,Hospiva Care & Associates Agency Ltd,Home Care - Private Contractors Payment,229.32,0,COMMERCIAL SUPPLIER
01-11-2022,Adults & Health,Hospiva Care & Associates Agency Ltd,Home Care - Private Contractors Payment,229.32,0,COMMERCIAL SUPPLIER
01-11-2022,Adults & Health,Hospiva Care & Associates Agency Ltd,Home Care - Private Contractors Payment,229.32,0,COMMERCIAL SUPPLIER
01-11-2022,Marketing,The Pixel Parlour,Design And Photographic Costs,676.88,0,COMMERCIAL SUPPLIER
01-11-2022,Marketing,The Pixel Parlour,Design And Photographic Costs,890.63,0,COMMERCIAL SUPPLIER
01-11-2022,Inclusive Economy & Housing,Adam Khan Architects,"Maintenance - Equipment, Furniture And Materials",8526.5,0,COMMERCIAL SUPPLIER
01-11-2022,Adults & Health,Aevus Ltd t/a Home Instead,Home Care - Private Contractors Payment,598.5,0,INDIVIDUALS
01-11-2022,Adults & Health,Aevus Ltd t/a Home Instead,Home Care - Private Contractors Payment,598.5,0,INDIVIDUALS
01-11-2022,Adults & Health,Aevus Ltd t/a Home Instead,Home Care - Private Contractors Payment,598.5,0,INDIVIDUALS
01-11-2022,Adults & Health,Aevus Ltd t/a Home Instead,Home Care - Private Contractors Payment,484.5,0,INDIVIDUALS
01-11-2022,oneSource - Non Shared,Laker Bms,Building Alterations And Materials,295.77,0,CIS
01-11-2022,Adults & Health,Supply Chain Coordination Ltd (SCCL),Other Contributions & Reimbursements (Income),209,0,NHS BODIES
01-11-2022,oneSource,Daisy Corporate Services Trading Ltd,Land Line Telephone Costs,4944.31,0,COMMERCIAL SUPPLIER
01-11-2022,oneSource,Daisy Corporate Services Trading Ltd,Land Line Telephone Costs,2431.21,0,COMMERCIAL SUPPLIER
01-11-2022,Housing Revenue Account,Daisy Corporate Services Trading Ltd,Cyclical/Planned Maintenance - Mechanical And Electrical,321.95,0,COMMERCIAL SUPPLIER
01-11-2022,oneSource,Daisy Corporate Services Trading Ltd,Land Line Telephone Costs,14921.24,0,COMMERCIAL SUPPLIER
01-11-2022,Housing Revenue Account,Daisy Corporate Services Trading Ltd,Land Line Telephone Costs,827.19,0,COMMERCIAL SUPPLIER
01-11-2022,Housing Revenue Account,Daisy Corporate Services Trading Ltd,Land Line Telephone Costs,3388.81,0,COMMERCIAL SUPPLIER
01-11-2022,Dedicated Schools Budget,Personal Information - Redacted,Private Contractors Payment - Other,1424,0,COMMERCIAL SUPPLIER
01-11-2022,Dedicated Schools Budget,Jigsaw Occupational Therapy Ltd,Occupational Health,1873.25,0,COMMERCIAL SUPPLIER
01-11-2022,Children and Young People,Goldline Cars Ltd,Client Transport,1270,0,COMMERCIAL SUPPLIER
01-11-2022,Children and Young People,Goldline Cars Ltd,Client Transport,550,0,COMMERCIAL SUPPLIER
01-11-2022,Children and Young People,Goldline Cars Ltd,Client Transport,1166.4,0,COMMERCIAL SUPPLIER
01-11-2022,Children and Young People,Goldline Cars Ltd,Client Transport,1260,0,COMMERCIAL SUPPLIER
01-11-2022,Children and Young People,Goldline Cars Ltd,Client Transport,600,0,COMMERCIAL SUPPLIER
01-11-2022,Dedicated Schools Budget,Parayhouse School,Professional Services - General,6908.35,0,VOLUNTARY ORGANISATION
01-11-2022,Adults & Health,Christies Care Ltd,Home Care - Private Contractors Payment,1264.55,0,COMMERCIAL SUPPLIER
01-11-2022,Adults & Health,Christies Care Ltd,Home Care - Private Contractors Payment,1264.59,0,COMMERCIAL SUPPLIER
01-11-2022,Adults & Health,Christies Care Ltd,Home Care - Private Contractors Payment,1264.55,0,COMMERCIAL SUPPLIER
01-11-2022,Adults & Health,Christies Care Ltd,Home Care - Private Contractors Payment,1264.55,0,COMMERCIAL SUPPLIER
01-11-2022,Environment and Sustainable Transport,Tyndall Ltd,"Purchase - Equipment, Furniture And Materials",2067.1,0,COMMERCIAL SUPPLIER
01-11-2022,RMS,Master Locking Systems Ltd,Building Alterations And Materials,395.96,0,COMMERCIAL SUPPLIER
01-11-2022,RMS,Master Locking Systems Ltd,Building Alterations And Materials,55.94,0,COMMERCIAL SUPPLIER
01-11-2022,RMS,Master Locking Systems Ltd,Building Alterations And Materials,55.94,0,COMMERCIAL SUPPLIER
01-11-2022,RMS,Master Locking Systems Ltd,Building Alterations And Materials,55.94,0,COMMERCIAL SUPPLIER
01-11-2022,RMS,Master Locking Systems Ltd,Building Alterations And Materials,625.2,0,COMMERCIAL SUPPLIER
01-11-2022,Adults & Health,Avenue Property Construction Limited,Private Contractors Payment - Other,5837.75,0,CIS
01-11-2022,Inclusive Economy & Housing,Ealing Council,Ict Software,34000,0,LOCAL AUTHORITY SERVICES
01-11-2022,RMS,A M Forktrucks Ltd,Purchase Of Vehicles Related Costs,810.33,0,COMMERCIAL SUPPLIER
01-11-2022,RMS,A M Forktrucks Ltd,Purchase Of Vehicles Related Costs,433.33,0,COMMERCIAL SUPPLIER
01-11-2022,Housing Revenue Account,Mindme,"Purchase - Equipment, Furniture And Materials",6125,0,COMMERCIAL SUPPLIER
01-11-2022,Children and Young People,Newham Music Trust,Professional Services - General,6666,0,COMMERCIAL SUPPLIER
01-11-2022,Environment and Sustainable Transport,Motasoft Ltd,"Purchase - Equipment, Furniture And Materials",455.4,0,VENDOR
01-11-2022,Adults & Health,Public Health Action Support Team CIC,Payment To Health Authorities,45000,0,COMMERCIAL SUPPLIER
01-11-2022,Housing Revenue Account,Select Fire Services Ltd,Health And Safety Works,2775,0,COMMERCIAL SUPPLIER
01-11-2022,Children and Young People,Bindmans LLP,Legal Fees,2160,0,LEGAL SERVICES
01-11-2022,Housing Revenue Account,RGE Services Ltd,Cyclical/Planned Maintenance - Mechanical And Electrical,418.25,0,CIS
01-11-2022,Housing Revenue Account,In-Line Removal And Storage,Removal Services,630,0,VENDOR
01-11-2022,Adults & Health,Personal Information - Redacted,Consultancy Fees,2343,0,INDIVIDUALS
01-11-2022,Adults & Health,Rhythmic Care UK Ltd,Home Care - Private Contractors Payment,57.48,0,COMMERCIAL SUPPLIER
01-11-2022,Adults & Health,Rhythmic Care UK Ltd,Home Care - Private Contractors Payment,57.48,0,COMMERCIAL SUPPLIER
01-11-2022,Adults & Health,Rhythmic Care UK Ltd,Home Care - Private Contractors Payment,215.55,0,COMMERCIAL SUPPLIER
01-11-2022,Adults & Health,Rhythmic Care UK Ltd,Home Care - Private Contractors Payment,435.89,0,COMMERCIAL SUPPLIER
01-11-2022,Adults & Health,Rhythmic Care UK Ltd,Home Care - Private Contractors Payment,229.92,0,COMMERCIAL SUPPLIER
01-11-2022,Adults & Health,Rhythmic Care UK Ltd,Home Care - Private Contractors Payment,670.6,0,COMMERCIAL SUPPLIER
01-11-2022,Adults & Health,Rhythmic Care UK Ltd,Home Care - Private Contractors Payment,201.18,0,COMMERCIAL SUPPLIER
01-11-2022,Adults & Health,Rhythmic Care UK Ltd,Daycare - Private Contractors Payment,19.16,0,COMMERCIAL SUPPLIER
01-11-2022,Adults & Health,Rhythmic Care UK Ltd,Home Care - Private Contractors Payment,268.24,0,COMMERCIAL SUPPLIER
01-11-2022,Adults & Health,Rhythmic Care UK Ltd,Home Care - Private Contractors Payment,570.01,0,COMMERCIAL SUPPLIER
01-11-2022,Adults & Health,Rhythmic Care UK Ltd,Respite Care - Private Contractors Payment,57.48,0,COMMERCIAL SUPPLIER
01-11-2022,Adults & Health,Rhythmic Care UK Ltd,Home Care - Private Contractors Payment,234.71,0,COMMERCIAL SUPPLIER
01-11-2022,Adults & Health,Rhythmic Care UK Ltd,Home Care - Private Contractors Payment,95.8,0,COMMERCIAL SUPPLIER
01-11-2022,Adults & Health,Rhythmic Care UK Ltd,Home Care - Private Contractors Payment,679.31,0,COMMERCIAL SUPPLIER
01-11-2022,Adults & Health,Rhythmic Care UK Ltd,Home Care - Private Contractors Payment,19.16,0,COMMERCIAL SUPPLIER
01-11-2022,Adults & Health,Rhythmic Care UK Ltd,Home Care - Private Contractors Payment,19.16,0,COMMERCIAL SUPPLIER
01-11-2022,Adults & Health,Rhythmic Care UK Ltd,Home Care - Private Contractors Payment,100.59,0,COMMERCIAL SUPPLIER
01-11-2022,Adults & Health,Rhythmic Care UK Ltd,Home Care - Private Contractors Payment,469.42,0,COMMERCIAL SUPPLIER
01-11-2022,Adults & Health,Rhythmic Care UK Ltd,Daycare - Private Contractors Payment,67.06,0,COMMERCIAL SUPPLIER
01-11-2022,Adults & Health,Rhythmic Care UK Ltd,Home Care - Private Contractors Payment,19.16,0,COMMERCIAL SUPPLIER
01-11-2022,Adults & Health,Rhythmic Care UK Ltd,Home Care - Private Contractors Payment,234.71,0,COMMERCIAL SUPPLIER
01-11-2022,Adults & Health,Rhythmic Care UK Ltd,Daycare - Private Contractors Payment,38.32,0,COMMERCIAL SUPPLIER
01-11-2022,Adults & Health,Rhythmic Care UK Ltd,Home Care - Private Contractors Payment,234.71,0,COMMERCIAL SUPPLIER
01-11-2022,Adults & Health,Rhythmic Care UK Ltd,Home Care - Private Contractors Payment,100.59,0,COMMERCIAL SUPPLIER
01-11-2022,Adults & Health,Rhythmic Care UK Ltd,Home Care - Private Contractors Payment,536.48,0,COMMERCIAL SUPPLIER
01-11-2022,Adults & Health,Rhythmic Care UK Ltd,Daycare - Private Contractors Payment,555.64,0,COMMERCIAL SUPPLIER
01-11-2022,Adults & Health,Rhythmic Care UK Ltd,Home Care - Private Contractors Payment,536.48,0,COMMERCIAL SUPPLIER
01-11-2022,Adults & Health,Rhythmic Care UK Ltd,Home Care - Private Contractors Payment,570.01,0,COMMERCIAL SUPPLIER
01-11-2022,Adults & Health,Rhythmic Care UK Ltd,Home Care - Private Contractors Payment,167.65,0,COMMERCIAL SUPPLIER
01-11-2022,Adults & Health,Rhythmic Care UK Ltd,Home Care - Private Contractors Payment,167.65,0,COMMERCIAL SUPPLIER
01-11-2022,Adults & Health,Rhythmic Care UK Ltd,Home Care - Private Contractors Payment,201.18,0,COMMERCIAL SUPPLIER
01-11-2022,Adults & Health,Rhythmic Care UK Ltd,Home Care - Private Contractors Payment,234.71,0,COMMERCIAL SUPPLIER
01-11-2022,Adults & Health,Rhythmic Care UK Ltd,Home Care - Private Contractors Payment,201.18,0,COMMERCIAL SUPPLIER
01-11-2022,Adults & Health,Rhythmic Care UK Ltd,Home Care - Private Contractors Payment,234.71,0,COMMERCIAL SUPPLIER
01-11-2022,Adults & Health,Rhythmic Care UK Ltd,Home Care - Private Contractors Payment,234.71,0,COMMERCIAL SUPPLIER
01-11-2022,Adults & Health,Rhythmic Care UK Ltd,Respite Care - Private Contractors Payment,57.48,0,COMMERCIAL SUPPLIER
01-11-2022,Adults & Health,Rhythmic Care UK Ltd,Home Care - Private Contractors Payment,670.6,0,COMMERCIAL SUPPLIER
01-11-2022,Adults & Health,Rhythmic Care UK Ltd,Home Care - Private Contractors Payment,234.71,0,COMMERCIAL SUPPLIER
01-11-2022,Adults & Health,Rhythmic Care UK Ltd,Home Care - Private Contractors Payment,201.18,0,COMMERCIAL SUPPLIER
01-11-2022,Adults & Health,Rhythmic Care UK Ltd,Home Care - Private Contractors Payment,153.28,0,COMMERCIAL SUPPLIER
01-11-2022,Adults & Health,Rhythmic Care UK Ltd,Home Care - Private Contractors Payment,57.48,0,COMMERCIAL SUPPLIER
01-11-2022,Adults & Health,Rhythmic Care UK Ltd,Daycare - Private Contractors Payment,19.16,0,COMMERCIAL SUPPLIER
01-11-2022,Adults & Health,Rhythmic Care UK Ltd,Home Care - Private Contractors Payment,301.77,0,COMMERCIAL SUPPLIER
01-11-2022,Adults & Health,Rhythmic Care UK Ltd,Home Care - Private Contractors Payment,234.71,0,COMMERCIAL SUPPLIER
01-11-2022,Adults & Health,Rhythmic Care UK Ltd,Home Care - Private Contractors Payment,19.16,0,COMMERCIAL SUPPLIER
01-11-2022,Adults & Health,Rhythmic Care UK Ltd,Home Care - Private Contractors Payment,38.32,0,COMMERCIAL SUPPLIER
01-11-2022,Adults & Health,Rhythmic Care UK Ltd,Home Care - Private Contractors Payment,134.12,0,COMMERCIAL SUPPLIER
01-11-2022,Adults & Health,Rhythmic Care UK Ltd,Home Care - Private Contractors Payment,205.97,0,COMMERCIAL SUPPLIER
01-11-2022,Adults & Health,Rhythmic Care UK Ltd,Daycare - Private Contractors Payment,38.32,0,COMMERCIAL SUPPLIER
01-11-2022,Adults & Health,Rhythmic Care UK Ltd,Reablement,57.48,0,COMMERCIAL SUPPLIER
01-11-2022,Adults & Health,Rhythmic Care UK Ltd,Home Care - Private Contractors Payment,67.06,0,COMMERCIAL SUPPLIER
01-11-2022,Adults & Health,Rhythmic Care UK Ltd,Home Care - Private Contractors Payment,234.71,0,COMMERCIAL SUPPLIER
01-11-2022,Adults & Health,Rhythmic Care UK Ltd,Home Care - Private Contractors Payment,19.16,0,COMMERCIAL SUPPLIER
01-11-2022,Adults & Health,Rhythmic Care UK Ltd,Home Care - Private Contractors Payment,57.48,0,COMMERCIAL SUPPLIER
01-11-2022,Adults & Health,Rhythmic Care UK Ltd,Respite Care - Private Contractors Payment,57.48,0,COMMERCIAL SUPPLIER
01-11-2022,Adults & Health,Rhythmic Care UK Ltd,Home Care - Private Contractors Payment,19.16,0,COMMERCIAL SUPPLIER
01-11-2022,Adults & Health,Rhythmic Care UK Ltd,Home Care - Private Contractors Payment,43.11,0,COMMERCIAL SUPPLIER
01-11-2022,Adults & Health,Rhythmic Care UK Ltd,Daycare - Private Contractors Payment,19.16,0,COMMERCIAL SUPPLIER
01-11-2022,Adults & Health,Rhythmic Care UK Ltd,Home Care - Private Contractors Payment,804.72,0,COMMERCIAL SUPPLIER
01-11-2022,Adults & Health,Rhythmic Care UK Ltd,Respite Care - Private Contractors Payment,57.48,0,COMMERCIAL SUPPLIER
01-11-2022,Adults & Health,Rhythmic Care UK Ltd,Home Care - Private Contractors Payment,38.32,0,COMMERCIAL SUPPLIER
01-11-2022,Adults & Health,Rhythmic Care UK Ltd,Home Care - Private Contractors Payment,570.01,0,COMMERCIAL SUPPLIER
01-11-2022,Adults & Health,Rhythmic Care UK Ltd,Home Care - Private Contractors Payment,100.59,0,COMMERCIAL SUPPLIER
01-11-2022,Adults & Health,Rhythmic Care UK Ltd,Home Care - Private Contractors Payment,234.71,0,COMMERCIAL SUPPLIER
01-11-2022,Adults & Health,Rhythmic Care UK Ltd,Home Care - Private Contractors Payment,114.96,0,COMMERCIAL SUPPLIER
01-11-2022,Adults & Health,Rhythmic Care UK Ltd,Daycare - Private Contractors Payment,19.16,0,COMMERCIAL SUPPLIER
01-11-2022,Adults & Health,Rhythmic Care UK Ltd,Daycare - Private Contractors Payment,76.64,0,COMMERCIAL SUPPLIER
01-11-2022,Adults & Health,Rhythmic Care UK Ltd,Respite Care - Private Contractors Payment,38.32,0,COMMERCIAL SUPPLIER
01-11-2022,Adults & Health,Rhythmic Care UK Ltd,Home Care - Private Contractors Payment,258.66,0,COMMERCIAL SUPPLIER
01-11-2022,Adults & Health,Rhythmic Care UK Ltd,Home Care - Private Contractors Payment,301.77,0,COMMERCIAL SUPPLIER
01-11-2022,Adults & Health,Rhythmic Care UK Ltd,Home Care - Private Contractors Payment,19.16,0,COMMERCIAL SUPPLIER
01-11-2022,Adults & Health,Rhythmic Care UK Ltd,Home Care - Private Contractors Payment,301.77,0,COMMERCIAL SUPPLIER
01-11-2022,Adults & Health,Rhythmic Care UK Ltd,Home Care - Private Contractors Payment,38.32,0,COMMERCIAL SUPPLIER
01-11-2022,Adults & Health,Rhythmic Care UK Ltd,Home Care - Private Contractors Payment,335.3,0,COMMERCIAL SUPPLIER
01-11-2022,Adults & Health,Rhythmic Care UK Ltd,Home Care - Private Contractors Payment,38.32,0,COMMERCIAL SUPPLIER
01-11-2022,Adults & Health,Rhythmic Care UK Ltd,Home Care - Private Contractors Payment,167.65,0,COMMERCIAL SUPPLIER
01-11-2022,Adults & Health,Rhythmic Care UK Ltd,Home Care - Private Contractors Payment,23.95,0,COMMERCIAL SUPPLIER
01-11-2022,Adults & Health,Rhythmic Care UK Ltd,Daycare - Private Contractors Payment,28.74,0,COMMERCIAL SUPPLIER
01-11-2022,Adults & Health,Rhythmic Care UK Ltd,Daycare - Private Contractors Payment,28.74,0,COMMERCIAL SUPPLIER
01-11-2022,Adults & Health,Rhythmic Care UK Ltd,Home Care - Private Contractors Payment,201.18,0,COMMERCIAL SUPPLIER
01-11-2022,Adults & Health,Rhythmic Care UK Ltd,Home Care - Private Contractors Payment,201.18,0,COMMERCIAL SUPPLIER
01-11-2022,Adults & Health,Rhythmic Care UK Ltd,Home Care - Private Contractors Payment,95.8,0,COMMERCIAL SUPPLIER
01-11-2022,Adults & Health,Rhythmic Care UK Ltd,Daycare - Private Contractors Payment,38.32,0,COMMERCIAL SUPPLIER
01-11-2022,Adults & Health,Rhythmic Care UK Ltd,Respite Care - Private Contractors Payment,76.64,0,COMMERCIAL SUPPLIER
01-11-2022,Adults & Health,Rhythmic Care UK Ltd,Home Care - Private Contractors Payment,205.97,0,COMMERCIAL SUPPLIER
01-11-2022,Adults & Health,Rhythmic Care UK Ltd,Home Care - Private Contractors Payment,38.32,0,COMMERCIAL SUPPLIER
01-11-2022,Adults & Health,Rhythmic Care UK Ltd,Daycare - Private Contractors Payment,19.16,0,COMMERCIAL SUPPLIER
01-11-2022,Adults & Health,Rhythmic Care UK Ltd,Home Care - Private Contractors Payment,148.49,0,COMMERCIAL SUPPLIER
01-11-2022,Adults & Health,Rhythmic Care UK Ltd,Home Care - Private Contractors Payment,469.42,0,COMMERCIAL SUPPLIER
01-11-2022,Adults & Health,Rhythmic Care UK Ltd,Daycare - Private Contractors Payment,105.38,0,COMMERCIAL SUPPLIER
01-11-2022,Adults & Health,Rhythmic Care UK Ltd,Home Care - Private Contractors Payment,19.16,0,COMMERCIAL SUPPLIER
01-11-2022,Adults & Health,Rhythmic Care UK Ltd,Home Care - Private Contractors Payment,67.06,0,COMMERCIAL SUPPLIER
01-11-2022,Adults & Health,Rhythmic Care UK Ltd,Daycare - Private Contractors Payment,67.06,0,COMMERCIAL SUPPLIER
01-11-2022,Adults & Health,Rhythmic Care UK Ltd,Home Care - Private Contractors Payment,19.16,0,COMMERCIAL SUPPLIER
01-11-2022,Adults & Health,Rhythmic Care UK Ltd,Home Care - Private Contractors Payment,201.18,0,COMMERCIAL SUPPLIER
01-11-2022,Adults & Health,Rhythmic Care UK Ltd,Home Care - Private Contractors Payment,234.71,0,COMMERCIAL SUPPLIER
01-11-2022,Adults & Health,Rhythmic Care UK Ltd,Home Care - Private Contractors Payment,368.83,0,COMMERCIAL SUPPLIER
01-11-2022,Adults & Health,Rhythmic Care UK Ltd,Home Care - Private Contractors Payment,19.16,0,COMMERCIAL SUPPLIER
01-11-2022,Adults & Health,Rhythmic Care UK Ltd,Home Care - Private Contractors Payment,268.24,0,COMMERCIAL SUPPLIER
01-11-2022,Adults & Health,Rhythmic Care UK Ltd,Home Care - Private Contractors Payment,483.79,0,COMMERCIAL SUPPLIER
01-11-2022,Adults & Health,Rhythmic Care UK Ltd,Home Care - Private Contractors Payment,857.41,0,COMMERCIAL SUPPLIER
01-11-2022,Adults & Health,Rhythmic Care UK Ltd,Home Care - Private Contractors Payment,100.59,0,COMMERCIAL SUPPLIER
01-11-2022,Adults & Health,Rhythmic Care UK Ltd,Home Care - Private Contractors Payment,229.92,0,COMMERCIAL SUPPLIER
01-11-2022,Adults & Health,Rhythmic Care UK Ltd,Home Care - Private Contractors Payment,167.65,0,COMMERCIAL SUPPLIER
01-11-2022,Adults & Health,Rhythmic Care UK Ltd,Home Care - Private Contractors Payment,234.71,0,COMMERCIAL SUPPLIER
01-11-2022,Adults & Health,Rhythmic Care UK Ltd,Home Care - Private Contractors Payment,28.74,0,COMMERCIAL SUPPLIER
01-11-2022,Adults & Health,Rhythmic Care UK Ltd,Daycare - Private Contractors Payment,91.01,0,COMMERCIAL SUPPLIER
01-11-2022,Adults & Health,Rhythmic Care UK Ltd,Daycare - Private Contractors Payment,38.32,0,COMMERCIAL SUPPLIER
01-11-2022,Adults & Health,Rhythmic Care UK Ltd,Daycare - Private Contractors Payment,158.07,0,COMMERCIAL SUPPLIER
01-11-2022,Adults & Health,Rhythmic Care UK Ltd,Home Care - Private Contractors Payment,670.6,0,COMMERCIAL SUPPLIER
01-11-2022,Adults & Health,Rhythmic Care UK Ltd,Home Care - Private Contractors Payment,67.06,0,COMMERCIAL SUPPLIER
01-11-2022,Adults & Health,Rhythmic Care UK Ltd,Home Care - Private Contractors Payment,670.6,0,COMMERCIAL SUPPLIER
01-11-2022,Adults & Health,Rhythmic Care UK Ltd,Home Care - Private Contractors Payment,335.3,0,COMMERCIAL SUPPLIER
01-11-2022,Adults & Health,Rhythmic Care UK Ltd,Home Care - Private Contractors Payment,38.32,0,COMMERCIAL SUPPLIER
01-11-2022,Adults & Health,Rhythmic Care UK Ltd,Home Care - Private Contractors Payment,134.12,0,COMMERCIAL SUPPLIER
01-11-2022,Adults & Health,Rhythmic Care UK Ltd,Home Care - Private Contractors Payment,19.16,0,COMMERCIAL SUPPLIER
01-11-2022,Adults & Health,Rhythmic Care UK Ltd,Home Care - Private Contractors Payment,38.32,0,COMMERCIAL SUPPLIER
01-11-2022,Adults & Health,Rhythmic Care UK Ltd,Home Care - Private Contractors Payment,234.71,0,COMMERCIAL SUPPLIER
01-11-2022,Adults & Health,Rhythmic Care UK Ltd,Daycare - Private Contractors Payment,555.64,0,COMMERCIAL SUPPLIER
01-11-2022,Adults & Health,Rhythmic Care UK Ltd,Daycare - Private Contractors Payment,19.16,0,COMMERCIAL SUPPLIER
01-11-2022,Adults & Health,Rhythmic Care UK Ltd,Home Care - Private Contractors Payment,134.12,0,COMMERCIAL SUPPLIER
01-11-2022,Adults & Health,Rhythmic Care UK Ltd,Home Care - Private Contractors Payment,201.18,0,COMMERCIAL SUPPLIER
01-11-2022,Adults & Health,Rhythmic Care UK Ltd,Home Care - Private Contractors Payment,67.06,0,COMMERCIAL SUPPLIER
01-11-2022,Adults & Health,Rhythmic Care UK Ltd,Daycare - Private Contractors Payment,28.74,0,COMMERCIAL SUPPLIER
01-11-2022,Adults & Health,Rhythmic Care UK Ltd,Home Care - Private Contractors Payment,201.18,0,COMMERCIAL SUPPLIER
01-11-2022,Adults & Health,Rhythmic Care UK Ltd,Daycare - Private Contractors Payment,19.16,0,COMMERCIAL SUPPLIER
01-11-2022,Adults & Health,Rhythmic Care UK Ltd,Home Care - Private Contractors Payment,215.55,0,COMMERCIAL SUPPLIER
01-11-2022,Adults & Health,Rhythmic Care UK Ltd,Respite Care - Private Contractors Payment,38.32,0,COMMERCIAL SUPPLIER
01-11-2022,Adults & Health,Rhythmic Care UK Ltd,Home Care - Private Contractors Payment,536.48,0,COMMERCIAL SUPPLIER
01-11-2022,Adults & Health,Rhythmic Care UK Ltd,Home Care - Private Contractors Payment,14.37,0,COMMERCIAL SUPPLIER
01-11-2022,Adults & Health,Rhythmic Care UK Ltd,Home Care - Private Contractors Payment,14.37,0,COMMERCIAL SUPPLIER
01-11-2022,Adults & Health,Rhythmic Care UK Ltd,Home Care - Private Contractors Payment,167.65,0,COMMERCIAL SUPPLIER
01-11-2022,Adults & Health,Rhythmic Care UK Ltd,Home Care - Private Contractors Payment,167.65,0,COMMERCIAL SUPPLIER
01-11-2022,Adults & Health,Rhythmic Care UK Ltd,Home Care - Private Contractors Payment,570.01,0,COMMERCIAL SUPPLIER
01-11-2022,Adults & Health,Rhythmic Care UK Ltd,Home Care - Private Contractors Payment,114.96,0,COMMERCIAL SUPPLIER
01-11-2022,Adults & Health,Rhythmic Care UK Ltd,Home Care - Private Contractors Payment,301.77,0,COMMERCIAL SUPPLIER
01-11-2022,Adults & Health,Rhythmic Care UK Ltd,Home Care - Private Contractors Payment,282.61,0,COMMERCIAL SUPPLIER
01-11-2022,Adults & Health,Rhythmic Care UK Ltd,Home Care - Private Contractors Payment,268.24,0,COMMERCIAL SUPPLIER
01-11-2022,Adults & Health,Rhythmic Care UK Ltd,Home Care - Private Contractors Payment,205.97,0,COMMERCIAL SUPPLIER
01-11-2022,Adults & Health,Rhythmic Care UK Ltd,Home Care - Private Contractors Payment,167.65,0,COMMERCIAL SUPPLIER
01-11-2022,Adults & Health,Rhythmic Care UK Ltd,Home Care - Private Contractors Payment,637.07,0,COMMERCIAL SUPPLIER
01-11-2022,Adults & Health,Rhythmic Care UK Ltd,Home Care - Private Contractors Payment,316.14,0,COMMERCIAL SUPPLIER
01-11-2022,Adults & Health,Rhythmic Care UK Ltd,Home Care - Private Contractors Payment,114.96,0,COMMERCIAL SUPPLIER
01-11-2022,Adults & Health,Rhythmic Care UK Ltd,Home Care - Private Contractors Payment,234.71,0,COMMERCIAL SUPPLIER
01-11-2022,Adults & Health,Rhythmic Care UK Ltd,Home Care - Private Contractors Payment,19.16,0,COMMERCIAL SUPPLIER
01-11-2022,Adults & Health,Rhythmic Care UK Ltd,Home Care - Private Contractors Payment,105.38,0,COMMERCIAL SUPPLIER
01-11-2022,Adults & Health,Rhythmic Care UK Ltd,Daycare - Private Contractors Payment,19.16,0,COMMERCIAL SUPPLIER
01-11-2022,Adults & Health,Rhythmic Care UK Ltd,Home Care - Private Contractors Payment,191.6,0,COMMERCIAL SUPPLIER
01-11-2022,Adults & Health,Rhythmic Care UK Ltd,Home Care - Private Contractors Payment,411.94,0,COMMERCIAL SUPPLIER
01-11-2022,Adults & Health,Rhythmic Care UK Ltd,Home Care - Private Contractors Payment,670.6,0,COMMERCIAL SUPPLIER
01-11-2022,Adults & Health,Rhythmic Care UK Ltd,Home Care - Private Contractors Payment,301.77,0,COMMERCIAL SUPPLIER
01-11-2022,Adults & Health,Rhythmic Care UK Ltd,Home Care - Private Contractors Payment,167.65,0,COMMERCIAL SUPPLIER
01-11-2022,Adults & Health,Rhythmic Care UK Ltd,Daycare - Private Contractors Payment,47.9,0,COMMERCIAL SUPPLIER
01-11-2022,Adults & Health,Rhythmic Care UK Ltd,Home Care - Private Contractors Payment,201.18,0,COMMERCIAL SUPPLIER
01-11-2022,Adults & Health,Rhythmic Care UK Ltd,Home Care - Private Contractors Payment,134.12,0,COMMERCIAL SUPPLIER
01-11-2022,Adults & Health,Rhythmic Care UK Ltd,Home Care - Private Contractors Payment,19.16,0,COMMERCIAL SUPPLIER
01-11-2022,Adults & Health,Rhythmic Care UK Ltd,Home Care - Private Contractors Payment,19.16,0,COMMERCIAL SUPPLIER
01-11-2022,Adults & Health,Rhythmic Care UK Ltd,Home Care - Private Contractors Payment,71.85,0,COMMERCIAL SUPPLIER
01-11-2022,Adults & Health,Rhythmic Care UK Ltd,Home Care - Private Contractors Payment,19.16,0,COMMERCIAL SUPPLIER
01-11-2022,Adults & Health,Rhythmic Care UK Ltd,Daycare - Private Contractors Payment,28.74,0,COMMERCIAL SUPPLIER
01-11-2022,Adults & Health,Rhythmic Care UK Ltd,Home Care - Private Contractors Payment,325.72,0,COMMERCIAL SUPPLIER
01-11-2022,Adults & Health,Rhythmic Care UK Ltd,Home Care - Private Contractors Payment,536.48,0,COMMERCIAL SUPPLIER
01-11-2022,Adults & Health,Rhythmic Care UK Ltd,Daycare - Private Contractors Payment,76.64,0,COMMERCIAL SUPPLIER
01-11-2022,Adults & Health,Rhythmic Care UK Ltd,Home Care - Private Contractors Payment,335.3,0,COMMERCIAL SUPPLIER
01-11-2022,Adults & Health,Rhythmic Care UK Ltd,Home Care - Private Contractors Payment,234.71,0,COMMERCIAL SUPPLIER
01-11-2022,Adults & Health,Rhythmic Care UK Ltd,Home Care - Private Contractors Payment,167.65,0,COMMERCIAL SUPPLIER
01-11-2022,Adults & Health,Rhythmic Care UK Ltd,Respite Care - Private Contractors Payment,57.48,0,COMMERCIAL SUPPLIER
01-11-2022,Adults & Health,Rhythmic Care UK Ltd,Home Care - Private Contractors Payment,536.48,0,COMMERCIAL SUPPLIER
01-11-2022,Adults & Health,Rhythmic Care UK Ltd,Home Care - Private Contractors Payment,38.32,0,COMMERCIAL SUPPLIER
01-11-2022,Adults & Health,Rhythmic Care UK Ltd,Daycare - Private Contractors Payment,38.32,0,COMMERCIAL SUPPLIER
01-11-2022,Adults & Health,Rhythmic Care UK Ltd,Home Care - Private Contractors Payment,268.24,0,COMMERCIAL SUPPLIER
01-11-2022,Adults & Health,Rhythmic Care UK Ltd,Daycare - Private Contractors Payment,76.64,0,COMMERCIAL SUPPLIER
01-11-2022,Adults & Health,Rhythmic Care UK Ltd,Home Care - Private Contractors Payment,134.12,0,COMMERCIAL SUPPLIER
01-11-2022,Adults & Health,Rhythmic Care UK Ltd,Daycare - Private Contractors Payment,28.74,0,COMMERCIAL SUPPLIER
01-11-2022,Adults & Health,Rhythmic Care UK Ltd,Daycare - Private Contractors Payment,28.74,0,COMMERCIAL SUPPLIER
01-11-2022,Adults & Health,Rhythmic Care UK Ltd,Home Care - Private Contractors Payment,57.48,0,COMMERCIAL SUPPLIER
01-11-2022,Adults & Health,Rhythmic Care UK Ltd,Home Care - Private Contractors Payment,172.44,0,COMMERCIAL SUPPLIER
01-11-2022,Adults & Health,Rhythmic Care UK Ltd,Home Care - Private Contractors Payment,19.16,0,COMMERCIAL SUPPLIER
01-11-2022,Adults & Health,Rhythmic Care UK Ltd,Home Care - Private Contractors Payment,19.16,0,COMMERCIAL SUPPLIER
01-11-2022,Adults & Health,Rhythmic Care UK Ltd,Home Care - Private Contractors Payment,19.16,0,COMMERCIAL SUPPLIER
01-11-2022,Adults & Health,Rhythmic Care UK Ltd,Home Care - Private Contractors Payment,114.96,0,COMMERCIAL SUPPLIER
01-11-2022,Adults & Health,Rhythmic Care UK Ltd,Home Care - Private Contractors Payment,316.14,0,COMMERCIAL SUPPLIER
01-11-2022,Adults & Health,Rhythmic Care UK Ltd,Home Care - Private Contractors Payment,57.48,0,COMMERCIAL SUPPLIER
01-11-2022,Adults & Health,Rhythmic Care UK Ltd,Home Care - Private Contractors Payment,43.11,0,COMMERCIAL SUPPLIER
01-11-2022,Adults & Health,Rhythmic Care UK Ltd,Home Care - Private Contractors Payment,771.19,0,COMMERCIAL SUPPLIER
01-11-2022,Adults & Health,Rhythmic Care UK Ltd,Home Care - Private Contractors Payment,19.16,0,COMMERCIAL SUPPLIER
01-11-2022,Adults & Health,Rhythmic Care UK Ltd,Home Care - Private Contractors Payment,134.12,0,COMMERCIAL SUPPLIER
01-11-2022,Adults & Health,Rhythmic Care UK Ltd,Home Care - Private Contractors Payment,201.18,0,COMMERCIAL SUPPLIER
01-11-2022,Adults & Health,Rhythmic Care UK Ltd,Home Care - Private Contractors Payment,57.48,0,COMMERCIAL SUPPLIER
01-11-2022,Adults & Health,Rhythmic Care UK Ltd,Home Care - Private Contractors Payment,177.23,0,COMMERCIAL SUPPLIER
01-11-2022,Adults & Health,Rhythmic Care UK Ltd,Home Care - Private Contractors Payment,134.12,0,COMMERCIAL SUPPLIER
01-11-2022,Adults & Health,Rhythmic Care UK Ltd,Daycare - Private Contractors Payment,38.32,0,COMMERCIAL SUPPLIER
01-11-2022,Adults & Health,Rhythmic Care UK Ltd,Home Care - Private Contractors Payment,67.06,0,COMMERCIAL SUPPLIER
01-11-2022,Adults & Health,Rhythmic Care UK Ltd,Home Care - Private Contractors Payment,268.24,0,COMMERCIAL SUPPLIER
01-11-2022,Adults & Health,Rhythmic Care UK Ltd,Daycare - Private Contractors Payment,134.12,0,COMMERCIAL SUPPLIER
01-11-2022,Adults & Health,Rhythmic Care UK Ltd,Home Care - Private Contractors Payment,143.7,0,COMMERCIAL SUPPLIER
01-11-2022,Adults & Health,Rhythmic Care UK Ltd,Daycare - Private Contractors Payment,38.32,0,COMMERCIAL SUPPLIER
01-11-2022,Adults & Health,Rhythmic Care UK Ltd,Daycare - Private Contractors Payment,57.48,0,COMMERCIAL SUPPLIER
01-11-2022,Adults & Health,Rhythmic Care UK Ltd,Home Care - Private Contractors Payment,536.48,0,COMMERCIAL SUPPLIER
01-11-2022,Adults & Health,Rhythmic Care UK Ltd,Daycare - Private Contractors Payment,19.16,0,COMMERCIAL SUPPLIER
01-11-2022,Adults & Health,Rhythmic Care UK Ltd,Home Care - Private Contractors Payment,234.71,0,COMMERCIAL SUPPLIER
01-11-2022,Adults & Health,Rhythmic Care UK Ltd,Respite Care - Private Contractors Payment,76.64,0,COMMERCIAL SUPPLIER
01-11-2022,Adults & Health,Rhythmic Care UK Ltd,Respite Care - Private Contractors Payment,67.06,0,COMMERCIAL SUPPLIER
01-11-2022,Adults & Health,Rhythmic Care UK Ltd,Home Care - Private Contractors Payment,67.06,0,COMMERCIAL SUPPLIER
01-11-2022,Adults & Health,Rhythmic Care UK Ltd,Daycare - Private Contractors Payment,57.48,0,COMMERCIAL SUPPLIER
01-11-2022,Adults & Health,Rhythmic Care UK Ltd,Home Care - Private Contractors Payment,47.9,0,COMMERCIAL SUPPLIER
01-11-2022,Adults & Health,Rhythmic Care UK Ltd,Home Care - Private Contractors Payment,201.18,0,COMMERCIAL SUPPLIER
01-11-2022,Adults & Health,Rhythmic Care UK Ltd,Daycare - Private Contractors Payment,76.64,0,COMMERCIAL SUPPLIER
01-11-2022,Adults & Health,Rhythmic Care UK Ltd,Home Care - Private Contractors Payment,28.74,0,COMMERCIAL SUPPLIER
01-11-2022,Adults & Health,Rhythmic Care UK Ltd,Home Care - Private Contractors Payment,38.32,0,COMMERCIAL SUPPLIER
01-11-2022,Adults & Health,Rhythmic Care UK Ltd,Home Care - Private Contractors Payment,19.16,0,COMMERCIAL SUPPLIER
01-11-2022,Adults & Health,Rhythmic Care UK Ltd,Home Care - Private Contractors Payment,100.59,0,COMMERCIAL SUPPLIER
01-11-2022,Adults & Health,Rhythmic Care UK Ltd,Home Care - Private Contractors Payment,301.77,0,COMMERCIAL SUPPLIER
01-11-2022,Adults & Health,Rhythmic Care UK Ltd,Home Care - Private Contractors Payment,234.71,0,COMMERCIAL SUPPLIER
01-11-2022,Adults & Health,Rhythmic Care UK Ltd,Home Care - Private Contractors Payment,14.37,0,COMMERCIAL SUPPLIER
01-11-2022,Adults & Health,Rhythmic Care UK Ltd,Home Care - Private Contractors Payment,167.65,0,COMMERCIAL SUPPLIER
01-11-2022,Adults & Health,Rhythmic Care UK Ltd,Daycare - Private Contractors Payment,19.16,0,COMMERCIAL SUPPLIER
01-11-2022,Adults & Health,Rhythmic Care UK Ltd,Home Care - Private Contractors Payment,43.11,0,COMMERCIAL SUPPLIER
01-11-2022,Adults & Health,Rhythmic Care UK Ltd,Home Care - Private Contractors Payment,57.48,0,COMMERCIAL SUPPLIER
01-11-2022,Adults & Health,Rhythmic Care UK Ltd,Home Care - Private Contractors Payment,570.01,0,COMMERCIAL SUPPLIER
01-11-2022,Adults & Health,Rhythmic Care UK Ltd,Home Care - Private Contractors Payment,143.7,0,COMMERCIAL SUPPLIER
01-11-2022,Adults & Health,Rhythmic Care UK Ltd,Home Care - Private Contractors Payment,167.65,0,COMMERCIAL SUPPLIER
01-11-2022,Adults & Health,Rhythmic Care UK Ltd,Home Care - Private Contractors Payment,301.77,0,COMMERCIAL SUPPLIER
01-11-2022,Adults & Health,Rhythmic Care UK Ltd,Daycare - Private Contractors Payment,95.8,0,COMMERCIAL SUPPLIER
01-11-2022,Adults & Health,Rhythmic Care UK Ltd,Home Care - Private Contractors Payment,134.12,0,COMMERCIAL SUPPLIER
01-11-2022,Adults & Health,Rhythmic Care UK Ltd,Home Care - Private Contractors Payment,263.45,0,COMMERCIAL SUPPLIER
01-11-2022,Adults & Health,Rhythmic Care UK Ltd,Daycare - Private Contractors Payment,57.48,0,COMMERCIAL SUPPLIER
01-11-2022,Adults & Health,Rhythmic Care UK Ltd,Daycare - Private Contractors Payment,57.48,0,COMMERCIAL SUPPLIER
01-11-2022,Adults & Health,Rhythmic Care UK Ltd,Daycare - Private Contractors Payment,344.88,0,COMMERCIAL SUPPLIER
01-11-2022,Adults & Health,Rhythmic Care UK Ltd,Home Care - Private Contractors Payment,469.42,0,COMMERCIAL SUPPLIER
01-11-2022,Adults & Health,Rhythmic Care UK Ltd,Home Care - Private Contractors Payment,167.65,0,COMMERCIAL SUPPLIER
01-11-2022,Adults & Health,Rhythmic Care UK Ltd,Home Care - Private Contractors Payment,234.71,0,COMMERCIAL SUPPLIER
01-11-2022,Adults & Health,Rhythmic Care UK Ltd,Home Care - Private Contractors Payment,234.71,0,COMMERCIAL SUPPLIER
01-11-2022,Adults & Health,Rhythmic Care UK Ltd,Home Care - Private Contractors Payment,19.16,0,COMMERCIAL SUPPLIER
01-11-2022,Adults & Health,Rhythmic Care UK Ltd,Home Care - Private Contractors Payment,201.18,0,COMMERCIAL SUPPLIER
01-11-2022,Adults & Health,Rhythmic Care UK Ltd,Home Care - Private Contractors Payment,76.64,0,COMMERCIAL SUPPLIER
01-11-2022,Adults & Health,Rhythmic Care UK Ltd,Home Care - Private Contractors Payment,67.06,0,COMMERCIAL SUPPLIER
01-11-2022,Adults & Health,Rhythmic Care UK Ltd,Home Care - Private Contractors Payment,95.8,0,COMMERCIAL SUPPLIER
01-11-2022,Adults & Health,Rhythmic Care UK Ltd,Daycare - Private Contractors Payment,158.07,0,COMMERCIAL SUPPLIER
01-11-2022,Adults & Health,Rhythmic Care UK Ltd,Home Care - Private Contractors Payment,47.9,0,COMMERCIAL SUPPLIER
01-11-2022,Adults & Health,Rhythmic Care UK Ltd,Home Care - Private Contractors Payment,670.6,0,COMMERCIAL SUPPLIER
01-11-2022,Adults & Health,Rhythmic Care UK Ltd,Home Care - Private Contractors Payment,570.01,0,COMMERCIAL SUPPLIER
01-11-2022,Adults & Health,Rhythmic Care UK Ltd,Home Care - Private Contractors Payment,19.16,0,COMMERCIAL SUPPLIER
01-11-2022,Adults & Health,Rhythmic Care UK Ltd,Daycare - Private Contractors Payment,134.12,0,COMMERCIAL SUPPLIER
01-11-2022,Adults & Health,Rhythmic Care UK Ltd,Daycare - Private Contractors Payment,95.8,0,COMMERCIAL SUPPLIER
01-11-2022,Adults & Health,Rhythmic Care UK Ltd,Home Care - Private Contractors Payment,368.83,0,COMMERCIAL SUPPLIER
01-11-2022,Adults & Health,Rhythmic Care UK Ltd,Home Care - Private Contractors Payment,301.77,0,COMMERCIAL SUPPLIER
01-11-2022,Adults & Health,Rhythmic Care UK Ltd,Home Care - Private Contractors Payment,670.6,0,COMMERCIAL SUPPLIER
01-11-2022,Adults & Health,Rhythmic Care UK Ltd,Home Care - Private Contractors Payment,134.12,0,COMMERCIAL SUPPLIER
01-11-2022,Adults & Health,Rhythmic Care UK Ltd,Home Care - Private Contractors Payment,234.71,0,COMMERCIAL SUPPLIER
01-11-2022,Adults & Health,Rhythmic Care UK Ltd,Home Care - Private Contractors Payment,57.48,0,COMMERCIAL SUPPLIER
01-11-2022,Adults & Health,Rhythmic Care UK Ltd,Home Care - Private Contractors Payment,301.77,0,COMMERCIAL SUPPLIER
01-11-2022,Adults & Health,Rhythmic Care UK Ltd,Home Care - Private Contractors Payment,38.32,0,COMMERCIAL SUPPLIER
01-11-2022,Adults & Health,Rhythmic Care UK Ltd,Home Care - Private Contractors Payment,234.71,0,COMMERCIAL SUPPLIER
01-11-2022,Adults & Health,Rhythmic Care UK Ltd,Home Care - Private Contractors Payment,229.92,0,COMMERCIAL SUPPLIER
01-11-2022,Adults & Health,Rhythmic Care UK Ltd,Home Care - Private Contractors Payment,201.18,0,COMMERCIAL SUPPLIER
01-11-2022,Adults & Health,Rhythmic Care UK Ltd,Home Care - Private Contractors Payment,86.22,0,COMMERCIAL SUPPLIER
01-11-2022,Adults & Health,Rhythmic Care UK Ltd,Home Care - Private Contractors Payment,19.16,0,COMMERCIAL SUPPLIER
01-11-2022,Adults & Health,Rhythmic Care UK Ltd,Home Care - Private Contractors Payment,47.9,0,COMMERCIAL SUPPLIER
01-11-2022,Adults & Health,Rhythmic Care UK Ltd,Home Care - Private Contractors Payment,19.16,0,COMMERCIAL SUPPLIER
01-11-2022,Adults & Health,Rhythmic Care UK Ltd,Home Care - Private Contractors Payment,33.53,0,COMMERCIAL SUPPLIER
01-11-2022,Adults & Health,Rhythmic Care UK Ltd,Home Care - Private Contractors Payment,201.18,0,COMMERCIAL SUPPLIER
01-11-2022,Adults & Health,Rhythmic Care UK Ltd,Respite Care - Private Contractors Payment,38.32,0,COMMERCIAL SUPPLIER
01-11-2022,Adults & Health,Rhythmic Care UK Ltd,Home Care - Private Contractors Payment,536.48,0,COMMERCIAL SUPPLIER
01-11-2022,Adults & Health,Rhythmic Care UK Ltd,Home Care - Private Contractors Payment,449.28,0,COMMERCIAL SUPPLIER
01-11-2022,Adults & Health,Rhythmic Care UK Ltd,Respite Care - Private Contractors Payment,57.48,0,COMMERCIAL SUPPLIER
01-11-2022,Adults & Health,Rhythmic Care UK Ltd,Home Care - Private Contractors Payment,570.01,0,COMMERCIAL SUPPLIER
01-11-2022,Adults & Health,Rhythmic Care UK Ltd,Home Care - Private Contractors Payment,57.48,0,COMMERCIAL SUPPLIER
01-11-2022,Adults & Health,Rhythmic Care UK Ltd,Home Care - Private Contractors Payment,38.32,0,COMMERCIAL SUPPLIER
01-11-2022,Adults & Health,Rhythmic Care UK Ltd,Home Care - Private Contractors Payment,19.16,0,COMMERCIAL SUPPLIER
01-11-2022,Adults & Health,Rhythmic Care UK Ltd,Home Care - Private Contractors Payment,153.28,0,COMMERCIAL SUPPLIER
01-11-2022,Adults & Health,Rhythmic Care UK Ltd,Home Care - Private Contractors Payment,201.18,0,COMMERCIAL SUPPLIER
01-11-2022,Adults & Health,Rhythmic Care UK Ltd,Home Care - Private Contractors Payment,843.04,0,COMMERCIAL SUPPLIER
01-11-2022,Adults & Health,Rhythmic Care UK Ltd,Home Care - Private Contractors Payment,43.11,0,COMMERCIAL SUPPLIER
01-11-2022,Adults & Health,Rhythmic Care UK Ltd,Daycare - Private Contractors Payment,19.16,0,COMMERCIAL SUPPLIER
01-11-2022,Adults & Health,Rhythmic Care UK Ltd,Home Care - Private Contractors Payment,134.12,0,COMMERCIAL SUPPLIER
01-11-2022,Adults & Health,Rhythmic Care UK Ltd,Home Care - Private Contractors Payment,570.01,0,COMMERCIAL SUPPLIER
01-11-2022,Adults & Health,Rhythmic Care UK Ltd,Daycare - Private Contractors Payment,38.32,0,COMMERCIAL SUPPLIER
01-11-2022,Adults & Health,Rhythmic Care UK Ltd,Daycare - Private Contractors Payment,38.32,0,COMMERCIAL SUPPLIER
01-11-2022,Adults & Health,Rhythmic Care UK Ltd,Home Care - Private Contractors Payment,38.32,0,COMMERCIAL SUPPLIER
01-11-2022,Adults & Health,Rhythmic Care UK Ltd,Home Care - Private Contractors Payment,19.16,0,COMMERCIAL SUPPLIER
01-11-2022,Adults & Health,Rhythmic Care UK Ltd,Respite Care - Private Contractors Payment,38.32,0,COMMERCIAL SUPPLIER
01-11-2022,Adults & Health,Rhythmic Care UK Ltd,Home Care - Private Contractors Payment,28.74,0,COMMERCIAL SUPPLIER
01-11-2022,Adults & Health,Rhythmic Care UK Ltd,Home Care - Private Contractors Payment,368.83,0,COMMERCIAL SUPPLIER
01-11-2022,Adults & Health,Rhythmic Care UK Ltd,Home Care - Private Contractors Payment,43.11,0,COMMERCIAL SUPPLIER
01-11-2022,Adults & Health,Rhythmic Care UK Ltd,Home Care - Private Contractors Payment,38.32,0,COMMERCIAL SUPPLIER
01-11-2022,Adults & Health,Rhythmic Care UK Ltd,Home Care - Private Contractors Payment,234.71,0,COMMERCIAL SUPPLIER
01-11-2022,Adults & Health,Rhythmic Care UK Ltd,Home Care - Private Contractors Payment,205.97,0,COMMERCIAL SUPPLIER
01-11-2022,Adults & Health,Rhythmic Care UK Ltd,Daycare - Private Contractors Payment,95.8,0,COMMERCIAL SUPPLIER
01-11-2022,Adults & Health,Rhythmic Care UK Ltd,Home Care - Private Contractors Payment,215.55,0,COMMERCIAL SUPPLIER
01-11-2022,Adults & Health,Rhythmic Care UK Ltd,Home Care - Private Contractors Payment,134.12,0,COMMERCIAL SUPPLIER
01-11-2022,Adults & Health,Rhythmic Care UK Ltd,Home Care - Private Contractors Payment,435.89,0,COMMERCIAL SUPPLIER
01-11-2022,Adults & Health,Rhythmic Care UK Ltd,Home Care - Private Contractors Payment,167.65,0,COMMERCIAL SUPPLIER
01-11-2022,Adults & Health,Rhythmic Care UK Ltd,Home Care - Private Contractors Payment,570.01,0,COMMERCIAL SUPPLIER
01-11-2022,Adults & Health,Rhythmic Care UK Ltd,Home Care - Private Contractors Payment,570.01,0,COMMERCIAL SUPPLIER
01-11-2022,Adults & Health,Rhythmic Care UK Ltd,Home Care - Private Contractors Payment,268.24,0,COMMERCIAL SUPPLIER
01-11-2022,Adults & Health,Rhythmic Care UK Ltd,Daycare - Private Contractors Payment,38.32,0,COMMERCIAL SUPPLIER
01-11-2022,Adults & Health,Rhythmic Care UK Ltd,Daycare - Private Contractors Payment,19.16,0,COMMERCIAL SUPPLIER
01-11-2022,Adults & Health,Rhythmic Care UK Ltd,Home Care - Private Contractors Payment,47.9,0,COMMERCIAL SUPPLIER
01-11-2022,Adults & Health,Rhythmic Care UK Ltd,Home Care - Private Contractors Payment,143.7,0,COMMERCIAL SUPPLIER
01-11-2022,Adults & Health,Rhythmic Care UK Ltd,Home Care - Private Contractors Payment,38.32,0,COMMERCIAL SUPPLIER
01-11-2022,Adults & Health,Rhythmic Care UK Ltd,Home Care - Private Contractors Payment,479,0,COMMERCIAL SUPPLIER
01-11-2022,Adults & Health,Rhythmic Care UK Ltd,Home Care - Private Contractors Payment,19.16,0,COMMERCIAL SUPPLIER
01-11-2022,Adults & Health,Rhythmic Care UK Ltd,Home Care - Private Contractors Payment,9.58,0,COMMERCIAL SUPPLIER
01-11-2022,Adults & Health,Rhythmic Care UK Ltd,Home Care - Private Contractors Payment,114.96,0,COMMERCIAL SUPPLIER
01-11-2022,Adults & Health,Rhythmic Care UK Ltd,Home Care - Private Contractors Payment,57.48,0,COMMERCIAL SUPPLIER
01-11-2022,Adults & Health,Rhythmic Care UK Ltd,Home Care - Private Contractors Payment,301.77,0,COMMERCIAL SUPPLIER
01-11-2022,Adults & Health,Rhythmic Care UK Ltd,Home Care - Private Contractors Payment,19.16,0,COMMERCIAL SUPPLIER
01-11-2022,Adults & Health,Rhythmic Care UK Ltd,Home Care - Private Contractors Payment,234.71,0,COMMERCIAL SUPPLIER
01-11-2022,Adults & Health,Rhythmic Care UK Ltd,Home Care - Private Contractors Payment,162.86,0,COMMERCIAL SUPPLIER
01-11-2022,Adults & Health,Rhythmic Care UK Ltd,Home Care - Private Contractors Payment,225.13,0,COMMERCIAL SUPPLIER
01-11-2022,Adults & Health,Rhythmic Care UK Ltd,Home Care - Private Contractors Payment,186.81,0,COMMERCIAL SUPPLIER
01-11-2022,Adults & Health,Rhythmic Care UK Ltd,Home Care - Private Contractors Payment,19.16,0,COMMERCIAL SUPPLIER
01-11-2022,Adults & Health,Rhythmic Care UK Ltd,Home Care - Private Contractors Payment,449.28,0,COMMERCIAL SUPPLIER
01-11-2022,Adults & Health,Rhythmic Care UK Ltd,Home Care - Private Contractors Payment,43.11,0,COMMERCIAL SUPPLIER
01-11-2022,Adults & Health,Rhythmic Care UK Ltd,Home Care - Private Contractors Payment,86.22,0,COMMERCIAL SUPPLIER
01-11-2022,Adults & Health,Rhythmic Care UK Ltd,Reablement,19.16,0,COMMERCIAL SUPPLIER
01-11-2022,Adults & Health,Rhythmic Care UK Ltd,Home Care - Private Contractors Payment,268.24,0,COMMERCIAL SUPPLIER
01-11-2022,Adults & Health,Rhythmic Care UK Ltd,Home Care - Private Contractors Payment,19.16,0,COMMERCIAL SUPPLIER
01-11-2022,Adults & Health,Rhythmic Care UK Ltd,Home Care - Private Contractors Payment,670.6,0,COMMERCIAL SUPPLIER
01-11-2022,Adults & Health,Rhythmic Care UK Ltd,Home Care - Private Contractors Payment,570.01,0,COMMERCIAL SUPPLIER
01-11-2022,Adults & Health,Rhythmic Care UK Ltd,Home Care - Private Contractors Payment,201.18,0,COMMERCIAL SUPPLIER
01-11-2022,Adults & Health,Rhythmic Care UK Ltd,Daycare - Private Contractors Payment,95.8,0,COMMERCIAL SUPPLIER
01-11-2022,Adults & Health,Rhythmic Care UK Ltd,Respite Care - Private Contractors Payment,38.32,0,COMMERCIAL SUPPLIER
01-11-2022,Adults & Health,Rhythmic Care UK Ltd,Home Care - Private Contractors Payment,43.11,0,COMMERCIAL SUPPLIER
01-11-2022,Adults & Health,Rhythmic Care UK Ltd,Home Care - Private Contractors Payment,134.12,0,COMMERCIAL SUPPLIER
01-11-2022,Adults & Health,Rhythmic Care UK Ltd,Daycare - Private Contractors Payment,76.64,0,COMMERCIAL SUPPLIER
01-11-2022,Adults & Health,Rhythmic Care UK Ltd,Home Care - Private Contractors Payment,852.62,0,COMMERCIAL SUPPLIER
01-11-2022,Adults & Health,Rhythmic Care UK Ltd,Home Care - Private Contractors Payment,19.16,0,COMMERCIAL SUPPLIER
01-11-2022,Adults & Health,Rhythmic Care UK Ltd,Home Care - Private Contractors Payment,19.16,0,COMMERCIAL SUPPLIER
01-11-2022,Adults & Health,Rhythmic Care UK Ltd,Home Care - Private Contractors Payment,114.96,0,COMMERCIAL SUPPLIER
01-11-2022,Adults & Health,Rhythmic Care UK Ltd,Home Care - Private Contractors Payment,268.24,0,COMMERCIAL SUPPLIER
01-11-2022,Adults & Health,Rhythmic Care UK Ltd,Daycare - Private Contractors Payment,268.24,0,COMMERCIAL SUPPLIER
01-11-2022,Adults & Health,Rhythmic Care UK Ltd,Daycare - Private Contractors Payment,373.62,0,COMMERCIAL SUPPLIER
01-11-2022,Adults & Health,Rhythmic Care UK Ltd,Home Care - Private Contractors Payment,268.24,0,COMMERCIAL SUPPLIER
01-11-2022,Adults & Health,Rhythmic Care UK Ltd,Daycare - Private Contractors Payment,38.32,0,COMMERCIAL SUPPLIER
01-11-2022,Adults & Health,Rhythmic Care UK Ltd,Home Care - Private Contractors Payment,19.16,0,COMMERCIAL SUPPLIER
01-11-2022,Adults & Health,Rhythmic Care UK Ltd,Home Care - Private Contractors Payment,234.71,0,COMMERCIAL SUPPLIER
01-11-2022,Adults & Health,Rhythmic Care UK Ltd,Home Care - Private Contractors Payment,38.32,0,COMMERCIAL SUPPLIER
01-11-2022,Adults & Health,Rhythmic Care UK Ltd,Home Care - Private Contractors Payment,402.36,0,COMMERCIAL SUPPLIER
01-11-2022,Adults & Health,Rhythmic Care UK Ltd,Home Care - Private Contractors Payment,316.14,0,COMMERCIAL SUPPLIER
01-11-2022,Adults & Health,Rhythmic Care UK Ltd,Home Care - Private Contractors Payment,47.9,0,COMMERCIAL SUPPLIER
01-11-2022,Adults & Health,Rhythmic Care UK Ltd,Home Care - Private Contractors Payment,268.24,0,COMMERCIAL SUPPLIER
01-11-2022,Adults & Health,Rhythmic Care UK Ltd,Daycare - Private Contractors Payment,38.32,0,COMMERCIAL SUPPLIER
01-11-2022,Adults & Health,Rhythmic Care UK Ltd,Home Care - Private Contractors Payment,19.16,0,COMMERCIAL SUPPLIER
01-11-2022,Adults & Health,Rhythmic Care UK Ltd,Home Care - Private Contractors Payment,296.98,0,COMMERCIAL SUPPLIER
01-11-2022,Adults & Health,Rhythmic Care UK Ltd,Home Care - Private Contractors Payment,19.16,0,COMMERCIAL SUPPLIER
01-11-2022,Adults & Health,Rhythmic Care UK Ltd,Home Care - Private Contractors Payment,19.16,0,COMMERCIAL SUPPLIER
01-11-2022,Adults & Health,Rhythmic Care UK Ltd,Home Care - Private Contractors Payment,234.71,0,COMMERCIAL SUPPLIER
01-11-2022,Adults & Health,Rhythmic Care UK Ltd,Home Care - Private Contractors Payment,570.01,0,COMMERCIAL SUPPLIER
01-11-2022,Adults & Health,Rhythmic Care UK Ltd,Home Care - Private Contractors Payment,43.11,0,COMMERCIAL SUPPLIER
01-11-2022,Adults & Health,Rhythmic Care UK Ltd,Home Care - Private Contractors Payment,234.71,0,COMMERCIAL SUPPLIER
01-11-2022,Adults & Health,Rhythmic Care UK Ltd,Home Care - Private Contractors Payment,205.97,0,COMMERCIAL SUPPLIER
01-11-2022,Adults & Health,Rhythmic Care UK Ltd,Daycare - Private Contractors Payment,19.16,0,COMMERCIAL SUPPLIER
01-11-2022,Adults & Health,Rhythmic Care UK Ltd,Home Care - Private Contractors Payment,234.71,0,COMMERCIAL SUPPLIER
01-11-2022,Adults & Health,Rhythmic Care UK Ltd,Home Care - Private Contractors Payment,234.71,0,COMMERCIAL SUPPLIER
01-11-2022,Adults & Health,Rhythmic Care UK Ltd,Daycare - Private Contractors Payment,76.64,0,COMMERCIAL SUPPLIER
01-11-2022,Adults & Health,Rhythmic Care UK Ltd,Home Care - Private Contractors Payment,234.71,0,COMMERCIAL SUPPLIER
01-11-2022,Adults & Health,Rhythmic Care UK Ltd,Home Care - Private Contractors Payment,234.71,0,COMMERCIAL SUPPLIER
01-11-2022,Adults & Health,Rhythmic Care UK Ltd,Home Care - Private Contractors Payment,234.71,0,COMMERCIAL SUPPLIER
01-11-2022,Adults & Health,Rhythmic Care UK Ltd,Home Care - Private Contractors Payment,114.96,0,COMMERCIAL SUPPLIER
01-11-2022,Adults & Health,Rhythmic Care UK Ltd,Home Care - Private Contractors Payment,191.6,0,COMMERCIAL SUPPLIER
01-11-2022,Adults & Health,Rhythmic Care UK Ltd,Home Care - Private Contractors Payment,19.16,0,COMMERCIAL SUPPLIER
01-11-2022,Adults & Health,Rhythmic Care UK Ltd,Home Care - Private Contractors Payment,167.65,0,COMMERCIAL SUPPLIER
01-11-2022,Adults & Health,Rhythmic Care UK Ltd,Daycare - Private Contractors Payment,19.16,0,COMMERCIAL SUPPLIER
01-11-2022,Adults & Health,Rhythmic Care UK Ltd,Home Care - Private Contractors Payment,263.45,0,COMMERCIAL SUPPLIER
01-11-2022,Adults & Health,Rhythmic Care UK Ltd,Home Care - Private Contractors Payment,100.59,0,COMMERCIAL SUPPLIER
01-11-2022,Adults & Health,Rhythmic Care UK Ltd,Daycare - Private Contractors Payment,38.32,0,COMMERCIAL SUPPLIER
01-11-2022,Adults & Health,Rhythmic Care UK Ltd,Home Care - Private Contractors Payment,100.59,0,COMMERCIAL SUPPLIER
01-11-2022,Adults & Health,Rhythmic Care UK Ltd,Home Care - Private Contractors Payment,167.65,0,COMMERCIAL SUPPLIER
01-11-2022,Adults & Health,Rhythmic Care UK Ltd,Home Care - Private Contractors Payment,138.91,0,COMMERCIAL SUPPLIER
01-11-2022,Adults & Health,Rhythmic Care UK Ltd,Home Care - Private Contractors Payment,234.71,0,COMMERCIAL SUPPLIER
01-11-2022,Adults & Health,Rhythmic Care UK Ltd,Home Care - Private Contractors Payment,100.59,0,COMMERCIAL SUPPLIER
01-11-2022,Adults & Health,Rhythmic Care UK Ltd,Daycare - Private Contractors Payment,38.32,0,COMMERCIAL SUPPLIER
01-11-2022,Adults & Health,Rhythmic Care UK Ltd,Home Care - Private Contractors Payment,804.72,0,COMMERCIAL SUPPLIER
01-11-2022,Adults & Health,Rhythmic Care UK Ltd,Home Care - Private Contractors Payment,47.9,0,COMMERCIAL SUPPLIER
01-11-2022,Adults & Health,Rhythmic Care UK Ltd,Daycare - Private Contractors Payment,153.28,0,COMMERCIAL SUPPLIER
01-11-2022,Adults & Health,Rhythmic Care UK Ltd,Home Care - Private Contractors Payment,19.16,0,COMMERCIAL SUPPLIER
01-11-2022,Adults & Health,Rhythmic Care UK Ltd,Home Care - Private Contractors Payment,536.48,0,COMMERCIAL SUPPLIER
01-11-2022,Adults & Health,Rhythmic Care UK Ltd,Home Care - Private Contractors Payment,234.71,0,COMMERCIAL SUPPLIER
01-11-2022,Adults & Health,Rhythmic Care UK Ltd,Home Care - Private Contractors Payment,670.6,0,COMMERCIAL SUPPLIER
01-11-2022,Adults & Health,Rhythmic Care UK Ltd,Home Care - Private Contractors Payment,1226.24,0,COMMERCIAL SUPPLIER
01-11-2022,Adults & Health,Rhythmic Care UK Ltd,Daycare - Private Contractors Payment,9.58,0,COMMERCIAL SUPPLIER
01-11-2022,Adults & Health,Rhythmic Care UK Ltd,Daycare - Private Contractors Payment,19.16,0,COMMERCIAL SUPPLIER
01-11-2022,Adults & Health,Rhythmic Care UK Ltd,Home Care - Private Contractors Payment,201.18,0,COMMERCIAL SUPPLIER
01-11-2022,Adults & Health,Rhythmic Care UK Ltd,Home Care - Private Contractors Payment,43.11,0,COMMERCIAL SUPPLIER
01-11-2022,Adults & Health,Rhythmic Care UK Ltd,Home Care - Private Contractors Payment,301.77,0,COMMERCIAL SUPPLIER
01-11-2022,Adults & Health,Rhythmic Care UK Ltd,Home Care - Private Contractors Payment,67.06,0,COMMERCIAL SUPPLIER
01-11-2022,Adults & Health,Rhythmic Care UK Ltd,Home Care - Private Contractors Payment,435.89,0,COMMERCIAL SUPPLIER
01-11-2022,Adults & Health,Rhythmic Care UK Ltd,Home Care - Private Contractors Payment,57.48,0,COMMERCIAL SUPPLIER
01-11-2022,Adults & Health,Rhythmic Care UK Ltd,Home Care - Private Contractors Payment,469.42,0,COMMERCIAL SUPPLIER
01-11-2022,Adults & Health,Rhythmic Care UK Ltd,Home Care - Private Contractors Payment,76.64,0,COMMERCIAL SUPPLIER
01-11-2022,Adults & Health,Rhythmic Care UK Ltd,Daycare - Private Contractors Payment,38.32,0,COMMERCIAL SUPPLIER
01-11-2022,Adults & Health,Rhythmic Care UK Ltd,Home Care - Private Contractors Payment,632.28,0,COMMERCIAL SUPPLIER
01-11-2022,Adults & Health,Rhythmic Care UK Ltd,Daycare - Private Contractors Payment,38.32,0,COMMERCIAL SUPPLIER
01-11-2022,Adults & Health,Rhythmic Care UK Ltd,Home Care - Private Contractors Payment,301.77,0,COMMERCIAL SUPPLIER
01-11-2022,Adults & Health,Rhythmic Care UK Ltd,Home Care - Private Contractors Payment,402.36,0,COMMERCIAL SUPPLIER
01-11-2022,Adults & Health,Rhythmic Care UK Ltd,Home Care - Private Contractors Payment,167.65,0,COMMERCIAL SUPPLIER
01-11-2022,Adults & Health,Rhythmic Care UK Ltd,Home Care - Private Contractors Payment,19.16,0,COMMERCIAL SUPPLIER
01-11-2022,Adults & Health,Rhythmic Care UK Ltd,Home Care - Private Contractors Payment,268.24,0,COMMERCIAL SUPPLIER
01-11-2022,Adults & Health,Rhythmic Care UK Ltd,Home Care - Private Contractors Payment,335.3,0,COMMERCIAL SUPPLIER
01-11-2022,Adults & Health,Rhythmic Care UK Ltd,Home Care - Private Contractors Payment,38.32,0,COMMERCIAL SUPPLIER
01-11-2022,Adults & Health,Rhythmic Care UK Ltd,Home Care - Private Contractors Payment,19.16,0,COMMERCIAL SUPPLIER
01-11-2022,Adults & Health,Rhythmic Care UK Ltd,Daycare - Private Contractors Payment,19.16,0,COMMERCIAL SUPPLIER
01-11-2022,Adults & Health,Rhythmic Care UK Ltd,Home Care - Private Contractors Payment,435.89,0,COMMERCIAL SUPPLIER
01-11-2022,Adults & Health,Rhythmic Care UK Ltd,Home Care - Private Contractors Payment,19.16,0,COMMERCIAL SUPPLIER
01-11-2022,Adults & Health,Rhythmic Care UK Ltd,Home Care - Private Contractors Payment,167.65,0,COMMERCIAL SUPPLIER
01-11-2022,Adults & Health,Rhythmic Care UK Ltd,Home Care - Private Contractors Payment,234.71,0,COMMERCIAL SUPPLIER
01-11-2022,Adults & Health,Rhythmic Care UK Ltd,Home Care - Private Contractors Payment,234.71,0,COMMERCIAL SUPPLIER
01-11-2022,Adults & Health,Rhythmic Care UK Ltd,Home Care - Private Contractors Payment,129.33,0,COMMERCIAL SUPPLIER
01-11-2022,Adults & Health,Rhythmic Care UK Ltd,Home Care - Private Contractors Payment,19.16,0,COMMERCIAL SUPPLIER
01-11-2022,Adults & Health,Rhythmic Care UK Ltd,Home Care - Private Contractors Payment,804.72,0,COMMERCIAL SUPPLIER
01-11-2022,Adults & Health,Rhythmic Care UK Ltd,Home Care - Private Contractors Payment,301.77,0,COMMERCIAL SUPPLIER
01-11-2022,Adults & Health,Rhythmic Care UK Ltd,Home Care - Private Contractors Payment,47.9,0,COMMERCIAL SUPPLIER
01-11-2022,Adults & Health,Rhythmic Care UK Ltd,Home Care - Private Contractors Payment,100.59,0,COMMERCIAL SUPPLIER
01-11-2022,Adults & Health,Rhythmic Care UK Ltd,Home Care - Private Contractors Payment,354.46,0,COMMERCIAL SUPPLIER
01-11-2022,Adults & Health,Rhythmic Care UK Ltd,Home Care - Private Contractors Payment,268.24,0,COMMERCIAL SUPPLIER
01-11-2022,Adults & Health,Rhythmic Care UK Ltd,Home Care - Private Contractors Payment,502.95,0,COMMERCIAL SUPPLIER
01-11-2022,Adults & Health,Rhythmic Care UK Ltd,Home Care - Private Contractors Payment,67.06,0,COMMERCIAL SUPPLIER
01-11-2022,Adults & Health,Rhythmic Care UK Ltd,Home Care - Private Contractors Payment,167.65,0,COMMERCIAL SUPPLIER
01-11-2022,Adults & Health,Rhythmic Care UK Ltd,Home Care - Private Contractors Payment,100.59,0,COMMERCIAL SUPPLIER
01-11-2022,Adults & Health,Rhythmic Care UK Ltd,Home Care - Private Contractors Payment,67.06,0,COMMERCIAL SUPPLIER
01-11-2022,Adults & Health,Rhythmic Care UK Ltd,Home Care - Private Contractors Payment,301.77,0,COMMERCIAL SUPPLIER
01-11-2022,Adults & Health,Rhythmic Care UK Ltd,Home Care - Private Contractors Payment,435.89,0,COMMERCIAL SUPPLIER
01-11-2022,Adults & Health,Rhythmic Care UK Ltd,Home Care - Private Contractors Payment,167.65,0,COMMERCIAL SUPPLIER
01-11-2022,Adults & Health,Rhythmic Care UK Ltd,Home Care - Private Contractors Payment,186.81,0,COMMERCIAL SUPPLIER
01-11-2022,Adults & Health,Rhythmic Care UK Ltd,Home Care - Private Contractors Payment,134.12,0,COMMERCIAL SUPPLIER
01-11-2022,Adults & Health,Rhythmic Care UK Ltd,Home Care - Private Contractors Payment,201.18,0,COMMERCIAL SUPPLIER
01-11-2022,Adults & Health,Rhythmic Care UK Ltd,Home Care - Private Contractors Payment,301.77,0,COMMERCIAL SUPPLIER
01-11-2022,Adults & Health,Rhythmic Care UK Ltd,Home Care - Private Contractors Payment,167.65,0,COMMERCIAL SUPPLIER
01-11-2022,Adults & Health,Rhythmic Care UK Ltd,Home Care - Private Contractors Payment,843.04,0,COMMERCIAL SUPPLIER
01-11-2022,Adults & Health,Rhythmic Care UK Ltd,Home Care - Private Contractors Payment,335.3,0,COMMERCIAL SUPPLIER
01-11-2022,Adults & Health,Rhythmic Care UK Ltd,Home Care - Private Contractors Payment,517.32,0,COMMERCIAL SUPPLIER
01-11-2022,Adults & Health,Rhythmic Care UK Ltd,Home Care - Private Contractors Payment,570.01,0,COMMERCIAL SUPPLIER
01-11-2022,Adults & Health,Rhythmic Care UK Ltd,Daycare - Private Contractors Payment,19.16,0,COMMERCIAL SUPPLIER
01-11-2022,Adults & Health,Rhythmic Care UK Ltd,Home Care - Private Contractors Payment,536.48,0,COMMERCIAL SUPPLIER
01-11-2022,Adults & Health,Rhythmic Care UK Ltd,Home Care - Private Contractors Payment,234.71,0,COMMERCIAL SUPPLIER
01-11-2022,Adults & Health,Rhythmic Care UK Ltd,Respite Care - Private Contractors Payment,57.48,0,COMMERCIAL SUPPLIER
01-11-2022,Adults & Health,Rhythmic Care UK Ltd,Home Care - Private Contractors Payment,234.71,0,COMMERCIAL SUPPLIER
01-11-2022,Adults & Health,Rhythmic Care UK Ltd,Home Care - Private Contractors Payment,234.71,0,COMMERCIAL SUPPLIER
01-11-2022,Adults & Health,Rhythmic Care UK Ltd,Home Care - Private Contractors Payment,234.71,0,COMMERCIAL SUPPLIER
01-11-2022,Adults & Health,Rhythmic Care UK Ltd,Home Care - Private Contractors Payment,201.18,0,COMMERCIAL SUPPLIER
01-11-2022,Adults & Health,Rhythmic Care UK Ltd,Home Care - Private Contractors Payment,536.48,0,COMMERCIAL SUPPLIER
01-11-2022,Adults & Health,Rhythmic Care UK Ltd,Home Care - Private Contractors Payment,502.95,0,COMMERCIAL SUPPLIER
01-11-2022,Adults & Health,Rhythmic Care UK Ltd,Home Care - Private Contractors Payment,57.48,0,COMMERCIAL SUPPLIER
01-11-2022,Adults & Health,Rhythmic Care UK Ltd,Home Care - Private Contractors Payment,19.16,0,COMMERCIAL SUPPLIER
01-11-2022,Adults & Health,Rhythmic Care UK Ltd,Home Care - Private Contractors Payment,201.18,0,COMMERCIAL SUPPLIER
01-11-2022,Adults & Health,Rhythmic Care UK Ltd,Home Care - Private Contractors Payment,19.16,0,COMMERCIAL SUPPLIER
01-11-2022,Adults & Health,Rhythmic Care UK Ltd,Daycare - Private Contractors Payment,38.32,0,COMMERCIAL SUPPLIER
01-11-2022,Adults & Health,Rhythmic Care UK Ltd,Respite Care - Private Contractors Payment,67.06,0,COMMERCIAL SUPPLIER
01-11-2022,Adults & Health,Rhythmic Care UK Ltd,Home Care - Private Contractors Payment,201.18,0,COMMERCIAL SUPPLIER
01-11-2022,Adults & Health,Rhythmic Care UK Ltd,Home Care - Private Contractors Payment,57.48,0,COMMERCIAL SUPPLIER
01-11-2022,Adults & Health,Rhythmic Care UK Ltd,Home Care - Private Contractors Payment,148.49,0,COMMERCIAL SUPPLIER
01-11-2022,Adults & Health,Rhythmic Care UK Ltd,Home Care - Private Contractors Payment,167.65,0,COMMERCIAL SUPPLIER
01-11-2022,Adults & Health,Rhythmic Care UK Ltd,Home Care - Private Contractors Payment,282.61,0,COMMERCIAL SUPPLIER
01-11-2022,Adults & Health,Rhythmic Care UK Ltd,Home Care - Private Contractors Payment,459.84,0,COMMERCIAL SUPPLIER
01-11-2022,Adults & Health,Rhythmic Care UK Ltd,Daycare - Private Contractors Payment,47.9,0,COMMERCIAL SUPPLIER
01-11-2022,Adults & Health,Rhythmic Care UK Ltd,Home Care - Private Contractors Payment,67.06,0,COMMERCIAL SUPPLIER
01-11-2022,Adults & Health,Rhythmic Care UK Ltd,Home Care - Private Contractors Payment,28.74,0,COMMERCIAL SUPPLIER
01-11-2022,Adults & Health,Rhythmic Care UK Ltd,Home Care - Private Contractors Payment,167.65,0,COMMERCIAL SUPPLIER
01-11-2022,Adults & Health,Rhythmic Care UK Ltd,Home Care - Private Contractors Payment,234.71,0,COMMERCIAL SUPPLIER
01-11-2022,Adults & Health,Rhythmic Care UK Ltd,Home Care - Private Contractors Payment,167.65,0,COMMERCIAL SUPPLIER
01-11-2022,Adults & Health,Rhythmic Care UK Ltd,Home Care - Private Contractors Payment,134.12,0,COMMERCIAL SUPPLIER
01-11-2022,Adults & Health,Rhythmic Care UK Ltd,Daycare - Private Contractors Payment,19.16,0,COMMERCIAL SUPPLIER
01-11-2022,Adults & Health,Rhythmic Care UK Ltd,Home Care - Private Contractors Payment,268.24,0,COMMERCIAL SUPPLIER
01-11-2022,Adults & Health,Rhythmic Care UK Ltd,Home Care - Private Contractors Payment,67.06,0,COMMERCIAL SUPPLIER
01-11-2022,Adults & Health,Rhythmic Care UK Ltd,Home Care - Private Contractors Payment,167.65,0,COMMERCIAL SUPPLIER
01-11-2022,Adults & Health,Rhythmic Care UK Ltd,Home Care - Private Contractors Payment,38.32,0,COMMERCIAL SUPPLIER
01-11-2022,Adults & Health,Rhythmic Care UK Ltd,Daycare - Private Contractors Payment,38.32,0,COMMERCIAL SUPPLIER
01-11-2022,Adults & Health,Rhythmic Care UK Ltd,Home Care - Private Contractors Payment,114.96,0,COMMERCIAL SUPPLIER
01-11-2022,Adults & Health,Rhythmic Care UK Ltd,Home Care - Private Contractors Payment,19.16,0,COMMERCIAL SUPPLIER
01-11-2022,Adults & Health,Rhythmic Care UK Ltd,Home Care - Private Contractors Payment,134.12,0,COMMERCIAL SUPPLIER
01-11-2022,Adults & Health,Rhythmic Care UK Ltd,Daycare - Private Contractors Payment,28.74,0,COMMERCIAL SUPPLIER
01-11-2022,Adults & Health,Rhythmic Care UK Ltd,Home Care - Private Contractors Payment,19.16,0,COMMERCIAL SUPPLIER
01-11-2022,Adults & Health,Rhythmic Care UK Ltd,Home Care - Private Contractors Payment,19.16,0,COMMERCIAL SUPPLIER
01-11-2022,Adults & Health,Rhythmic Care UK Ltd,Home Care - Private Contractors Payment,100.59,0,COMMERCIAL SUPPLIER
01-11-2022,Adults & Health,Rhythmic Care UK Ltd,Home Care - Private Contractors Payment,143.7,0,COMMERCIAL SUPPLIER
01-11-2022,Adults & Health,Rhythmic Care UK Ltd,Home Care - Private Contractors Payment,234.71,0,COMMERCIAL SUPPLIER
01-11-2022,Adults & Health,Rhythmic Care UK Ltd,Home Care - Private Contractors Payment,205.97,0,COMMERCIAL SUPPLIER
01-11-2022,Adults & Health,Rhythmic Care UK Ltd,Home Care - Private Contractors Payment,38.32,0,COMMERCIAL SUPPLIER
01-11-2022,Adults & Health,Rhythmic Care UK Ltd,Home Care - Private Contractors Payment,268.24,0,COMMERCIAL SUPPLIER
01-11-2022,Adults & Health,Rhythmic Care UK Ltd,Home Care - Private Contractors Payment,201.18,0,COMMERCIAL SUPPLIER
01-11-2022,Adults & Health,Rhythmic Care UK Ltd,Home Care - Private Contractors Payment,57.48,0,COMMERCIAL SUPPLIER
01-11-2022,Adults & Health,Rhythmic Care UK Ltd,Home Care - Private Contractors Payment,301.77,0,COMMERCIAL SUPPLIER
01-11-2022,Adults & Health,Rhythmic Care UK Ltd,Home Care - Private Contractors Payment,301.77,0,COMMERCIAL SUPPLIER
01-11-2022,Adults & Health,Rhythmic Care UK Ltd,Home Care - Private Contractors Payment,19.16,0,COMMERCIAL SUPPLIER
01-11-2022,Adults & Health,Rhythmic Care UK Ltd,Home Care - Private Contractors Payment,234.71,0,COMMERCIAL SUPPLIER
01-11-2022,Adults & Health,Rhythmic Care UK Ltd,Home Care - Private Contractors Payment,771.19,0,COMMERCIAL SUPPLIER
01-11-2022,Adults & Health,Rhythmic Care UK Ltd,Home Care - Private Contractors Payment,536.48,0,COMMERCIAL SUPPLIER
01-11-2022,Adults & Health,Rhythmic Care UK Ltd,Home Care - Private Contractors Payment,201.18,0,COMMERCIAL SUPPLIER
01-11-2022,Adults & Health,Rhythmic Care UK Ltd,Home Care - Private Contractors Payment,167.65,0,COMMERCIAL SUPPLIER
01-11-2022,Adults & Health,Rhythmic Care UK Ltd,Home Care - Private Contractors Payment,301.77,0,COMMERCIAL SUPPLIER
01-11-2022,Adults & Health,Rhythmic Care UK Ltd,Home Care - Private Contractors Payment,19.16,0,COMMERCIAL SUPPLIER
01-11-2022,Adults & Health,Rhythmic Care UK Ltd,Home Care - Private Contractors Payment,19.16,0,COMMERCIAL SUPPLIER
01-11-2022,Adults & Health,Rhythmic Care UK Ltd,Daycare - Private Contractors Payment,76.64,0,COMMERCIAL SUPPLIER
01-11-2022,Adults & Health,Rhythmic Care UK Ltd,Home Care - Private Contractors Payment,100.59,0,COMMERCIAL SUPPLIER
01-11-2022,Adults & Health,Rhythmic Care UK Ltd,Home Care - Private Contractors Payment,19.16,0,COMMERCIAL SUPPLIER
01-11-2022,Adults & Health,Rhythmic Care UK Ltd,Home Care - Private Contractors Payment,167.65,0,COMMERCIAL SUPPLIER
01-11-2022,Adults & Health,Rhythmic Care UK Ltd,Home Care - Private Contractors Payment,28.74,0,COMMERCIAL SUPPLIER
01-11-2022,Adults & Health,Rhythmic Care UK Ltd,Home Care - Private Contractors Payment,335.3,0,COMMERCIAL SUPPLIER
01-11-2022,Adults & Health,Rhythmic Care UK Ltd,Daycare - Private Contractors Payment,57.48,0,COMMERCIAL SUPPLIER
01-11-2022,Adults & Health,Rhythmic Care UK Ltd,Home Care - Private Contractors Payment,19.16,0,COMMERCIAL SUPPLIER
01-11-2022,Adults & Health,Rhythmic Care UK Ltd,Home Care - Private Contractors Payment,86.22,0,COMMERCIAL SUPPLIER
01-11-2022,Adults & Health,Rhythmic Care UK Ltd,Home Care - Private Contractors Payment,201.18,0,COMMERCIAL SUPPLIER
01-11-2022,Adults & Health,Rhythmic Care UK Ltd,Home Care - Private Contractors Payment,86.22,0,COMMERCIAL SUPPLIER
01-11-2022,Adults & Health,Rhythmic Care UK Ltd,Home Care - Private Contractors Payment,167.65,0,COMMERCIAL SUPPLIER
01-11-2022,Adults & Health,Rhythmic Care UK Ltd,Home Care - Private Contractors Payment,479,0,COMMERCIAL SUPPLIER
01-11-2022,Adults & Health,Rhythmic Care UK Ltd,Home Care - Private Contractors Payment,234.71,0,COMMERCIAL SUPPLIER
01-11-2022,Adults & Health,Rhythmic Care UK Ltd,Home Care - Private Contractors Payment,71.85,0,COMMERCIAL SUPPLIER
01-11-2022,Adults & Health,Rhythmic Care UK Ltd,Home Care - Private Contractors Payment,134.12,0,COMMERCIAL SUPPLIER
01-11-2022,Adults & Health,Rhythmic Care UK Ltd,Daycare - Private Contractors Payment,134.12,0,COMMERCIAL SUPPLIER
01-11-2022,Adults & Health,Rhythmic Care UK Ltd,Home Care - Private Contractors Payment,19.16,0,COMMERCIAL SUPPLIER
01-11-2022,Adults & Health,Rhythmic Care UK Ltd,Home Care - Private Contractors Payment,201.18,0,COMMERCIAL SUPPLIER
01-11-2022,Adults & Health,Rhythmic Care UK Ltd,Home Care - Private Contractors Payment,110.17,0,COMMERCIAL SUPPLIER
01-11-2022,Adults & Health,Rhythmic Care UK Ltd,Home Care - Private Contractors Payment,234.71,0,COMMERCIAL SUPPLIER
01-11-2022,Adults & Health,Rhythmic Care UK Ltd,Home Care - Private Contractors Payment,570.01,0,COMMERCIAL SUPPLIER
01-11-2022,Adults & Health,Rhythmic Care UK Ltd,Home Care - Private Contractors Payment,134.12,0,COMMERCIAL SUPPLIER
01-11-2022,Adults & Health,Rhythmic Care UK Ltd,Home Care - Private Contractors Payment,301.77,0,COMMERCIAL SUPPLIER
01-11-2022,Adults & Health,Rhythmic Care UK Ltd,Home Care - Private Contractors Payment,201.18,0,COMMERCIAL SUPPLIER
01-11-2022,Adults & Health,Rhythmic Care UK Ltd,Daycare - Private Contractors Payment,76.64,0,COMMERCIAL SUPPLIER
01-11-2022,Adults & Health,Rhythmic Care UK Ltd,Home Care - Private Contractors Payment,804.72,0,COMMERCIAL SUPPLIER
01-11-2022,Adults & Health,Rhythmic Care UK Ltd,Home Care - Private Contractors Payment,19.16,0,COMMERCIAL SUPPLIER
01-11-2022,Adults & Health,Rhythmic Care UK Ltd,Daycare - Private Contractors Payment,38.32,0,COMMERCIAL SUPPLIER
01-11-2022,Adults & Health,Rhythmic Care UK Ltd,Daycare - Private Contractors Payment,76.64,0,COMMERCIAL SUPPLIER
01-11-2022,Adults & Health,Rhythmic Care UK Ltd,Daycare - Private Contractors Payment,28.74,0,COMMERCIAL SUPPLIER
01-11-2022,Adults & Health,Rhythmic Care UK Ltd,Home Care - Private Contractors Payment,43.11,0,COMMERCIAL SUPPLIER
01-11-2022,Adults & Health,Rhythmic Care UK Ltd,Home Care - Private Contractors Payment,100.59,0,COMMERCIAL SUPPLIER
01-11-2022,Adults & Health,Rhythmic Care UK Ltd,Home Care - Private Contractors Payment,19.16,0,COMMERCIAL SUPPLIER
01-11-2022,Adults & Health,Rhythmic Care UK Ltd,Home Care - Private Contractors Payment,234.71,0,COMMERCIAL SUPPLIER
01-11-2022,Adults & Health,Rhythmic Care UK Ltd,Home Care - Private Contractors Payment,234.71,0,COMMERCIAL SUPPLIER
01-11-2022,Adults & Health,Rhythmic Care UK Ltd,Home Care - Private Contractors Payment,19.16,0,COMMERCIAL SUPPLIER
01-11-2022,Adults & Health,Rhythmic Care UK Ltd,Daycare - Private Contractors Payment,38.32,0,COMMERCIAL SUPPLIER
01-11-2022,Adults & Health,Rhythmic Care UK Ltd,Home Care - Private Contractors Payment,335.3,0,COMMERCIAL SUPPLIER
01-11-2022,Adults & Health,Rhythmic Care UK Ltd,Home Care - Private Contractors Payment,38.32,0,COMMERCIAL SUPPLIER
01-11-2022,Adults & Health,Rhythmic Care UK Ltd,Home Care - Private Contractors Payment,19.16,0,COMMERCIAL SUPPLIER
01-11-2022,Adults & Health,Rhythmic Care UK Ltd,Daycare - Private Contractors Payment,38.32,0,COMMERCIAL SUPPLIER
01-11-2022,Adults & Health,Rhythmic Care UK Ltd,Home Care - Private Contractors Payment,167.65,0,COMMERCIAL SUPPLIER
01-11-2022,Adults & Health,Rhythmic Care UK Ltd,Home Care - Private Contractors Payment,67.06,0,COMMERCIAL SUPPLIER
01-11-2022,Adults & Health,Rhythmic Care UK Ltd,Home Care - Private Contractors Payment,234.71,0,COMMERCIAL SUPPLIER
01-11-2022,Adults & Health,Rhythmic Care UK Ltd,Home Care - Private Contractors Payment,167.65,0,COMMERCIAL SUPPLIER
01-11-2022,Adults & Health,Rhythmic Care UK Ltd,Home Care - Private Contractors Payment,771.19,0,COMMERCIAL SUPPLIER
01-11-2022,Adults & Health,Rhythmic Care UK Ltd,Home Care - Private Contractors Payment,19.16,0,COMMERCIAL SUPPLIER
01-11-2022,Adults & Health,Rhythmic Care UK Ltd,Daycare - Private Contractors Payment,38.32,0,COMMERCIAL SUPPLIER
01-11-2022,Adults & Health,Rhythmic Care UK Ltd,Home Care - Private Contractors Payment,57.48,0,COMMERCIAL SUPPLIER
01-11-2022,Adults & Health,Rhythmic Care UK Ltd,Home Care - Private Contractors Payment,234.71,0,COMMERCIAL SUPPLIER
01-11-2022,Adults & Health,Rhythmic Care UK Ltd,Home Care - Private Contractors Payment,57.48,0,COMMERCIAL SUPPLIER
01-11-2022,Adults & Health,Rhythmic Care UK Ltd,Home Care - Private Contractors Payment,67.06,0,COMMERCIAL SUPPLIER
01-11-2022,Adults & Health,Rhythmic Care UK Ltd,Daycare - Private Contractors Payment,57.48,0,COMMERCIAL SUPPLIER
01-11-2022,Adults & Health,Rhythmic Care UK Ltd,Home Care - Private Contractors Payment,771.19,0,COMMERCIAL SUPPLIER
01-11-2022,Adults & Health,Rhythmic Care UK Ltd,Home Care - Private Contractors Payment,38.32,0,COMMERCIAL SUPPLIER
01-11-2022,Adults & Health,Rhythmic Care UK Ltd,Home Care - Private Contractors Payment,167.65,0,COMMERCIAL SUPPLIER
01-11-2022,Adults & Health,Rhythmic Care UK Ltd,Daycare - Private Contractors Payment,19.16,0,COMMERCIAL SUPPLIER
01-11-2022,Adults & Health,Rhythmic Care UK Ltd,Home Care - Private Contractors Payment,57.48,0,COMMERCIAL SUPPLIER
01-11-2022,Adults & Health,Rhythmic Care UK Ltd,Home Care - Private Contractors Payment,201.18,0,COMMERCIAL SUPPLIER
01-11-2022,Adults & Health,Rhythmic Care UK Ltd,Daycare - Private Contractors Payment,19.16,0,COMMERCIAL SUPPLIER
01-11-2022,Adults & Health,Rhythmic Care UK Ltd,Home Care - Private Contractors Payment,167.65,0,COMMERCIAL SUPPLIER
01-11-2022,Adults & Health,Rhythmic Care UK Ltd,Daycare - Private Contractors Payment,91.01,0,COMMERCIAL SUPPLIER
01-11-2022,Adults & Health,Rhythmic Care UK Ltd,Home Care - Private Contractors Payment,234.71,0,COMMERCIAL SUPPLIER
01-11-2022,Adults & Health,Rhythmic Care UK Ltd,Home Care - Private Contractors Payment,287.4,0,COMMERCIAL SUPPLIER
01-11-2022,Adults & Health,Rhythmic Care UK Ltd,Home Care - Private Contractors Payment,771.19,0,COMMERCIAL SUPPLIER
01-11-2022,Adults & Health,Rhythmic Care UK Ltd,Home Care - Private Contractors Payment,268.24,0,COMMERCIAL SUPPLIER
01-11-2022,Adults & Health,Rhythmic Care UK Ltd,Home Care - Private Contractors Payment,244.29,0,COMMERCIAL SUPPLIER
01-11-2022,Adults & Health,Rhythmic Care UK Ltd,Home Care - Private Contractors Payment,205.97,0,COMMERCIAL SUPPLIER
01-11-2022,Adults & Health,Rhythmic Care UK Ltd,Daycare - Private Contractors Payment,19.16,0,COMMERCIAL SUPPLIER
01-11-2022,Adults & Health,Rhythmic Care UK Ltd,Home Care - Private Contractors Payment,234.71,0,COMMERCIAL SUPPLIER
01-11-2022,Adults & Health,Rhythmic Care UK Ltd,Home Care - Private Contractors Payment,201.18,0,COMMERCIAL SUPPLIER
01-11-2022,Adults & Health,Rhythmic Care UK Ltd,Home Care - Private Contractors Payment,234.71,0,COMMERCIAL SUPPLIER
01-11-2022,Adults & Health,Rhythmic Care UK Ltd,Home Care - Private Contractors Payment,201.18,0,COMMERCIAL SUPPLIER
01-11-2022,Adults & Health,Rhythmic Care UK Ltd,Home Care - Private Contractors Payment,301.77,0,COMMERCIAL SUPPLIER
01-11-2022,Adults & Health,Rhythmic Care UK Ltd,Home Care - Private Contractors Payment,536.48,0,COMMERCIAL SUPPLIER
01-11-2022,Adults & Health,Rhythmic Care UK Ltd,Home Care - Private Contractors Payment,167.65,0,COMMERCIAL SUPPLIER
01-11-2022,Adults & Health,Rhythmic Care UK Ltd,Home Care - Private Contractors Payment,167.65,0,COMMERCIAL SUPPLIER
01-11-2022,Adults & Health,Rhythmic Care UK Ltd,Home Care - Private Contractors Payment,67.06,0,COMMERCIAL SUPPLIER
01-11-2022,Adults & Health,Rhythmic Care UK Ltd,Home Care - Private Contractors Payment,234.71,0,COMMERCIAL SUPPLIER
01-11-2022,Adults & Health,Rhythmic Care UK Ltd,Home Care - Private Contractors Payment,234.71,0,COMMERCIAL SUPPLIER
01-11-2022,Adults & Health,Rhythmic Care UK Ltd,Home Care - Private Contractors Payment,229.92,0,COMMERCIAL SUPPLIER
01-11-2022,Adults & Health,Rhythmic Care UK Ltd,Home Care - Private Contractors Payment,19.16,0,COMMERCIAL SUPPLIER
01-11-2022,Adults & Health,Rhythmic Care UK Ltd,Home Care - Private Contractors Payment,201.18,0,COMMERCIAL SUPPLIER
01-11-2022,Adults & Health,Rhythmic Care UK Ltd,Daycare - Private Contractors Payment,76.64,0,COMMERCIAL SUPPLIER
01-11-2022,Adults & Health,Rhythmic Care UK Ltd,Home Care - Private Contractors Payment,143.7,0,COMMERCIAL SUPPLIER
01-11-2022,Adults & Health,Rhythmic Care UK Ltd,Home Care - Private Contractors Payment,57.48,0,COMMERCIAL SUPPLIER
01-11-2022,Adults & Health,Rhythmic Care UK Ltd,Home Care - Private Contractors Payment,670.6,0,COMMERCIAL SUPPLIER
01-11-2022,Adults & Health,Rhythmic Care UK Ltd,Home Care - Private Contractors Payment,335.3,0,COMMERCIAL SUPPLIER
01-11-2022,Adults & Health,Rhythmic Care UK Ltd,Daycare - Private Contractors Payment,38.32,0,COMMERCIAL SUPPLIER
01-11-2022,Adults & Health,Rhythmic Care UK Ltd,Daycare - Private Contractors Payment,38.32,0,COMMERCIAL SUPPLIER
01-11-2022,Adults & Health,Rhythmic Care UK Ltd,Home Care - Private Contractors Payment,469.42,0,COMMERCIAL SUPPLIER
01-11-2022,Adults & Health,Rhythmic Care UK Ltd,Home Care - Private Contractors Payment,239.5,0,COMMERCIAL SUPPLIER
01-11-2022,Adults & Health,Rhythmic Care UK Ltd,Daycare - Private Contractors Payment,38.32,0,COMMERCIAL SUPPLIER
01-11-2022,Adults & Health,Rhythmic Care UK Ltd,Home Care - Private Contractors Payment,268.24,0,COMMERCIAL SUPPLIER
01-11-2022,Adults & Health,Rhythmic Care UK Ltd,Home Care - Private Contractors Payment,167.65,0,COMMERCIAL SUPPLIER
01-11-2022,Adults & Health,Rhythmic Care UK Ltd,Home Care - Private Contractors Payment,134.12,0,COMMERCIAL SUPPLIER
01-11-2022,Adults & Health,Rhythmic Care UK Ltd,Home Care - Private Contractors Payment,570.01,0,COMMERCIAL SUPPLIER
01-11-2022,Adults & Health,Rhythmic Care UK Ltd,Home Care - Private Contractors Payment,19.16,0,COMMERCIAL SUPPLIER
01-11-2022,Adults & Health,Rhythmic Care UK Ltd,Home Care - Private Contractors Payment,19.16,0,COMMERCIAL SUPPLIER
01-11-2022,Adults & Health,Rhythmic Care UK Ltd,Home Care - Private Contractors Payment,201.18,0,COMMERCIAL SUPPLIER
01-11-2022,Adults & Health,Rhythmic Care UK Ltd,Home Care - Private Contractors Payment,282.61,0,COMMERCIAL SUPPLIER
01-11-2022,Adults & Health,Rhythmic Care UK Ltd,Home Care - Private Contractors Payment,268.24,0,COMMERCIAL SUPPLIER
01-11-2022,Adults & Health,Rhythmic Care UK Ltd,Home Care - Private Contractors Payment,167.65,0,COMMERCIAL SUPPLIER
01-11-2022,Adults & Health,Rhythmic Care UK Ltd,Home Care - Private Contractors Payment,268.24,0,COMMERCIAL SUPPLIER
01-11-2022,Adults & Health,Rhythmic Care UK Ltd,Home Care - Private Contractors Payment,637.07,0,COMMERCIAL SUPPLIER
01-11-2022,Adults & Health,Rhythmic Care UK Ltd,Home Care - Private Contractors Payment,570.01,0,COMMERCIAL SUPPLIER
01-11-2022,Adults & Health,Rhythmic Care UK Ltd,Home Care - Private Contractors Payment,167.65,0,COMMERCIAL SUPPLIER
01-11-2022,Adults & Health,Rhythmic Care UK Ltd,Home Care - Private Contractors Payment,804.72,0,COMMERCIAL SUPPLIER
01-11-2022,Adults & Health,Rhythmic Care UK Ltd,Daycare - Private Contractors Payment,28.74,0,COMMERCIAL SUPPLIER
01-11-2022,Adults & Health,Rhythmic Care UK Ltd,Home Care - Private Contractors Payment,100.59,0,COMMERCIAL SUPPLIER
01-11-2022,Adults & Health,Rhythmic Care UK Ltd,Daycare - Private Contractors Payment,28.74,0,COMMERCIAL SUPPLIER
01-11-2022,Adults & Health,Rhythmic Care UK Ltd,Home Care - Private Contractors Payment,134.12,0,COMMERCIAL SUPPLIER
01-11-2022,Adults & Health,Rhythmic Care UK Ltd,Daycare - Private Contractors Payment,57.48,0,COMMERCIAL SUPPLIER
01-11-2022,Adults & Health,Rhythmic Care UK Ltd,Daycare - Private Contractors Payment,38.32,0,COMMERCIAL SUPPLIER
01-11-2022,Adults & Health,Rhythmic Care UK Ltd,Home Care - Private Contractors Payment,201.18,0,COMMERCIAL SUPPLIER
01-11-2022,Adults & Health,Rhythmic Care UK Ltd,Home Care - Private Contractors Payment,431.1,0,COMMERCIAL SUPPLIER
01-11-2022,Adults & Health,Rhythmic Care UK Ltd,Daycare - Private Contractors Payment,19.16,0,COMMERCIAL SUPPLIER
01-11-2022,Adults & Health,Rhythmic Care UK Ltd,Home Care - Private Contractors Payment,201.18,0,COMMERCIAL SUPPLIER
01-11-2022,Adults & Health,Rhythmic Care UK Ltd,Home Care - Private Contractors Payment,100.59,0,COMMERCIAL SUPPLIER
01-11-2022,Adults & Health,Rhythmic Care UK Ltd,Home Care - Private Contractors Payment,19.16,0,COMMERCIAL SUPPLIER
01-11-2022,Adults & Health,Rhythmic Care UK Ltd,Home Care - Private Contractors Payment,234.71,0,COMMERCIAL SUPPLIER
01-11-2022,Adults & Health,Rhythmic Care UK Ltd,Home Care - Private Contractors Payment,234.71,0,COMMERCIAL SUPPLIER
01-11-2022,Adults & Health,Rhythmic Care UK Ltd,Home Care - Private Contractors Payment,114.96,0,COMMERCIAL SUPPLIER
01-11-2022,Adults & Health,Rhythmic Care UK Ltd,Home Care - Private Contractors Payment,19.16,0,COMMERCIAL SUPPLIER
01-11-2022,Adults & Health,Rhythmic Care UK Ltd,Daycare - Private Contractors Payment,67.06,0,COMMERCIAL SUPPLIER
01-11-2022,Adults & Health,Rhythmic Care UK Ltd,Home Care - Private Contractors Payment,19.16,0,COMMERCIAL SUPPLIER
01-11-2022,Adults & Health,Rhythmic Care UK Ltd,Respite Care - Private Contractors Payment,38.32,0,COMMERCIAL SUPPLIER
01-11-2022,Adults & Health,Rhythmic Care UK Ltd,Home Care - Private Contractors Payment,28.74,0,COMMERCIAL SUPPLIER
01-11-2022,Adults & Health,Rhythmic Care UK Ltd,Home Care - Private Contractors Payment,100.59,0,COMMERCIAL SUPPLIER
01-11-2022,Adults & Health,Rhythmic Care UK Ltd,Daycare - Private Contractors Payment,57.48,0,COMMERCIAL SUPPLIER
01-11-2022,Adults & Health,Rhythmic Care UK Ltd,Daycare - Private Contractors Payment,134.12,0,COMMERCIAL SUPPLIER
01-11-2022,Adults & Health,Rhythmic Care UK Ltd,Home Care - Private Contractors Payment,86.22,0,COMMERCIAL SUPPLIER
01-11-2022,Adults & Health,Rhythmic Care UK Ltd,Home Care - Private Contractors Payment,38.32,0,COMMERCIAL SUPPLIER
01-11-2022,Adults & Health,Rhythmic Care UK Ltd,Daycare - Private Contractors Payment,105.38,0,COMMERCIAL SUPPLIER
01-11-2022,Adults & Health,Rhythmic Care UK Ltd,Home Care - Private Contractors Payment,134.12,0,COMMERCIAL SUPPLIER
01-11-2022,Adults & Health,Rhythmic Care UK Ltd,Home Care - Private Contractors Payment,201.18,0,COMMERCIAL SUPPLIER
01-11-2022,Adults & Health,Rhythmic Care UK Ltd,Home Care - Private Contractors Payment,1226.24,0,COMMERCIAL SUPPLIER
01-11-2022,Adults & Health,Rhythmic Care UK Ltd,Daycare - Private Contractors Payment,38.32,0,COMMERCIAL SUPPLIER
01-11-2022,Adults & Health,Rhythmic Care UK Ltd,Home Care - Private Contractors Payment,301.77,0,COMMERCIAL SUPPLIER
01-11-2022,Adults & Health,Rhythmic Care UK Ltd,Home Care - Private Contractors Payment,871.78,0,COMMERCIAL SUPPLIER
01-11-2022,Adults & Health,Rhythmic Care UK Ltd,Home Care - Private Contractors Payment,234.71,0,COMMERCIAL SUPPLIER
01-11-2022,Adults & Health,Rhythmic Care UK Ltd,Home Care - Private Contractors Payment,335.3,0,COMMERCIAL SUPPLIER
01-11-2022,Adults & Health,Rhythmic Care UK Ltd,Home Care - Private Contractors Payment,469.42,0,COMMERCIAL SUPPLIER
01-11-2022,Adults & Health,Rhythmic Care UK Ltd,Home Care - Private Contractors Payment,143.7,0,COMMERCIAL SUPPLIER
01-11-2022,Adults & Health,Rhythmic Care UK Ltd,Home Care - Private Contractors Payment,843.04,0,COMMERCIAL SUPPLIER
01-11-2022,Adults & Health,Rhythmic Care UK Ltd,Home Care - Private Contractors Payment,57.48,0,COMMERCIAL SUPPLIER
01-11-2022,Adults & Health,Rhythmic Care UK Ltd,Daycare - Private Contractors Payment,28.74,0,COMMERCIAL SUPPLIER
01-11-2022,Adults & Health,Rhythmic Care UK Ltd,Home Care - Private Contractors Payment,95.8,0,COMMERCIAL SUPPLIER
01-11-2022,Adults & Health,Rhythmic Care UK Ltd,Daycare - Private Contractors Payment,57.48,0,COMMERCIAL SUPPLIER
01-11-2022,Adults & Health,Rhythmic Care UK Ltd,Home Care - Private Contractors Payment,14.37,0,COMMERCIAL SUPPLIER
01-11-2022,Adults & Health,Rhythmic Care UK Ltd,Home Care - Private Contractors Payment,268.24,0,COMMERCIAL SUPPLIER
01-11-2022,Adults & Health,Rhythmic Care UK Ltd,Home Care - Private Contractors Payment,19.16,0,COMMERCIAL SUPPLIER
01-11-2022,Adults & Health,Rhythmic Care UK Ltd,Respite Care - Private Contractors Payment,57.48,0,COMMERCIAL SUPPLIER
01-11-2022,Adults & Health,Rhythmic Care UK Ltd,Home Care - Private Contractors Payment,301.77,0,COMMERCIAL SUPPLIER
01-11-2022,Adults & Health,Rhythmic Care UK Ltd,Home Care - Private Contractors Payment,301.77,0,COMMERCIAL SUPPLIER
01-11-2022,Adults & Health,Rhythmic Care UK Ltd,Home Care - Private Contractors Payment,19.16,0,COMMERCIAL SUPPLIER
01-11-2022,Adults & Health,Rhythmic Care UK Ltd,Daycare - Private Contractors Payment,76.64,0,COMMERCIAL SUPPLIER
01-11-2022,Adults & Health,Rhythmic Care UK Ltd,Home Care - Private Contractors Payment,38.32,0,COMMERCIAL SUPPLIER
01-11-2022,Adults & Health,Rhythmic Care UK Ltd,Home Care - Private Contractors Payment,268.24,0,COMMERCIAL SUPPLIER
01-11-2022,Adults & Health,Rhythmic Care UK Ltd,Home Care - Private Contractors Payment,335.3,0,COMMERCIAL SUPPLIER
01-11-2022,Adults & Health,Rhythmic Care UK Ltd,Daycare - Private Contractors Payment,105.38,0,COMMERCIAL SUPPLIER
01-11-2022,Adults & Health,Rhythmic Care UK Ltd,Home Care - Private Contractors Payment,229.92,0,COMMERCIAL SUPPLIER
01-11-2022,Adults & Health,Rhythmic Care UK Ltd,Home Care - Private Contractors Payment,383.2,0,COMMERCIAL SUPPLIER
01-11-2022,Adults & Health,Rhythmic Care UK Ltd,Home Care - Private Contractors Payment,570.01,0,COMMERCIAL SUPPLIER
01-11-2022,Adults & Health,Rhythmic Care UK Ltd,Home Care - Private Contractors Payment,234.71,0,COMMERCIAL SUPPLIER
01-11-2022,Adults & Health,Rhythmic Care UK Ltd,Home Care - Private Contractors Payment,234.71,0,COMMERCIAL SUPPLIER
01-11-2022,Adults & Health,Rhythmic Care UK Ltd,Home Care - Private Contractors Payment,670.6,0,COMMERCIAL SUPPLIER
01-11-2022,Adults & Health,Rhythmic Care UK Ltd,Daycare - Private Contractors Payment,19.16,0,COMMERCIAL SUPPLIER
01-11-2022,Adults & Health,Rhythmic Care UK Ltd,Home Care - Private Contractors Payment,301.77,0,COMMERCIAL SUPPLIER
01-11-2022,Adults & Health,Rhythmic Care UK Ltd,Home Care - Private Contractors Payment,19.16,0,COMMERCIAL SUPPLIER
01-11-2022,Adults & Health,Rhythmic Care UK Ltd,Home Care - Private Contractors Payment,38.32,0,COMMERCIAL SUPPLIER
01-11-2022,Adults & Health,Rhythmic Care UK Ltd,Daycare - Private Contractors Payment,153.28,0,COMMERCIAL SUPPLIER
01-11-2022,Adults & Health,Rhythmic Care UK Ltd,Home Care - Private Contractors Payment,100.59,0,COMMERCIAL SUPPLIER
01-11-2022,Adults & Health,Rhythmic Care UK Ltd,Home Care - Private Contractors Payment,28.74,0,COMMERCIAL SUPPLIER
01-11-2022,Adults & Health,Rhythmic Care UK Ltd,Home Care - Private Contractors Payment,536.48,0,COMMERCIAL SUPPLIER
01-11-2022,Adults & Health,Rhythmic Care UK Ltd,Home Care - Private Contractors Payment,234.71,0,COMMERCIAL SUPPLIER
01-11-2022,Adults & Health,Rhythmic Care UK Ltd,Daycare - Private Contractors Payment,95.8,0,COMMERCIAL SUPPLIER
01-11-2022,Adults & Health,Rhythmic Care UK Ltd,Daycare - Private Contractors Payment,38.32,0,COMMERCIAL SUPPLIER
01-11-2022,Adults & Health,Rhythmic Care UK Ltd,Home Care - Private Contractors Payment,38.32,0,COMMERCIAL SUPPLIER
01-11-2022,Adults & Health,Rhythmic Care UK Ltd,Home Care - Private Contractors Payment,201.18,0,COMMERCIAL SUPPLIER
01-11-2022,Adults & Health,Rhythmic Care UK Ltd,Home Care - Private Contractors Payment,670.6,0,COMMERCIAL SUPPLIER
01-11-2022,Adults & Health,Rhythmic Care UK Ltd,Home Care - Private Contractors Payment,167.65,0,COMMERCIAL SUPPLIER
01-11-2022,Adults & Health,Rhythmic Care UK Ltd,Home Care - Private Contractors Payment,234.71,0,COMMERCIAL SUPPLIER
01-11-2022,Adults & Health,Rhythmic Care UK Ltd,Home Care - Private Contractors Payment,167.65,0,COMMERCIAL SUPPLIER
01-11-2022,Adults & Health,Rhythmic Care UK Ltd,Daycare - Private Contractors Payment,19.16,0,COMMERCIAL SUPPLIER
01-11-2022,Adults & Health,Rhythmic Care UK Ltd,Home Care - Private Contractors Payment,134.12,0,COMMERCIAL SUPPLIER
01-11-2022,Adults & Health,Rhythmic Care UK Ltd,Daycare - Private Contractors Payment,76.64,0,COMMERCIAL SUPPLIER
01-11-2022,Adults & Health,Rhythmic Care UK Ltd,Home Care - Private Contractors Payment,268.24,0,COMMERCIAL SUPPLIER
01-11-2022,Adults & Health,Rhythmic Care UK Ltd,Home Care - Private Contractors Payment,249.08,0,COMMERCIAL SUPPLIER
01-11-2022,Adults & Health,Rhythmic Care UK Ltd,Home Care - Private Contractors Payment,234.71,0,COMMERCIAL SUPPLIER
01-11-2022,Adults & Health,Rhythmic Care UK Ltd,Home Care - Private Contractors Payment,153.28,0,COMMERCIAL SUPPLIER
01-11-2022,Adults & Health,Rhythmic Care UK Ltd,Home Care - Private Contractors Payment,19.16,0,COMMERCIAL SUPPLIER
01-11-2022,Adults & Health,Rhythmic Care UK Ltd,Home Care - Private Contractors Payment,19.16,0,COMMERCIAL SUPPLIER
01-11-2022,Adults & Health,Rhythmic Care UK Ltd,Daycare - Private Contractors Payment,158.07,0,COMMERCIAL SUPPLIER
01-11-2022,Adults & Health,Rhythmic Care UK Ltd,Respite Care - Private Contractors Payment,57.48,0,COMMERCIAL SUPPLIER
01-11-2022,Adults & Health,Rhythmic Care UK Ltd,Home Care - Private Contractors Payment,19.16,0,COMMERCIAL SUPPLIER
01-11-2022,Adults & Health,Rhythmic Care UK Ltd,Home Care - Private Contractors Payment,191.6,0,COMMERCIAL SUPPLIER
01-11-2022,Adults & Health,Rhythmic Care UK Ltd,Respite Care - Private Contractors Payment,38.32,0,COMMERCIAL SUPPLIER
01-11-2022,Adults & Health,Rhythmic Care UK Ltd,Home Care - Private Contractors Payment,28.74,0,COMMERCIAL SUPPLIER
01-11-2022,Adults & Health,Rhythmic Care UK Ltd,Home Care - Private Contractors Payment,47.9,0,COMMERCIAL SUPPLIER
01-11-2022,Adults & Health,Rhythmic Care UK Ltd,Daycare - Private Contractors Payment,38.32,0,COMMERCIAL SUPPLIER
01-11-2022,Adults & Health,Rhythmic Care UK Ltd,Home Care - Private Contractors Payment,19.16,0,COMMERCIAL SUPPLIER
01-11-2022,Adults & Health,Rhythmic Care UK Ltd,Home Care - Private Contractors Payment,19.16,0,COMMERCIAL SUPPLIER
01-11-2022,Adults & Health,Rhythmic Care UK Ltd,Home Care - Private Contractors Payment,201.18,0,COMMERCIAL SUPPLIER
01-11-2022,Adults & Health,Rhythmic Care UK Ltd,Home Care - Private Contractors Payment,134.12,0,COMMERCIAL SUPPLIER
01-11-2022,Adults & Health,Rhythmic Care UK Ltd,Daycare - Private Contractors Payment,172.44,0,COMMERCIAL SUPPLIER
01-11-2022,Adults & Health,Rhythmic Care UK Ltd,Home Care - Private Contractors Payment,771.19,0,COMMERCIAL SUPPLIER
01-11-2022,Adults & Health,Rhythmic Care UK Ltd,Home Care - Private Contractors Payment,570.01,0,COMMERCIAL SUPPLIER
01-11-2022,Adults & Health,Rhythmic Care UK Ltd,Home Care - Private Contractors Payment,38.32,0,COMMERCIAL SUPPLIER
01-11-2022,Adults & Health,Rhythmic Care UK Ltd,Home Care - Private Contractors Payment,134.12,0,COMMERCIAL SUPPLIER
01-11-2022,Adults & Health,Rhythmic Care UK Ltd,Home Care - Private Contractors Payment,205.97,0,COMMERCIAL SUPPLIER
01-11-2022,Adults & Health,Rhythmic Care UK Ltd,Respite Care - Private Contractors Payment,67.06,0,COMMERCIAL SUPPLIER
01-11-2022,Adults & Health,Rhythmic Care UK Ltd,Daycare - Private Contractors Payment,19.16,0,COMMERCIAL SUPPLIER
01-11-2022,Adults & Health,Rhythmic Care UK Ltd,Home Care - Private Contractors Payment,301.77,0,COMMERCIAL SUPPLIER
01-11-2022,Adults & Health,Rhythmic Care UK Ltd,Home Care - Private Contractors Payment,234.71,0,COMMERCIAL SUPPLIER
01-11-2022,Adults & Health,Rhythmic Care UK Ltd,Home Care - Private Contractors Payment,234.71,0,COMMERCIAL SUPPLIER
01-11-2022,Adults & Health,Rhythmic Care UK Ltd,Daycare - Private Contractors Payment,38.32,0,COMMERCIAL SUPPLIER
01-11-2022,Adults & Health,Rhythmic Care UK Ltd,Home Care - Private Contractors Payment,234.71,0,COMMERCIAL SUPPLIER
01-11-2022,Adults & Health,Rhythmic Care UK Ltd,Home Care - Private Contractors Payment,536.48,0,COMMERCIAL SUPPLIER
01-11-2022,Adults & Health,Rhythmic Care UK Ltd,Daycare - Private Contractors Payment,28.74,0,COMMERCIAL SUPPLIER
01-11-2022,Adults & Health,Rhythmic Care UK Ltd,Home Care - Private Contractors Payment,28.74,0,COMMERCIAL SUPPLIER
01-11-2022,Adults & Health,Rhythmic Care UK Ltd,Home Care - Private Contractors Payment,804.72,0,COMMERCIAL SUPPLIER
01-11-2022,Adults & Health,Rhythmic Care UK Ltd,Home Care - Private Contractors Payment,167.65,0,COMMERCIAL SUPPLIER
01-11-2022,Adults & Health,Rhythmic Care UK Ltd,Home Care - Private Contractors Payment,244.29,0,COMMERCIAL SUPPLIER
01-11-2022,Adults & Health,Rhythmic Care UK Ltd,Home Care - Private Contractors Payment,19.16,0,COMMERCIAL SUPPLIER
01-11-2022,Adults & Health,Rhythmic Care UK Ltd,Home Care - Private Contractors Payment,234.71,0,COMMERCIAL SUPPLIER
01-11-2022,Adults & Health,Rhythmic Care UK Ltd,Daycare - Private Contractors Payment,19.16,0,COMMERCIAL SUPPLIER
01-11-2022,Adults & Health,Rhythmic Care UK Ltd,Home Care - Private Contractors Payment,277.82,0,COMMERCIAL SUPPLIER
01-11-2022,Adults & Health,Rhythmic Care UK Ltd,Home Care - Private Contractors Payment,335.3,0,COMMERCIAL SUPPLIER
01-11-2022,Adults & Health,Rhythmic Care UK Ltd,Daycare - Private Contractors Payment,91.01,0,COMMERCIAL SUPPLIER
01-11-2022,Adults & Health,Rhythmic Care UK Ltd,Home Care - Private Contractors Payment,19.16,0,COMMERCIAL SUPPLIER
01-11-2022,Adults & Health,Rhythmic Care UK Ltd,Home Care - Private Contractors Payment,771.19,0,COMMERCIAL SUPPLIER
01-11-2022,Adults & Health,Rhythmic Care UK Ltd,Home Care - Private Contractors Payment,134.12,0,COMMERCIAL SUPPLIER
01-11-2022,Adults & Health,Rhythmic Care UK Ltd,Home Care - Private Contractors Payment,234.71,0,COMMERCIAL SUPPLIER
01-11-2022,Adults & Health,Rhythmic Care UK Ltd,Home Care - Private Contractors Payment,316.14,0,COMMERCIAL SUPPLIER
01-11-2022,Adults & Health,Rhythmic Care UK Ltd,Home Care - Private Contractors Payment,9.58,0,COMMERCIAL SUPPLIER
01-11-2022,Adults & Health,Rhythmic Care UK Ltd,Home Care - Private Contractors Payment,225.13,0,COMMERCIAL SUPPLIER
01-11-2022,Adults & Health,Rhythmic Care UK Ltd,Home Care - Private Contractors Payment,234.71,0,COMMERCIAL SUPPLIER
01-11-2022,Adults & Health,Rhythmic Care UK Ltd,Home Care - Private Contractors Payment,201.18,0,COMMERCIAL SUPPLIER
01-11-2022,Adults & Health,Rhythmic Care UK Ltd,Home Care - Private Contractors Payment,38.32,0,COMMERCIAL SUPPLIER
01-11-2022,Adults & Health,Rhythmic Care UK Ltd,Home Care - Private Contractors Payment,234.71,0,COMMERCIAL SUPPLIER
01-11-2022,Adults & Health,Rhythmic Care UK Ltd,Respite Care - Private Contractors Payment,38.32,0,COMMERCIAL SUPPLIER
01-11-2022,Adults & Health,Rhythmic Care UK Ltd,Home Care - Private Contractors Payment,167.65,0,COMMERCIAL SUPPLIER
01-11-2022,Adults & Health,Rhythmic Care UK Ltd,Daycare - Private Contractors Payment,38.32,0,COMMERCIAL SUPPLIER
01-11-2022,Adults & Health,Rhythmic Care UK Ltd,Home Care - Private Contractors Payment,301.77,0,COMMERCIAL SUPPLIER
01-11-2022,Adults & Health,Rhythmic Care UK Ltd,Home Care - Private Contractors Payment,234.71,0,COMMERCIAL SUPPLIER
01-11-2022,Adults & Health,Rhythmic Care UK Ltd,Home Care - Private Contractors Payment,167.65,0,COMMERCIAL SUPPLIER
01-11-2022,Adults & Health,Rhythmic Care UK Ltd,Home Care - Private Contractors Payment,167.65,0,COMMERCIAL SUPPLIER
01-11-2022,Adults & Health,Rhythmic Care UK Ltd,Home Care - Private Contractors Payment,268.24,0,COMMERCIAL SUPPLIER
01-11-2022,Adults & Health,Rhythmic Care UK Ltd,Home Care - Private Contractors Payment,234.71,0,COMMERCIAL SUPPLIER
01-11-2022,Adults & Health,Rhythmic Care UK Ltd,Home Care - Private Contractors Payment,234.71,0,COMMERCIAL SUPPLIER
01-11-2022,Adults & Health,Rhythmic Care UK Ltd,Home Care - Private Contractors Payment,167.65,0,COMMERCIAL SUPPLIER
01-11-2022,Adults & Health,Rhythmic Care UK Ltd,Home Care - Private Contractors Payment,268.24,0,COMMERCIAL SUPPLIER
01-11-2022,Adults & Health,Rhythmic Care UK Ltd,Home Care - Private Contractors Payment,301.77,0,COMMERCIAL SUPPLIER
01-11-2022,Adults & Health,Rhythmic Care UK Ltd,Home Care - Private Contractors Payment,57.48,0,COMMERCIAL SUPPLIER
01-11-2022,Adults & Health,Rhythmic Care UK Ltd,Home Care - Private Contractors Payment,301.77,0,COMMERCIAL SUPPLIER
01-11-2022,Adults & Health,Rhythmic Care UK Ltd,Home Care - Private Contractors Payment,19.16,0,COMMERCIAL SUPPLIER
01-11-2022,Adults & Health,Rhythmic Care UK Ltd,Home Care - Private Contractors Payment,19.16,0,COMMERCIAL SUPPLIER
01-11-2022,Adults & Health,Rhythmic Care UK Ltd,Home Care - Private Contractors Payment,335.3,0,COMMERCIAL SUPPLIER
01-11-2022,Adults & Health,Rhythmic Care UK Ltd,Home Care - Private Contractors Payment,301.77,0,COMMERCIAL SUPPLIER
01-11-2022,Adults & Health,Rhythmic Care UK Ltd,Home Care - Private Contractors Payment,57.48,0,COMMERCIAL SUPPLIER
01-11-2022,Adults & Health,Rhythmic Care UK Ltd,Home Care - Private Contractors Payment,570.01,0,COMMERCIAL SUPPLIER
01-11-2022,Adults & Health,Rhythmic Care UK Ltd,Home Care - Private Contractors Payment,38.32,0,COMMERCIAL SUPPLIER
01-11-2022,Adults & Health,Rhythmic Care UK Ltd,Home Care - Private Contractors Payment,536.48,0,COMMERCIAL SUPPLIER
01-11-2022,Adults & Health,Rhythmic Care UK Ltd,Respite Care - Private Contractors Payment,38.32,0,COMMERCIAL SUPPLIER
01-11-2022,Adults & Health,Rhythmic Care UK Ltd,Home Care - Private Contractors Payment,167.65,0,COMMERCIAL SUPPLIER
01-11-2022,Adults & Health,Rhythmic Care UK Ltd,Home Care - Private Contractors Payment,449.28,0,COMMERCIAL SUPPLIER
01-11-2022,Adults & Health,Rhythmic Care UK Ltd,Home Care - Private Contractors Payment,201.18,0,COMMERCIAL SUPPLIER
01-11-2022,Adults & Health,Rhythmic Care UK Ltd,Home Care - Private Contractors Payment,100.59,0,COMMERCIAL SUPPLIER
01-11-2022,Adults & Health,Rhythmic Care UK Ltd,Home Care - Private Contractors Payment,23.95,0,COMMERCIAL SUPPLIER
01-11-2022,Adults & Health,Rhythmic Care UK Ltd,Home Care - Private Contractors Payment,100.59,0,COMMERCIAL SUPPLIER
01-11-2022,Adults & Health,Rhythmic Care UK Ltd,Home Care - Private Contractors Payment,536.48,0,COMMERCIAL SUPPLIER
01-11-2022,Adults & Health,Rhythmic Care UK Ltd,Home Care - Private Contractors Payment,201.18,0,COMMERCIAL SUPPLIER
01-11-2022,Adults & Health,Rhythmic Care UK Ltd,Daycare - Private Contractors Payment,38.32,0,COMMERCIAL SUPPLIER
01-11-2022,Adults & Health,Rhythmic Care UK Ltd,Home Care - Private Contractors Payment,153.28,0,COMMERCIAL SUPPLIER
01-11-2022,Adults & Health,Rhythmic Care UK Ltd,Home Care - Private Contractors Payment,19.16,0,COMMERCIAL SUPPLIER
01-11-2022,Adults & Health,Rhythmic Care UK Ltd,Home Care - Private Contractors Payment,804.72,0,COMMERCIAL SUPPLIER
01-11-2022,Adults & Health,Rhythmic Care UK Ltd,Home Care - Private Contractors Payment,19.16,0,COMMERCIAL SUPPLIER
01-11-2022,Adults & Health,Rhythmic Care UK Ltd,Home Care - Private Contractors Payment,335.3,0,COMMERCIAL SUPPLIER
01-11-2022,Adults & Health,Rhythmic Care UK Ltd,Home Care - Private Contractors Payment,373.62,0,COMMERCIAL SUPPLIER
01-11-2022,Adults & Health,Rhythmic Care UK Ltd,Respite Care - Private Contractors Payment,76.64,0,COMMERCIAL SUPPLIER
01-11-2022,Adults & Health,Rhythmic Care UK Ltd,Home Care - Private Contractors Payment,67.06,0,COMMERCIAL SUPPLIER
01-11-2022,Adults & Health,Rhythmic Care UK Ltd,Home Care - Private Contractors Payment,19.16,0,COMMERCIAL SUPPLIER
01-11-2022,Adults & Health,Rhythmic Care UK Ltd,Home Care - Private Contractors Payment,19.16,0,COMMERCIAL SUPPLIER
01-11-2022,Adults & Health,Rhythmic Care UK Ltd,Daycare - Private Contractors Payment,76.64,0,COMMERCIAL SUPPLIER
01-11-2022,Adults & Health,Rhythmic Care UK Ltd,Home Care - Private Contractors Payment,234.71,0,COMMERCIAL SUPPLIER
01-11-2022,Adults & Health,Rhythmic Care UK Ltd,Home Care - Private Contractors Payment,234.71,0,COMMERCIAL SUPPLIER
01-11-2022,Adults & Health,Rhythmic Care UK Ltd,Daycare - Private Contractors Payment,38.32,0,COMMERCIAL SUPPLIER
01-11-2022,Adults & Health,Rhythmic Care UK Ltd,Home Care - Private Contractors Payment,134.12,0,COMMERCIAL SUPPLIER
01-11-2022,Adults & Health,Rhythmic Care UK Ltd,Daycare - Private Contractors Payment,38.32,0,COMMERCIAL SUPPLIER
01-11-2022,Adults & Health,Rhythmic Care UK Ltd,Daycare - Private Contractors Payment,134.12,0,COMMERCIAL SUPPLIER
01-11-2022,Adults & Health,Rhythmic Care UK Ltd,Home Care - Private Contractors Payment,201.18,0,COMMERCIAL SUPPLIER
01-11-2022,Adults & Health,Rhythmic Care UK Ltd,Home Care - Private Contractors Payment,234.71,0,COMMERCIAL SUPPLIER
01-11-2022,Adults & Health,Rhythmic Care UK Ltd,Daycare - Private Contractors Payment,57.48,0,COMMERCIAL SUPPLIER
01-11-2022,Adults & Health,Rhythmic Care UK Ltd,Daycare - Private Contractors Payment,158.07,0,COMMERCIAL SUPPLIER
01-11-2022,Adults & Health,Rhythmic Care UK Ltd,Home Care - Private Contractors Payment,268.24,0,COMMERCIAL SUPPLIER
01-11-2022,Adults & Health,Rhythmic Care UK Ltd,Daycare - Private Contractors Payment,19.16,0,COMMERCIAL SUPPLIER
01-11-2022,Adults & Health,Rhythmic Care UK Ltd,Home Care - Private Contractors Payment,843.04,0,COMMERCIAL SUPPLIER
01-11-2022,Adults & Health,Rhythmic Care UK Ltd,Home Care - Private Contractors Payment,43.11,0,COMMERCIAL SUPPLIER
01-11-2022,Adults & Health,Rhythmic Care UK Ltd,Daycare - Private Contractors Payment,19.16,0,COMMERCIAL SUPPLIER
01-11-2022,Adults & Health,Rhythmic Care UK Ltd,Home Care - Private Contractors Payment,536.48,0,COMMERCIAL SUPPLIER
01-11-2022,Adults & Health,Rhythmic Care UK Ltd,Home Care - Private Contractors Payment,38.32,0,COMMERCIAL SUPPLIER
01-11-2022,Adults & Health,Rhythmic Care UK Ltd,Home Care - Private Contractors Payment,38.32,0,COMMERCIAL SUPPLIER
01-11-2022,Adults & Health,Rhythmic Care UK Ltd,Home Care - Private Contractors Payment,134.12,0,COMMERCIAL SUPPLIER
01-11-2022,Adults & Health,Rhythmic Care UK Ltd,Daycare - Private Contractors Payment,57.48,0,COMMERCIAL SUPPLIER
01-11-2022,Adults & Health,Rhythmic Care UK Ltd,Daycare - Private Contractors Payment,19.16,0,COMMERCIAL SUPPLIER
01-11-2022,Adults & Health,Rhythmic Care UK Ltd,Home Care - Private Contractors Payment,100.59,0,COMMERCIAL SUPPLIER
01-11-2022,Adults & Health,Rhythmic Care UK Ltd,Home Care - Private Contractors Payment,134.12,0,COMMERCIAL SUPPLIER
01-11-2022,Adults & Health,Rhythmic Care UK Ltd,Home Care - Private Contractors Payment,19.16,0,COMMERCIAL SUPPLIER
01-11-2022,Adults & Health,Rhythmic Care UK Ltd,Home Care - Private Contractors Payment,301.77,0,COMMERCIAL SUPPLIER
01-11-2022,Adults & Health,Rhythmic Care UK Ltd,Home Care - Private Contractors Payment,67.06,0,COMMERCIAL SUPPLIER
01-11-2022,Adults & Health,Rhythmic Care UK Ltd,Home Care - Private Contractors Payment,637.07,0,COMMERCIAL SUPPLIER
01-11-2022,Adults & Health,Rhythmic Care UK Ltd,Daycare - Private Contractors Payment,38.32,0,COMMERCIAL SUPPLIER
01-11-2022,Adults & Health,Rhythmic Care UK Ltd,Daycare - Private Contractors Payment,38.32,0,COMMERCIAL SUPPLIER
01-11-2022,Adults & Health,Rhythmic Care UK Ltd,Home Care - Private Contractors Payment,234.71,0,COMMERCIAL SUPPLIER
01-11-2022,Adults & Health,Rhythmic Care UK Ltd,Home Care - Private Contractors Payment,57.48,0,COMMERCIAL SUPPLIER
01-11-2022,Adults & Health,Rhythmic Care UK Ltd,Daycare - Private Contractors Payment,28.74,0,COMMERCIAL SUPPLIER
01-11-2022,Adults & Health,Rhythmic Care UK Ltd,Home Care - Private Contractors Payment,201.18,0,COMMERCIAL SUPPLIER
01-11-2022,Adults & Health,Rhythmic Care UK Ltd,Home Care - Private Contractors Payment,134.12,0,COMMERCIAL SUPPLIER
01-11-2022,Adults & Health,Rhythmic Care UK Ltd,Daycare - Private Contractors Payment,38.32,0,COMMERCIAL SUPPLIER
01-11-2022,Adults & Health,Rhythmic Care UK Ltd,Home Care - Private Contractors Payment,38.32,0,COMMERCIAL SUPPLIER
01-11-2022,Adults & Health,Rhythmic Care UK Ltd,Home Care - Private Contractors Payment,167.65,0,COMMERCIAL SUPPLIER
01-11-2022,Adults & Health,Rhythmic Care UK Ltd,Home Care - Private Contractors Payment,402.36,0,COMMERCIAL SUPPLIER
01-11-2022,Adults & Health,Rhythmic Care UK Ltd,Home Care - Private Contractors Payment,234.71,0,COMMERCIAL SUPPLIER
01-11-2022,Adults & Health,Rhythmic Care UK Ltd,Home Care - Private Contractors Payment,670.6,0,COMMERCIAL SUPPLIER
01-11-2022,Adults & Health,Rhythmic Care UK Ltd,Daycare - Private Contractors Payment,28.74,0,COMMERCIAL SUPPLIER
01-11-2022,Adults & Health,Rhythmic Care UK Ltd,Home Care - Private Contractors Payment,234.71,0,COMMERCIAL SUPPLIER
01-11-2022,Adults & Health,Rhythmic Care UK Ltd,Home Care - Private Contractors Payment,38.32,0,COMMERCIAL SUPPLIER
01-11-2022,Adults & Health,Rhythmic Care UK Ltd,Daycare - Private Contractors Payment,38.32,0,COMMERCIAL SUPPLIER
01-11-2022,Adults & Health,Rhythmic Care UK Ltd,Home Care - Private Contractors Payment,86.22,0,COMMERCIAL SUPPLIER
01-11-2022,Adults & Health,Rhythmic Care UK Ltd,Daycare - Private Contractors Payment,134.12,0,COMMERCIAL SUPPLIER
01-11-2022,Adults & Health,Rhythmic Care UK Ltd,Home Care - Private Contractors Payment,201.18,0,COMMERCIAL SUPPLIER
01-11-2022,Adults & Health,Rhythmic Care UK Ltd,Daycare - Private Contractors Payment,76.64,0,COMMERCIAL SUPPLIER
01-11-2022,Adults & Health,Rhythmic Care UK Ltd,Home Care - Private Contractors Payment,301.77,0,COMMERCIAL SUPPLIER
01-11-2022,Adults & Health,Rhythmic Care UK Ltd,Home Care - Private Contractors Payment,402.36,0,COMMERCIAL SUPPLIER
01-11-2022,Adults & Health,Rhythmic Care UK Ltd,Home Care - Private Contractors Payment,86.22,0,COMMERCIAL SUPPLIER
01-11-2022,Adults & Health,Rhythmic Care UK Ltd,Home Care - Private Contractors Payment,100.59,0,COMMERCIAL SUPPLIER
01-11-2022,Adults & Health,Rhythmic Care UK Ltd,Home Care - Private Contractors Payment,229.92,0,COMMERCIAL SUPPLIER
01-11-2022,Adults & Health,Rhythmic Care UK Ltd,Home Care - Private Contractors Payment,316.14,0,COMMERCIAL SUPPLIER
01-11-2022,Adults & Health,Rhythmic Care UK Ltd,Home Care - Private Contractors Payment,100.59,0,COMMERCIAL SUPPLIER
01-11-2022,Adults & Health,Rhythmic Care UK Ltd,Home Care - Private Contractors Payment,205.97,0,COMMERCIAL SUPPLIER
01-11-2022,Adults & Health,Rhythmic Care UK Ltd,Home Care - Private Contractors Payment,167.65,0,COMMERCIAL SUPPLIER
01-11-2022,Adults & Health,Rhythmic Care UK Ltd,Home Care - Private Contractors Payment,435.89,0,COMMERCIAL SUPPLIER
01-11-2022,Adults & Health,Rhythmic Care UK Ltd,Home Care - Private Contractors Payment,114.96,0,COMMERCIAL SUPPLIER
01-11-2022,Adults & Health,Rhythmic Care UK Ltd,Respite Care - Private Contractors Payment,67.06,0,COMMERCIAL SUPPLIER
01-11-2022,Adults & Health,Rhythmic Care UK Ltd,Daycare - Private Contractors Payment,38.32,0,COMMERCIAL SUPPLIER
01-11-2022,Adults & Health,Rhythmic Care UK Ltd,Daycare - Private Contractors Payment,57.48,0,COMMERCIAL SUPPLIER
01-11-2022,Adults & Health,Rhythmic Care UK Ltd,Home Care - Private Contractors Payment,670.6,0,COMMERCIAL SUPPLIER
01-11-2022,Adults & Health,Rhythmic Care UK Ltd,Home Care - Private Contractors Payment,234.71,0,COMMERCIAL SUPPLIER
01-11-2022,Adults & Health,Rhythmic Care UK Ltd,Home Care - Private Contractors Payment,76.64,0,COMMERCIAL SUPPLIER
01-11-2022,Adults & Health,Rhythmic Care UK Ltd,Home Care - Private Contractors Payment,100.59,0,COMMERCIAL SUPPLIER
01-11-2022,Adults & Health,Rhythmic Care UK Ltd,Daycare - Private Contractors Payment,38.32,0,COMMERCIAL SUPPLIER
01-11-2022,Adults & Health,Rhythmic Care UK Ltd,Home Care - Private Contractors Payment,301.77,0,COMMERCIAL SUPPLIER
01-11-2022,Adults & Health,Rhythmic Care UK Ltd,Home Care - Private Contractors Payment,167.65,0,COMMERCIAL SUPPLIER
01-11-2022,Adults & Health,Rhythmic Care UK Ltd,Home Care - Private Contractors Payment,570.01,0,COMMERCIAL SUPPLIER
01-11-2022,Adults & Health,Rhythmic Care UK Ltd,Home Care - Private Contractors Payment,38.32,0,COMMERCIAL SUPPLIER
01-11-2022,Adults & Health,Rhythmic Care UK Ltd,Home Care - Private Contractors Payment,220.34,0,COMMERCIAL SUPPLIER
01-11-2022,Adults & Health,Rhythmic Care UK Ltd,Home Care - Private Contractors Payment,38.32,0,COMMERCIAL SUPPLIER
01-11-2022,Adults & Health,Rhythmic Care UK Ltd,Daycare - Private Contractors Payment,57.48,0,COMMERCIAL SUPPLIER
01-11-2022,Adults & Health,Rhythmic Care UK Ltd,Home Care - Private Contractors Payment,201.18,0,COMMERCIAL SUPPLIER
01-11-2022,Adults & Health,Rhythmic Care UK Ltd,Home Care - Private Contractors Payment,19.16,0,COMMERCIAL SUPPLIER
01-11-2022,Adults & Health,Rhythmic Care UK Ltd,Daycare - Private Contractors Payment,38.32,0,COMMERCIAL SUPPLIER
01-11-2022,Adults & Health,Rhythmic Care UK Ltd,Home Care - Private Contractors Payment,570.01,0,COMMERCIAL SUPPLIER
01-11-2022,Adults & Health,Rhythmic Care UK Ltd,Home Care - Private Contractors Payment,19.16,0,COMMERCIAL SUPPLIER
01-11-2022,Adults & Health,Rhythmic Care UK Ltd,Home Care - Private Contractors Payment,234.71,0,COMMERCIAL SUPPLIER
01-11-2022,Adults & Health,Rhythmic Care UK Ltd,Home Care - Private Contractors Payment,234.71,0,COMMERCIAL SUPPLIER
01-11-2022,Adults & Health,Rhythmic Care UK Ltd,Respite Care - Private Contractors Payment,38.32,0,COMMERCIAL SUPPLIER
01-11-2022,Adults & Health,Rhythmic Care UK Ltd,Home Care - Private Contractors Payment,570.01,0,COMMERCIAL SUPPLIER
01-11-2022,Adults & Health,Rhythmic Care UK Ltd,Home Care - Private Contractors Payment,100.59,0,COMMERCIAL SUPPLIER
01-11-2022,Adults & Health,Rhythmic Care UK Ltd,Respite Care - Private Contractors Payment,57.48,0,COMMERCIAL SUPPLIER
01-11-2022,Adults & Health,Rhythmic Care UK Ltd,Respite Care - Private Contractors Payment,76.64,0,COMMERCIAL SUPPLIER
01-11-2022,Adults & Health,Rhythmic Care UK Ltd,Home Care - Private Contractors Payment,402.36,0,COMMERCIAL SUPPLIER
01-11-2022,Adults & Health,Rhythmic Care UK Ltd,Home Care - Private Contractors Payment,536.48,0,COMMERCIAL SUPPLIER
01-11-2022,Adults & Health,Rhythmic Care UK Ltd,Home Care - Private Contractors Payment,167.65,0,COMMERCIAL SUPPLIER
01-11-2022,Adults & Health,Rhythmic Care UK Ltd,Home Care - Private Contractors Payment,201.18,0,COMMERCIAL SUPPLIER
01-11-2022,Adults & Health,Rhythmic Care UK Ltd,Home Care - Private Contractors Payment,67.06,0,COMMERCIAL SUPPLIER
01-11-2022,Adults & Health,Rhythmic Care UK Ltd,Home Care - Private Contractors Payment,234.71,0,COMMERCIAL SUPPLIER
01-11-2022,Adults & Health,Rhythmic Care UK Ltd,Home Care - Private Contractors Payment,19.16,0,COMMERCIAL SUPPLIER
01-11-2022,Adults & Health,Rhythmic Care UK Ltd,Home Care - Private Contractors Payment,57.48,0,COMMERCIAL SUPPLIER
01-11-2022,Adults & Health,Rhythmic Care UK Ltd,Daycare - Private Contractors Payment,57.48,0,COMMERCIAL SUPPLIER
01-11-2022,Adults & Health,Rhythmic Care UK Ltd,Home Care - Private Contractors Payment,134.12,0,COMMERCIAL SUPPLIER
01-11-2022,Adults & Health,Rhythmic Care UK Ltd,Home Care - Private Contractors Payment,570.01,0,COMMERCIAL SUPPLIER
01-11-2022,Adults & Health,Rhythmic Care UK Ltd,Home Care - Private Contractors Payment,210.76,0,COMMERCIAL SUPPLIER
01-11-2022,Adults & Health,Rhythmic Care UK Ltd,Home Care - Private Contractors Payment,167.65,0,COMMERCIAL SUPPLIER
01-11-2022,Adults & Health,Rhythmic Care UK Ltd,Home Care - Private Contractors Payment,67.06,0,COMMERCIAL SUPPLIER
01-11-2022,Adults & Health,Rhythmic Care UK Ltd,Home Care - Private Contractors Payment,1226.24,0,COMMERCIAL SUPPLIER
01-11-2022,Adults & Health,Rhythmic Care UK Ltd,Daycare - Private Contractors Payment,28.74,0,COMMERCIAL SUPPLIER
01-11-2022,Adults & Health,Rhythmic Care UK Ltd,Home Care - Private Contractors Payment,19.16,0,COMMERCIAL SUPPLIER
01-11-2022,Adults & Health,Rhythmic Care UK Ltd,Daycare - Private Contractors Payment,38.32,0,COMMERCIAL SUPPLIER
01-11-2022,Adults & Health,Rhythmic Care UK Ltd,Home Care - Private Contractors Payment,100.59,0,COMMERCIAL SUPPLIER
01-11-2022,Adults & Health,Rhythmic Care UK Ltd,Home Care - Private Contractors Payment,507.74,0,COMMERCIAL SUPPLIER
01-11-2022,Adults & Health,Rhythmic Care UK Ltd,Home Care - Private Contractors Payment,76.64,0,COMMERCIAL SUPPLIER
01-11-2022,Adults & Health,Rhythmic Care UK Ltd,Home Care - Private Contractors Payment,435.89,0,COMMERCIAL SUPPLIER
01-11-2022,Adults & Health,Rhythmic Care UK Ltd,Daycare - Private Contractors Payment,38.32,0,COMMERCIAL SUPPLIER
01-11-2022,Adults & Health,Rhythmic Care UK Ltd,Respite Care - Private Contractors Payment,38.32,0,COMMERCIAL SUPPLIER
01-11-2022,Adults & Health,Rhythmic Care UK Ltd,Daycare - Private Contractors Payment,105.38,0,COMMERCIAL SUPPLIER
01-11-2022,Adults & Health,Rhythmic Care UK Ltd,Home Care - Private Contractors Payment,201.18,0,COMMERCIAL SUPPLIER
01-11-2022,Adults & Health,Rhythmic Care UK Ltd,Home Care - Private Contractors Payment,234.71,0,COMMERCIAL SUPPLIER
01-11-2022,Adults & Health,Rhythmic Care UK Ltd,Home Care - Private Contractors Payment,57.48,0,COMMERCIAL SUPPLIER
01-11-2022,Adults & Health,Rhythmic Care UK Ltd,Home Care - Private Contractors Payment,167.65,0,COMMERCIAL SUPPLIER
01-11-2022,Adults & Health,Rhythmic Care UK Ltd,Home Care - Private Contractors Payment,368.83,0,COMMERCIAL SUPPLIER
01-11-2022,Adults & Health,Rhythmic Care UK Ltd,Home Care - Private Contractors Payment,19.16,0,COMMERCIAL SUPPLIER
01-11-2022,Adults & Health,Rhythmic Care UK Ltd,Daycare - Private Contractors Payment,19.16,0,COMMERCIAL SUPPLIER
01-11-2022,Adults & Health,Rhythmic Care UK Ltd,Home Care - Private Contractors Payment,28.74,0,COMMERCIAL SUPPLIER
01-11-2022,Adults & Health,Rhythmic Care UK Ltd,Home Care - Private Contractors Payment,19.16,0,COMMERCIAL SUPPLIER
01-11-2022,Adults & Health,Rhythmic Care UK Ltd,Home Care - Private Contractors Payment,234.71,0,COMMERCIAL SUPPLIER
01-11-2022,Adults & Health,Rhythmic Care UK Ltd,Daycare - Private Contractors Payment,373.62,0,COMMERCIAL SUPPLIER
01-11-2022,Adults & Health,Rhythmic Care UK Ltd,Home Care - Private Contractors Payment,143.7,0,COMMERCIAL SUPPLIER
01-11-2022,Adults & Health,Rhythmic Care UK Ltd,Home Care - Private Contractors Payment,134.12,0,COMMERCIAL SUPPLIER
01-11-2022,Adults & Health,Rhythmic Care UK Ltd,Daycare - Private Contractors Payment,38.32,0,COMMERCIAL SUPPLIER
01-11-2022,Adults & Health,Rhythmic Care UK Ltd,Home Care - Private Contractors Payment,234.71,0,COMMERCIAL SUPPLIER
01-11-2022,Adults & Health,Rhythmic Care UK Ltd,Home Care - Private Contractors Payment,201.18,0,COMMERCIAL SUPPLIER
01-11-2022,Adults & Health,Rhythmic Care UK Ltd,Home Care - Private Contractors Payment,134.12,0,COMMERCIAL SUPPLIER
01-11-2022,Adults & Health,Rhythmic Care UK Ltd,Home Care - Private Contractors Payment,239.5,0,COMMERCIAL SUPPLIER
01-11-2022,Adults & Health,Rhythmic Care UK Ltd,Daycare - Private Contractors Payment,38.32,0,COMMERCIAL SUPPLIER
01-11-2022,Adults & Health,Rhythmic Care UK Ltd,Home Care - Private Contractors Payment,201.18,0,COMMERCIAL SUPPLIER
01-11-2022,Adults & Health,Rhythmic Care UK Ltd,Home Care - Private Contractors Payment,205.97,0,COMMERCIAL SUPPLIER
01-11-2022,Adults & Health,Rhythmic Care UK Ltd,Home Care - Private Contractors Payment,301.77,0,COMMERCIAL SUPPLIER
01-11-2022,Adults & Health,Rhythmic Care UK Ltd,Home Care - Private Contractors Payment,469.42,0,COMMERCIAL SUPPLIER
01-11-2022,Adults & Health,Rhythmic Care UK Ltd,Home Care - Private Contractors Payment,215.55,0,COMMERCIAL SUPPLIER
01-11-2022,Adults & Health,Rhythmic Care UK Ltd,Daycare - Private Contractors Payment,134.12,0,COMMERCIAL SUPPLIER
01-11-2022,Adults & Health,Rhythmic Care UK Ltd,Home Care - Private Contractors Payment,19.16,0,COMMERCIAL SUPPLIER
01-11-2022,Adults & Health,Rhythmic Care UK Ltd,Home Care - Private Contractors Payment,19.16,0,COMMERCIAL SUPPLIER
01-11-2022,Adults & Health,Rhythmic Care UK Ltd,Home Care - Private Contractors Payment,167.65,0,COMMERCIAL SUPPLIER
01-11-2022,Adults & Health,Rhythmic Care UK Ltd,Home Care - Private Contractors Payment,570.01,0,COMMERCIAL SUPPLIER
01-11-2022,Adults & Health,Rhythmic Care UK Ltd,Home Care - Private Contractors Payment,201.18,0,COMMERCIAL SUPPLIER
01-11-2022,Adults & Health,Rhythmic Care UK Ltd,Daycare - Private Contractors Payment,19.16,0,COMMERCIAL SUPPLIER
01-11-2022,Adults & Health,Rhythmic Care UK Ltd,Home Care - Private Contractors Payment,167.65,0,COMMERCIAL SUPPLIER
01-11-2022,Adults & Health,Rhythmic Care UK Ltd,Home Care - Private Contractors Payment,167.65,0,COMMERCIAL SUPPLIER
01-11-2022,Adults & Health,Rhythmic Care UK Ltd,Home Care - Private Contractors Payment,19.16,0,COMMERCIAL SUPPLIER
01-11-2022,Adults & Health,Rhythmic Care UK Ltd,Home Care - Private Contractors Payment,234.71,0,COMMERCIAL SUPPLIER
01-11-2022,Adults & Health,Rhythmic Care UK Ltd,Home Care - Private Contractors Payment,670.6,0,COMMERCIAL SUPPLIER
01-11-2022,Adults & Health,Rhythmic Care UK Ltd,Respite Care - Private Contractors Payment,38.32,0,COMMERCIAL SUPPLIER
01-11-2022,Adults & Health,Rhythmic Care UK Ltd,Home Care - Private Contractors Payment,167.65,0,COMMERCIAL SUPPLIER
01-11-2022,Adults & Health,Rhythmic Care UK Ltd,Home Care - Private Contractors Payment,19.16,0,COMMERCIAL SUPPLIER
01-11-2022,Adults & Health,Rhythmic Care UK Ltd,Home Care - Private Contractors Payment,301.77,0,COMMERCIAL SUPPLIER
01-11-2022,Adults & Health,Rhythmic Care UK Ltd,Respite Care - Private Contractors Payment,38.32,0,COMMERCIAL SUPPLIER
01-11-2022,Adults & Health,Rhythmic Care UK Ltd,Home Care - Private Contractors Payment,86.22,0,COMMERCIAL SUPPLIER
01-11-2022,Adults & Health,Rhythmic Care UK Ltd,Home Care - Private Contractors Payment,292.19,0,COMMERCIAL SUPPLIER
01-11-2022,Adults & Health,Rhythmic Care UK Ltd,Daycare - Private Contractors Payment,28.74,0,COMMERCIAL SUPPLIER
01-11-2022,Adults & Health,Rhythmic Care UK Ltd,Home Care - Private Contractors Payment,28.74,0,COMMERCIAL SUPPLIER
01-11-2022,Adults & Health,Rhythmic Care UK Ltd,Home Care - Private Contractors Payment,67.06,0,COMMERCIAL SUPPLIER
01-11-2022,Adults & Health,Rhythmic Care UK Ltd,Home Care - Private Contractors Payment,301.77,0,COMMERCIAL SUPPLIER
01-11-2022,Adults & Health,Rhythmic Care UK Ltd,Daycare - Private Contractors Payment,134.12,0,COMMERCIAL SUPPLIER
01-11-2022,Adults & Health,Rhythmic Care UK Ltd,Daycare - Private Contractors Payment,19.16,0,COMMERCIAL SUPPLIER
01-11-2022,Adults & Health,Rhythmic Care UK Ltd,Home Care - Private Contractors Payment,469.42,0,COMMERCIAL SUPPLIER
01-11-2022,Adults & Health,Rhythmic Care UK Ltd,Daycare - Private Contractors Payment,38.32,0,COMMERCIAL SUPPLIER
01-11-2022,Adults & Health,Rhythmic Care UK Ltd,Home Care - Private Contractors Payment,100.59,0,COMMERCIAL SUPPLIER
01-11-2022,Adults & Health,Rhythmic Care UK Ltd,Daycare - Private Contractors Payment,38.32,0,COMMERCIAL SUPPLIER
01-11-2022,Adults & Health,Rhythmic Care UK Ltd,Daycare - Private Contractors Payment,708.92,0,COMMERCIAL SUPPLIER
01-11-2022,Adults & Health,Rhythmic Care UK Ltd,Home Care - Private Contractors Payment,38.32,0,COMMERCIAL SUPPLIER
01-11-2022,Adults & Health,Rhythmic Care UK Ltd,Home Care - Private Contractors Payment,234.71,0,COMMERCIAL SUPPLIER
01-11-2022,Adults & Health,Rhythmic Care UK Ltd,Home Care - Private Contractors Payment,301.77,0,COMMERCIAL SUPPLIER
01-11-2022,Adults & Health,Rhythmic Care UK Ltd,Home Care - Private Contractors Payment,100.59,0,COMMERCIAL SUPPLIER
01-11-2022,Adults & Health,Rhythmic Care UK Ltd,Daycare - Private Contractors Payment,38.32,0,COMMERCIAL SUPPLIER
01-11-2022,Adults & Health,Rhythmic Care UK Ltd,Home Care - Private Contractors Payment,67.06,0,COMMERCIAL SUPPLIER
01-11-2022,Adults & Health,Rhythmic Care UK Ltd,Home Care - Private Contractors Payment,38.32,0,COMMERCIAL SUPPLIER
01-11-2022,Adults & Health,Rhythmic Care UK Ltd,Home Care - Private Contractors Payment,335.3,0,COMMERCIAL SUPPLIER
01-11-2022,Adults & Health,Rhythmic Care UK Ltd,Home Care - Private Contractors Payment,570.01,0,COMMERCIAL SUPPLIER
01-11-2022,Adults & Health,Rhythmic Care UK Ltd,Home Care - Private Contractors Payment,201.18,0,COMMERCIAL SUPPLIER
01-11-2022,Adults & Health,Rhythmic Care UK Ltd,Home Care - Private Contractors Payment,9.58,0,COMMERCIAL SUPPLIER
01-11-2022,Adults & Health,Rhythmic Care UK Ltd,Daycare - Private Contractors Payment,373.62,0,COMMERCIAL SUPPLIER
01-11-2022,Adults & Health,Rhythmic Care UK Ltd,Home Care - Private Contractors Payment,234.71,0,COMMERCIAL SUPPLIER
01-11-2022,Adults & Health,Rhythmic Care UK Ltd,Home Care - Private Contractors Payment,100.59,0,COMMERCIAL SUPPLIER
01-11-2022,Adults & Health,Rhythmic Care UK Ltd,Respite Care - Private Contractors Payment,57.48,0,COMMERCIAL SUPPLIER
01-11-2022,Adults & Health,Rhythmic Care UK Ltd,Daycare - Private Contractors Payment,153.28,0,COMMERCIAL SUPPLIER
01-11-2022,Adults & Health,Rhythmic Care UK Ltd,Home Care - Private Contractors Payment,570.01,0,COMMERCIAL SUPPLIER
01-11-2022,Adults & Health,Rhythmic Care UK Ltd,Home Care - Private Contractors Payment,301.77,0,COMMERCIAL SUPPLIER
01-11-2022,Adults & Health,Rhythmic Care UK Ltd,Home Care - Private Contractors Payment,201.18,0,COMMERCIAL SUPPLIER
01-11-2022,Adults & Health,Rhythmic Care UK Ltd,Daycare - Private Contractors Payment,38.32,0,COMMERCIAL SUPPLIER
01-11-2022,Adults & Health,Rhythmic Care UK Ltd,Daycare - Private Contractors Payment,28.74,0,COMMERCIAL SUPPLIER
01-11-2022,Adults & Health,Rhythmic Care UK Ltd,Home Care - Private Contractors Payment,201.18,0,COMMERCIAL SUPPLIER
01-11-2022,Adults & Health,Rhythmic Care UK Ltd,Home Care - Private Contractors Payment,100.59,0,COMMERCIAL SUPPLIER
01-11-2022,Adults & Health,Rhythmic Care UK Ltd,Home Care - Private Contractors Payment,268.24,0,COMMERCIAL SUPPLIER
01-11-2022,Adults & Health,Rhythmic Care UK Ltd,Home Care - Private Contractors Payment,335.3,0,COMMERCIAL SUPPLIER
01-11-2022,Adults & Health,Rhythmic Care UK Ltd,Home Care - Private Contractors Payment,38.32,0,COMMERCIAL SUPPLIER
01-11-2022,Adults & Health,Rhythmic Care UK Ltd,Home Care - Private Contractors Payment,43.11,0,COMMERCIAL SUPPLIER
01-11-2022,Adults & Health,Rhythmic Care UK Ltd,Respite Care - Private Contractors Payment,38.32,0,COMMERCIAL SUPPLIER
01-11-2022,Adults & Health,Rhythmic Care UK Ltd,Daycare - Private Contractors Payment,76.64,0,COMMERCIAL SUPPLIER
01-11-2022,Adults & Health,Rhythmic Care UK Ltd,Home Care - Private Contractors Payment,335.3,0,COMMERCIAL SUPPLIER
01-11-2022,Adults & Health,Rhythmic Care UK Ltd,Home Care - Private Contractors Payment,167.65,0,COMMERCIAL SUPPLIER
01-11-2022,Adults & Health,Rhythmic Care UK Ltd,Daycare - Private Contractors Payment,28.74,0,COMMERCIAL SUPPLIER
01-11-2022,Adults & Health,Rhythmic Care UK Ltd,Home Care - Private Contractors Payment,167.65,0,COMMERCIAL SUPPLIER
01-11-2022,Adults & Health,Rhythmic Care UK Ltd,Daycare - Private Contractors Payment,38.32,0,COMMERCIAL SUPPLIER
01-11-2022,Adults & Health,Rhythmic Care UK Ltd,Home Care - Private Contractors Payment,670.6,0,COMMERCIAL SUPPLIER
01-11-2022,Adults & Health,Rhythmic Care UK Ltd,Home Care - Private Contractors Payment,402.36,0,COMMERCIAL SUPPLIER
01-11-2022,Adults & Health,Rhythmic Care UK Ltd,Home Care - Private Contractors Payment,871.78,0,COMMERCIAL SUPPLIER
01-11-2022,Adults & Health,Rhythmic Care UK Ltd,Home Care - Private Contractors Payment,134.12,0,COMMERCIAL SUPPLIER
01-11-2022,Adults & Health,Rhythmic Care UK Ltd,Home Care - Private Contractors Payment,100.59,0,COMMERCIAL SUPPLIER
01-11-2022,Adults & Health,Rhythmic Care UK Ltd,Home Care - Private Contractors Payment,43.11,0,COMMERCIAL SUPPLIER
01-11-2022,Adults & Health,Rhythmic Care UK Ltd,Home Care - Private Contractors Payment,234.71,0,COMMERCIAL SUPPLIER
01-11-2022,Adults & Health,Rhythmic Care UK Ltd,Home Care - Private Contractors Payment,268.24,0,COMMERCIAL SUPPLIER
01-11-2022,Adults & Health,Rhythmic Care UK Ltd,Daycare - Private Contractors Payment,57.48,0,COMMERCIAL SUPPLIER
01-11-2022,Adults & Health,Rhythmic Care UK Ltd,Home Care - Private Contractors Payment,771.19,0,COMMERCIAL SUPPLIER
01-11-2022,Adults & Health,Rhythmic Care UK Ltd,Daycare - Private Contractors Payment,28.74,0,COMMERCIAL SUPPLIER
01-11-2022,Adults & Health,Rhythmic Care UK Ltd,Home Care - Private Contractors Payment,167.65,0,COMMERCIAL SUPPLIER
01-11-2022,Adults & Health,Rhythmic Care UK Ltd,Home Care - Private Contractors Payment,449.28,0,COMMERCIAL SUPPLIER
01-11-2022,Adults & Health,Rhythmic Care UK Ltd,Daycare - Private Contractors Payment,19.16,0,COMMERCIAL SUPPLIER
01-11-2022,Adults & Health,Rhythmic Care UK Ltd,Home Care - Private Contractors Payment,201.18,0,COMMERCIAL SUPPLIER
01-11-2022,Adults & Health,Rhythmic Care UK Ltd,Daycare - Private Contractors Payment,38.32,0,COMMERCIAL SUPPLIER
01-11-2022,Adults & Health,Rhythmic Care UK Ltd,Home Care - Private Contractors Payment,167.65,0,COMMERCIAL SUPPLIER
01-11-2022,Adults & Health,Rhythmic Care UK Ltd,Daycare - Private Contractors Payment,76.64,0,COMMERCIAL SUPPLIER
01-11-2022,Adults & Health,Rhythmic Care UK Ltd,Home Care - Private Contractors Payment,469.42,0,COMMERCIAL SUPPLIER
01-11-2022,Adults & Health,Rhythmic Care UK Ltd,Home Care - Private Contractors Payment,301.77,0,COMMERCIAL SUPPLIER
01-11-2022,Adults & Health,Rhythmic Care UK Ltd,Home Care - Private Contractors Payment,167.65,0,COMMERCIAL SUPPLIER
01-11-2022,Adults & Health,Rhythmic Care UK Ltd,Home Care - Private Contractors Payment,86.22,0,COMMERCIAL SUPPLIER
01-11-2022,Adults & Health,Rhythmic Care UK Ltd,Home Care - Private Contractors Payment,335.3,0,COMMERCIAL SUPPLIER
01-11-2022,Adults & Health,Rhythmic Care UK Ltd,Home Care - Private Contractors Payment,19.16,0,COMMERCIAL SUPPLIER
01-11-2022,Adults & Health,Rhythmic Care UK Ltd,Home Care - Private Contractors Payment,397.57,0,COMMERCIAL SUPPLIER
01-11-2022,Adults & Health,Rhythmic Care UK Ltd,Home Care - Private Contractors Payment,86.22,0,COMMERCIAL SUPPLIER
01-11-2022,Adults & Health,Rhythmic Care UK Ltd,Home Care - Private Contractors Payment,19.16,0,COMMERCIAL SUPPLIER
01-11-2022,Adults & Health,Rhythmic Care UK Ltd,Home Care - Private Contractors Payment,100.59,0,COMMERCIAL SUPPLIER
01-11-2022,Adults & Health,Rhythmic Care UK Ltd,Home Care - Private Contractors Payment,301.77,0,COMMERCIAL SUPPLIER
01-11-2022,Adults & Health,Rhythmic Care UK Ltd,Daycare - Private Contractors Payment,316.14,0,COMMERCIAL SUPPLIER
01-11-2022,Adults & Health,Rhythmic Care UK Ltd,Daycare - Private Contractors Payment,95.8,0,COMMERCIAL SUPPLIER
01-11-2022,Adults & Health,Rhythmic Care UK Ltd,Home Care - Private Contractors Payment,234.71,0,COMMERCIAL SUPPLIER
01-11-2022,Adults & Health,Rhythmic Care UK Ltd,Home Care - Private Contractors Payment,28.74,0,COMMERCIAL SUPPLIER
01-11-2022,Adults & Health,Rhythmic Care UK Ltd,Home Care - Private Contractors Payment,843.04,0,COMMERCIAL SUPPLIER
01-11-2022,Adults & Health,Rhythmic Care UK Ltd,Home Care - Private Contractors Payment,268.24,0,COMMERCIAL SUPPLIER
01-11-2022,Adults & Health,Rhythmic Care UK Ltd,Home Care - Private Contractors Payment,431.1,0,COMMERCIAL SUPPLIER
01-11-2022,Adults & Health,Rhythmic Care UK Ltd,Respite Care - Private Contractors Payment,38.32,0,COMMERCIAL SUPPLIER
01-11-2022,Adults & Health,Rhythmic Care UK Ltd,Daycare - Private Contractors Payment,47.9,0,COMMERCIAL SUPPLIER
01-11-2022,Adults & Health,Rhythmic Care UK Ltd,Daycare - Private Contractors Payment,38.32,0,COMMERCIAL SUPPLIER
01-11-2022,Adults & Health,Rhythmic Care UK Ltd,Daycare - Private Contractors Payment,38.32,0,COMMERCIAL SUPPLIER
01-11-2022,Adults & Health,Rhythmic Care UK Ltd,Home Care - Private Contractors Payment,9.58,0,COMMERCIAL SUPPLIER
01-11-2022,Adults & Health,Rhythmic Care UK Ltd,Daycare - Private Contractors Payment,38.32,0,COMMERCIAL SUPPLIER
01-11-2022,Adults & Health,Rhythmic Care UK Ltd,Home Care - Private Contractors Payment,220.34,0,COMMERCIAL SUPPLIER
01-11-2022,Adults & Health,Rhythmic Care UK Ltd,Home Care - Private Contractors Payment,19.16,0,COMMERCIAL SUPPLIER
01-11-2022,Adults & Health,Rhythmic Care UK Ltd,Home Care - Private Contractors Payment,167.65,0,COMMERCIAL SUPPLIER
01-11-2022,Adults & Health,Rhythmic Care UK Ltd,Home Care - Private Contractors Payment,177.23,0,COMMERCIAL SUPPLIER
01-11-2022,Adults & Health,Rhythmic Care UK Ltd,Home Care - Private Contractors Payment,320.93,0,COMMERCIAL SUPPLIER
01-11-2022,Adults & Health,Rhythmic Care UK Ltd,Home Care - Private Contractors Payment,191.6,0,COMMERCIAL SUPPLIER
01-11-2022,Adults & Health,Rhythmic Care UK Ltd,Home Care - Private Contractors Payment,114.96,0,COMMERCIAL SUPPLIER
01-11-2022,Adults & Health,Rhythmic Care UK Ltd,Home Care - Private Contractors Payment,167.65,0,COMMERCIAL SUPPLIER
01-11-2022,Adults & Health,Rhythmic Care UK Ltd,Home Care - Private Contractors Payment,19.16,0,COMMERCIAL SUPPLIER
01-11-2022,Adults & Health,Rhythmic Care UK Ltd,Home Care - Private Contractors Payment,570.01,0,COMMERCIAL SUPPLIER
01-11-2022,Adults & Health,Rhythmic Care UK Ltd,Home Care - Private Contractors Payment,134.12,0,COMMERCIAL SUPPLIER
01-11-2022,Adults & Health,Rhythmic Care UK Ltd,Home Care - Private Contractors Payment,201.18,0,COMMERCIAL SUPPLIER
01-11-2022,Adults & Health,Rhythmic Care UK Ltd,Home Care - Private Contractors Payment,814.3,0,COMMERCIAL SUPPLIER
01-11-2022,Adults & Health,Rhythmic Care UK Ltd,Home Care - Private Contractors Payment,100.59,0,COMMERCIAL SUPPLIER
01-11-2022,Adults & Health,Rhythmic Care UK Ltd,Home Care - Private Contractors Payment,38.32,0,COMMERCIAL SUPPLIER
01-11-2022,Adults & Health,Rhythmic Care UK Ltd,Home Care - Private Contractors Payment,38.32,0,COMMERCIAL SUPPLIER
01-11-2022,Adults & Health,Rhythmic Care UK Ltd,Home Care - Private Contractors Payment,38.32,0,COMMERCIAL SUPPLIER
01-11-2022,Adults & Health,Rhythmic Care UK Ltd,Reablement,38.32,0,COMMERCIAL SUPPLIER
01-11-2022,Adults & Health,Rhythmic Care UK Ltd,Home Care - Private Contractors Payment,134.12,0,COMMERCIAL SUPPLIER
01-11-2022,Adults & Health,Rhythmic Care UK Ltd,Home Care - Private Contractors Payment,38.32,0,COMMERCIAL SUPPLIER
01-11-2022,Adults & Health,Rhythmic Care UK Ltd,Home Care - Private Contractors Payment,100.59,0,COMMERCIAL SUPPLIER
01-11-2022,Adults & Health,Rhythmic Care UK Ltd,Daycare - Private Contractors Payment,28.74,0,COMMERCIAL SUPPLIER
01-11-2022,Adults & Health,Rhythmic Care UK Ltd,Home Care - Private Contractors Payment,67.06,0,COMMERCIAL SUPPLIER
01-11-2022,Adults & Health,Rhythmic Care UK Ltd,Home Care - Private Contractors Payment,19.16,0,COMMERCIAL SUPPLIER
01-11-2022,Adults & Health,Rhythmic Care UK Ltd,Daycare - Private Contractors Payment,76.64,0,COMMERCIAL SUPPLIER
01-11-2022,Adults & Health,Rhythmic Care UK Ltd,Home Care - Private Contractors Payment,205.97,0,COMMERCIAL SUPPLIER
01-11-2022,Adults & Health,Rhythmic Care UK Ltd,Home Care - Private Contractors Payment,234.71,0,COMMERCIAL SUPPLIER
01-11-2022,Adults & Health,Rhythmic Care UK Ltd,Home Care - Private Contractors Payment,220.34,0,COMMERCIAL SUPPLIER
01-11-2022,Adults & Health,Rhythmic Care UK Ltd,Home Care - Private Contractors Payment,19.16,0,COMMERCIAL SUPPLIER
01-11-2022,Adults & Health,Rhythmic Care UK Ltd,Home Care - Private Contractors Payment,19.16,0,COMMERCIAL SUPPLIER
01-11-2022,Adults & Health,Rhythmic Care UK Ltd,Home Care - Private Contractors Payment,301.77,0,COMMERCIAL SUPPLIER
01-11-2022,Adults & Health,Rhythmic Care UK Ltd,Home Care - Private Contractors Payment,871.78,0,COMMERCIAL SUPPLIER
01-11-2022,Adults & Health,Rhythmic Care UK Ltd,Home Care - Private Contractors Payment,167.65,0,COMMERCIAL SUPPLIER
01-11-2022,Adults & Health,Rhythmic Care UK Ltd,Daycare - Private Contractors Payment,19.16,0,COMMERCIAL SUPPLIER
01-11-2022,Adults & Health,Rhythmic Care UK Ltd,Home Care - Private Contractors Payment,100.59,0,COMMERCIAL SUPPLIER
01-11-2022,Adults & Health,Rhythmic Care UK Ltd,Home Care - Private Contractors Payment,268.24,0,COMMERCIAL SUPPLIER
01-11-2022,Adults & Health,Rhythmic Care UK Ltd,Home Care - Private Contractors Payment,570.01,0,COMMERCIAL SUPPLIER
01-11-2022,Adults & Health,Rhythmic Care UK Ltd,Home Care - Private Contractors Payment,19.16,0,COMMERCIAL SUPPLIER
01-11-2022,Adults & Health,Rhythmic Care UK Ltd,Home Care - Private Contractors Payment,402.36,0,COMMERCIAL SUPPLIER
01-11-2022,Adults & Health,Rhythmic Care UK Ltd,Home Care - Private Contractors Payment,804.72,0,COMMERCIAL SUPPLIER
01-11-2022,Adults & Health,Rhythmic Care UK Ltd,Home Care - Private Contractors Payment,95.8,0,COMMERCIAL SUPPLIER
01-11-2022,Adults & Health,Rhythmic Care UK Ltd,Home Care - Private Contractors Payment,268.24,0,COMMERCIAL SUPPLIER
01-11-2022,Adults & Health,Rhythmic Care UK Ltd,Home Care - Private Contractors Payment,1226.24,0,COMMERCIAL SUPPLIER
01-11-2022,Adults & Health,Rhythmic Care UK Ltd,Home Care - Private Contractors Payment,38.32,0,COMMERCIAL SUPPLIER
01-11-2022,Adults & Health,Rhythmic Care UK Ltd,Daycare - Private Contractors Payment,19.16,0,COMMERCIAL SUPPLIER
01-11-2022,Adults & Health,Rhythmic Care UK Ltd,Home Care - Private Contractors Payment,86.22,0,COMMERCIAL SUPPLIER
01-11-2022,Adults & Health,Rhythmic Care UK Ltd,Home Care - Private Contractors Payment,19.16,0,COMMERCIAL SUPPLIER
01-11-2022,Adults & Health,Rhythmic Care UK Ltd,Home Care - Private Contractors Payment,555.64,0,COMMERCIAL SUPPLIER
01-11-2022,Adults & Health,Rhythmic Care UK Ltd,Home Care - Private Contractors Payment,191.6,0,COMMERCIAL SUPPLIER
01-11-2022,Adults & Health,Rhythmic Care UK Ltd,Home Care - Private Contractors Payment,579.59,0,COMMERCIAL SUPPLIER
01-11-2022,Adults & Health,Rhythmic Care UK Ltd,Home Care - Private Contractors Payment,19.16,0,COMMERCIAL SUPPLIER
01-11-2022,Adults & Health,Rhythmic Care UK Ltd,Home Care - Private Contractors Payment,100.59,0,COMMERCIAL SUPPLIER
01-11-2022,Adults & Health,Rhythmic Care UK Ltd,Home Care - Private Contractors Payment,201.18,0,COMMERCIAL SUPPLIER
01-11-2022,Adults & Health,Rhythmic Care UK Ltd,Home Care - Private Contractors Payment,268.24,0,COMMERCIAL SUPPLIER
01-11-2022,Adults & Health,Rhythmic Care UK Ltd,Home Care - Private Contractors Payment,57.48,0,COMMERCIAL SUPPLIER
01-11-2022,Adults & Health,Rhythmic Care UK Ltd,Home Care - Private Contractors Payment,234.71,0,COMMERCIAL SUPPLIER
01-11-2022,Adults & Health,Rhythmic Care UK Ltd,Daycare - Private Contractors Payment,19.16,0,COMMERCIAL SUPPLIER
01-11-2022,Adults & Health,Rhythmic Care UK Ltd,Home Care - Private Contractors Payment,167.65,0,COMMERCIAL SUPPLIER
01-11-2022,Adults & Health,Rhythmic Care UK Ltd,Home Care - Private Contractors Payment,268.24,0,COMMERCIAL SUPPLIER
01-11-2022,Adults & Health,Rhythmic Care UK Ltd,Home Care - Private Contractors Payment,201.18,0,COMMERCIAL SUPPLIER
01-11-2022,Adults & Health,Rhythmic Care UK Ltd,Home Care - Private Contractors Payment,536.48,0,COMMERCIAL SUPPLIER
01-11-2022,Adults & Health,Rhythmic Care UK Ltd,Home Care - Private Contractors Payment,19.16,0,COMMERCIAL SUPPLIER
01-11-2022,Adults & Health,Rhythmic Care UK Ltd,Daycare - Private Contractors Payment,67.06,0,COMMERCIAL SUPPLIER
01-11-2022,Adults & Health,Rhythmic Care UK Ltd,Home Care - Private Contractors Payment,100.59,0,COMMERCIAL SUPPLIER
01-11-2022,Adults & Health,Rhythmic Care UK Ltd,Daycare - Private Contractors Payment,38.32,0,COMMERCIAL SUPPLIER
01-11-2022,Adults & Health,Rhythmic Care UK Ltd,Home Care - Private Contractors Payment,134.12,0,COMMERCIAL SUPPLIER
01-11-2022,Adults & Health,Rhythmic Care UK Ltd,Home Care - Private Contractors Payment,19.16,0,COMMERCIAL SUPPLIER
01-11-2022,Adults & Health,Rhythmic Care UK Ltd,Daycare - Private Contractors Payment,57.48,0,COMMERCIAL SUPPLIER
01-11-2022,Adults & Health,Rhythmic Care UK Ltd,Home Care - Private Contractors Payment,201.18,0,COMMERCIAL SUPPLIER
01-11-2022,Adults & Health,Rhythmic Care UK Ltd,Home Care - Private Contractors Payment,320.93,0,COMMERCIAL SUPPLIER
01-11-2022,Adults & Health,Rhythmic Care UK Ltd,Home Care - Private Contractors Payment,570.01,0,COMMERCIAL SUPPLIER
01-11-2022,Adults & Health,Rhythmic Care UK Ltd,Home Care - Private Contractors Payment,536.48,0,COMMERCIAL SUPPLIER
01-11-2022,Adults & Health,Rhythmic Care UK Ltd,Home Care - Private Contractors Payment,19.16,0,COMMERCIAL SUPPLIER
01-11-2022,Adults & Health,Rhythmic Care UK Ltd,Daycare - Private Contractors Payment,91.01,0,COMMERCIAL SUPPLIER
01-11-2022,Adults & Health,Rhythmic Care UK Ltd,Daycare - Private Contractors Payment,38.32,0,COMMERCIAL SUPPLIER
01-11-2022,Adults & Health,Rhythmic Care UK Ltd,Home Care - Private Contractors Payment,167.65,0,COMMERCIAL SUPPLIER
01-11-2022,Adults & Health,Rhythmic Care UK Ltd,Home Care - Private Contractors Payment,47.9,0,COMMERCIAL SUPPLIER
01-11-2022,Adults & Health,Rhythmic Care UK Ltd,Home Care - Private Contractors Payment,81.43,0,COMMERCIAL SUPPLIER
01-11-2022,Adults & Health,Rhythmic Care UK Ltd,Home Care - Private Contractors Payment,268.24,0,COMMERCIAL SUPPLIER
01-11-2022,Adults & Health,Rhythmic Care UK Ltd,Home Care - Private Contractors Payment,134.12,0,COMMERCIAL SUPPLIER
01-11-2022,Adults & Health,Rhythmic Care UK Ltd,Respite Care - Private Contractors Payment,57.48,0,COMMERCIAL SUPPLIER
01-11-2022,Adults & Health,Rhythmic Care UK Ltd,Home Care - Private Contractors Payment,335.3,0,COMMERCIAL SUPPLIER
01-11-2022,Adults & Health,Rhythmic Care UK Ltd,Home Care - Private Contractors Payment,536.48,0,COMMERCIAL SUPPLIER
01-11-2022,Adults & Health,Rhythmic Care UK Ltd,Home Care - Private Contractors Payment,268.24,0,COMMERCIAL SUPPLIER
01-11-2022,Adults & Health,Rhythmic Care UK Ltd,Daycare - Private Contractors Payment,76.64,0,COMMERCIAL SUPPLIER
01-11-2022,Adults & Health,Rhythmic Care UK Ltd,Daycare - Private Contractors Payment,28.74,0,COMMERCIAL SUPPLIER
01-11-2022,Adults & Health,Rhythmic Care UK Ltd,Home Care - Private Contractors Payment,201.18,0,COMMERCIAL SUPPLIER
01-11-2022,Adults & Health,Headway East London,Daycare - Private Contractors Payment,100,0,COMMERCIAL SUPPLIER
01-11-2022,Adults & Health,Headway East London,Daycare - Private Contractors Payment,100,0,COMMERCIAL SUPPLIER
01-11-2022,Adults & Health,Headway East London,Daycare - Private Contractors Payment,84,0,COMMERCIAL SUPPLIER
01-11-2022,Adults & Health,Headway East London,Daycare - Private Contractors Payment,100,0,COMMERCIAL SUPPLIER
01-11-2022,Adults & Health,Headway East London,Payments To Voluntary Sector,70.1,0,COMMERCIAL SUPPLIER
01-11-2022,Adults & Health,Headway East London,Daycare - Private Contractors Payment,84,0,COMMERCIAL SUPPLIER
01-11-2022,Adults & Health,Headway East London,Daycare - Private Contractors Payment,100,0,COMMERCIAL SUPPLIER
01-11-2022,Adults & Health,Headway East London,Payments To Voluntary Sector,70.1,0,COMMERCIAL SUPPLIER
01-11-2022,Adults & Health,Headway East London,Daycare - Private Contractors Payment,84,0,COMMERCIAL SUPPLIER
01-11-2022,Adults & Health,Headway East London,Payments To Voluntary Sector,70.1,0,COMMERCIAL SUPPLIER
01-11-2022,Adults & Health,Headway East London,Daycare - Private Contractors Payment,89.7,0,COMMERCIAL SUPPLIER
01-11-2022,oneSource,Wilkin Chapman Solicitors,Legal Fees,1351.5,0,VENDOR
01-11-2022,Children and Young People,Lextox,Legal Fees,903,0,COMMERCIAL SUPPLIER
01-11-2022,oneSource - Non Shared,Crystal Electronics Ltd,Building Alterations And Materials,421.33,0,COMMERCIAL SUPPLIER
01-11-2022,oneSource - Non Shared,Crystal Electronics Ltd,Building Alterations And Materials,1100,0,COMMERCIAL SUPPLIER
01-11-2022,oneSource - Non Shared,Crystal Electronics Ltd,Building Alterations And Materials,350,0,COMMERCIAL SUPPLIER
01-11-2022,oneSource - Non Shared,Crystal Electronics Ltd,Building Alterations And Materials,813.48,0,COMMERCIAL SUPPLIER
01-11-2022,oneSource - Non Shared,Crystal Electronics Ltd,Building Alterations And Materials,1250,0,COMMERCIAL SUPPLIER
01-11-2022,oneSource,Bdi Securities,Security Services (Excluding Premises),1053,0,COMMERCIAL SUPPLIER
01-11-2022,oneSource,Bdi Securities,Security Services (Excluding Premises),364.5,0,COMMERCIAL SUPPLIER
01-11-2022,Housing Revenue Account,MLCS3 Limited,Surveys,8400,0,NON COMMERCIAL SUPPLIER
01-11-2022,RMS,Stuga Machinery Ltd,Building Alterations And Materials,7395,0,VENDOR
01-11-2022,Adults & Health,Designserve Architectural And Project Management Services Ltd,Private Contractors Payment - Other,11923.04,0,COMMERCIAL SUPPLIER
01-11-2022,oneSource,CCS Media Limited.,Ict Hardware,11,0,COMMERCIAL SUPPLIER
01-11-2022,oneSource,CCS Media Limited.,Ict Hardware,845,0,COMMERCIAL SUPPLIER
01-11-2022,oneSource,CCS Media Limited.,Ict Hardware,6767.5,0,COMMERCIAL SUPPLIER
01-11-2022,Children and Young People,CCS Media Limited.,Ict Hardware,661.07,0,COMMERCIAL SUPPLIER
01-11-2022,Children and Young People,CCS Media Limited.,Ict Hardware,661.07,0,COMMERCIAL SUPPLIER
01-11-2022,oneSource - Non Shared,Rs Construction & Property Services Ltd,"Maintenance - Equipment, Furniture And Materials",1268.48,0,CIS
01-11-2022,oneSource - Non Shared,Rs Construction & Property Services Ltd,"Maintenance - Equipment, Furniture And Materials",1268.48,0,CIS
01-11-2022,oneSource - Non Shared,Rs Construction & Property Services Ltd,"Maintenance - Equipment, Furniture And Materials",801.81,0,CIS
01-11-2022,oneSource - Non Shared,Rs Construction & Property Services Ltd,"Maintenance - Equipment, Furniture And Materials",801.81,0,CIS
01-11-2022,RMS,Commercial Drainage Services (Essex) Ltd,"Maintenance - Equipment, Furniture And Materials",321,0,COMMERCIAL SUPPLIER
01-11-2022,RMS,Commercial Drainage Services (Essex) Ltd,"Maintenance - Equipment, Furniture And Materials",512,0,COMMERCIAL SUPPLIER
01-11-2022,RMS,Commercial Drainage Services (Essex) Ltd,"Maintenance - Equipment, Furniture And Materials",1200,0,COMMERCIAL SUPPLIER
01-11-2022,RMS,Glass System Ltd,Building Alterations And Materials,744.41,0,COMMERCIAL SUPPLIER
01-11-2022,RMS,Glass System Ltd,Building Alterations And Materials,544.11,0,COMMERCIAL SUPPLIER
01-11-2022,RMS,Glass System Ltd,Building Alterations And Materials,300.8,0,COMMERCIAL SUPPLIER
01-11-2022,RMS,Glass System Ltd,Building Alterations And Materials,626.32,0,COMMERCIAL SUPPLIER
01-11-2022,RMS,Glass System Ltd,Building Alterations And Materials,576.86,0,COMMERCIAL SUPPLIER
01-11-2022,RMS,Glass System Ltd,Building Alterations And Materials,644.01,0,COMMERCIAL SUPPLIER
01-11-2022,RMS,Glass System Ltd,Building Alterations And Materials,574.19,0,COMMERCIAL SUPPLIER
01-11-2022,RMS,Glass System Ltd,Building Alterations And Materials,954.12,0,COMMERCIAL SUPPLIER
01-11-2022,RMS,Glass System Ltd,Building Alterations And Materials,968.78,0,COMMERCIAL SUPPLIER
01-11-2022,RMS,Glass System Ltd,Building Alterations And Materials,1010.81,0,COMMERCIAL SUPPLIER
01-11-2022,RMS,Glass System Ltd,Building Alterations And Materials,561.49,0,COMMERCIAL SUPPLIER
01-11-2022,Environment and Sustainable Transport,Sparshatt Truck & Van Ltd,Highway Services,99.22,0,COMMERCIAL SUPPLIER
01-11-2022,Environment and Sustainable Transport,Sparshatt Truck & Van Ltd,Highway Services,18.03,0,COMMERCIAL SUPPLIER
01-11-2022,Environment and Sustainable Transport,Sparshatt Truck & Van Ltd,Highway Services,232.88,0,COMMERCIAL SUPPLIER
01-11-2022,RMS,Travis Perkins Trading Company Ltd,Building Alterations And Materials,305.5,0,COMMERCIAL SUPPLIER
01-11-2022,RMS,Travis Perkins Trading Company Ltd,Building Alterations And Materials,370.05,0,COMMERCIAL SUPPLIER
01-11-2022,RMS,Travis Perkins Trading Company Ltd,Building Alterations And Materials,229.8,0,COMMERCIAL SUPPLIER
01-11-2022,RMS,Travis Perkins Trading Company Ltd,Building Alterations And Materials,242.5,0,COMMERCIAL SUPPLIER
01-11-2022,RMS,Travis Perkins Trading Company Ltd,Building Alterations And Materials,952.95,0,COMMERCIAL SUPPLIER
01-11-2022,RMS,Travis Perkins Trading Company Ltd,Building Alterations And Materials,886.71,0,COMMERCIAL SUPPLIER
01-11-2022,RMS,Travis Perkins Trading Company Ltd,Building Alterations And Materials,353.54,0,COMMERCIAL SUPPLIER
01-11-2022,RMS,Travis Perkins Trading Company Ltd,Building Alterations And Materials,5384.61,0,COMMERCIAL SUPPLIER
01-11-2022,RMS,Travis Perkins Trading Company Ltd,Building Alterations And Materials,329.61,0,COMMERCIAL SUPPLIER
01-11-2022,RMS,Travis Perkins Trading Company Ltd,Building Alterations And Materials,398.6,0,COMMERCIAL SUPPLIER
01-11-2022,RMS,Travis Perkins Trading Company Ltd,Building Alterations And Materials,33.42,0,COMMERCIAL SUPPLIER
01-11-2022,RMS,Travis Perkins Trading Company Ltd,Building Alterations And Materials,25.34,0,COMMERCIAL SUPPLIER
01-11-2022,RMS,Travis Perkins Trading Company Ltd,Building Alterations And Materials,49.27,0,COMMERCIAL SUPPLIER
01-11-2022,RMS,Travis Perkins Trading Company Ltd,Building Alterations And Materials,138.4,0,COMMERCIAL SUPPLIER
01-11-2022,RMS,Travis Perkins Trading Company Ltd,Building Alterations And Materials,21.56,0,COMMERCIAL SUPPLIER
01-11-2022,RMS,Travis Perkins Trading Company Ltd,Building Alterations And Materials,25.67,0,COMMERCIAL SUPPLIER
01-11-2022,oneSource - Non Shared,Moniteye,"Maintenance - Equipment, Furniture And Materials",600,0,NON COMMERCIAL SUPPLIER
01-11-2022,Adults & Health,Sweettree Home Care Services,Daycare - Private Contractors Payment,249.5,0,NON COMMERCIAL SUPPLIER
01-11-2022,Adults & Health,Sweettree Home Care Services,Daycare - Private Contractors Payment,249.5,0,NON COMMERCIAL SUPPLIER
01-11-2022,Adults & Health,Sweettree Home Care Services,Daycare - Private Contractors Payment,249.5,0,NON COMMERCIAL SUPPLIER
01-11-2022,Adults & Health,Sweettree Home Care Services,Daycare - Private Contractors Payment,249.5,0,NON COMMERCIAL SUPPLIER
01-11-2022,Adults & Health,Sayers (Car Hire),Payments To Voluntary Sector,400,0,VENDOR
01-11-2022,oneSource - Non Shared,GatenbySanderson Ltd,Agency Staff,2212.5,0,COMMERCIAL SUPPLIER
01-11-2022,Adults & Health,Cornerstone Care Services,Home Care - Private Contractors Payment,72.45,0,COMMERCIAL SUPPLIER
01-11-2022,Adults & Health,Cornerstone Care Services,Home Care - Private Contractors Payment,72.45,0,COMMERCIAL SUPPLIER
01-11-2022,Adults & Health,Cornerstone Care Services,Home Care - Private Contractors Payment,72.45,0,COMMERCIAL SUPPLIER
01-11-2022,Adults & Health,Cornerstone Care Services,Home Care - Private Contractors Payment,72.45,0,COMMERCIAL SUPPLIER
01-11-2022,Adults & Health,Cornerstone Care Services,Home Care - Private Contractors Payment,62.1,0,COMMERCIAL SUPPLIER
01-11-2022,Adults & Health,Cornerstone Care Services,Home Care - Private Contractors Payment,434.7,0,COMMERCIAL SUPPLIER
01-11-2022,Adults & Health,Cornerstone Care Services,Home Care - Private Contractors Payment,434.7,0,COMMERCIAL SUPPLIER
01-11-2022,Adults & Health,Cornerstone Care Services,Home Care - Private Contractors Payment,531.3,0,COMMERCIAL SUPPLIER
01-11-2022,Adults & Health,Cornerstone Care Services,Home Care - Private Contractors Payment,27.6,0,COMMERCIAL SUPPLIER
01-11-2022,Adults & Health,Cornerstone Care Services,Home Care - Private Contractors Payment,227.7,0,COMMERCIAL SUPPLIER
01-11-2022,Adults & Health,Cornerstone Care Services,Home Care - Private Contractors Payment,41.4,0,COMMERCIAL SUPPLIER
01-11-2022,Adults & Health,Alters Recruitment Ltd,Respite Care - Private Contractors Payment,76.64,0,VENDOR
01-11-2022,Adults & Health,Alters Recruitment Ltd,Home Care - Private Contractors Payment,50.46,0,VENDOR
01-11-2022,Adults & Health,Alters Recruitment Ltd,Home Care - Private Contractors Payment,819.72,0,VENDOR
01-11-2022,Adults & Health,Alters Recruitment Ltd,Home Care - Private Contractors Payment,43.74,0,VENDOR
01-11-2022,Adults & Health,Alters Recruitment Ltd,Daycare - Private Contractors Payment,153.28,0,VENDOR
01-11-2022,Adults & Health,Alters Recruitment Ltd,Home Care - Private Contractors Payment,283.24,0,VENDOR
01-11-2022,Adults & Health,Alters Recruitment Ltd,Home Care - Private Contractors Payment,67.06,0,VENDOR
01-11-2022,Adults & Health,Alters Recruitment Ltd,Home Care - Private Contractors Payment,76.64,0,VENDOR
01-11-2022,Adults & Health,Alters Recruitment Ltd,Home Care - Private Contractors Payment,306.56,0,VENDOR
01-11-2022,Adults & Health,Alters Recruitment Ltd,Home Care - Private Contractors Payment,14.37,0,VENDOR
01-11-2022,Adults & Health,Alters Recruitment Ltd,Home Care - Private Contractors Payment,283.24,0,VENDOR
01-11-2022,Adults & Health,Alters Recruitment Ltd,Daycare - Private Contractors Payment,57.48,0,VENDOR
01-11-2022,Adults & Health,Alters Recruitment Ltd,Home Care - Private Contractors Payment,335.3,0,VENDOR
01-11-2022,Adults & Health,Alters Recruitment Ltd,Daycare - Private Contractors Payment,38.32,0,VENDOR
01-11-2022,Adults & Health,Alters Recruitment Ltd,Daycare - Private Contractors Payment,57.48,0,VENDOR
01-11-2022,Adults & Health,Alters Recruitment Ltd,Home Care - Private Contractors Payment,9.58,0,VENDOR
01-11-2022,Adults & Health,Alters Recruitment Ltd,Home Care - Private Contractors Payment,19.16,0,VENDOR
01-11-2022,Adults & Health,Alters Recruitment Ltd,Home Care - Private Contractors Payment,67.06,0,VENDOR
01-11-2022,Adults & Health,Alters Recruitment Ltd,Home Care - Private Contractors Payment,47.9,0,VENDOR
01-11-2022,Adults & Health,Alters Recruitment Ltd,Daycare - Private Contractors Payment,57.48,0,VENDOR
01-11-2022,Adults & Health,Alters Recruitment Ltd,Home Care - Private Contractors Payment,134.12,0,VENDOR
01-11-2022,Adults & Health,Alters Recruitment Ltd,Home Care - Private Contractors Payment,95.8,0,VENDOR
01-11-2022,Adults & Health,Alters Recruitment Ltd,Home Care - Private Contractors Payment,134.12,0,VENDOR
01-11-2022,Adults & Health,Alters Recruitment Ltd,Home Care - Private Contractors Payment,680.18,0,VENDOR
01-11-2022,Adults & Health,Alters Recruitment Ltd,Respite Care - Private Contractors Payment,95.8,0,VENDOR
01-11-2022,Adults & Health,Alters Recruitment Ltd,Daycare - Private Contractors Payment,57.48,0,VENDOR
01-11-2022,Adults & Health,Alters Recruitment Ltd,Home Care - Private Contractors Payment,249.08,0,VENDOR
01-11-2022,Adults & Health,Alters Recruitment Ltd,Respite Care - Private Contractors Payment,95.8,0,VENDOR
01-11-2022,Adults & Health,Alters Recruitment Ltd,Daycare - Private Contractors Payment,57.48,0,VENDOR
01-11-2022,Adults & Health,Alters Recruitment Ltd,Respite Care - Private Contractors Payment,76.64,0,VENDOR
01-11-2022,Adults & Health,Alters Recruitment Ltd,Home Care - Private Contractors Payment,95.8,0,VENDOR
01-11-2022,Adults & Health,Alters Recruitment Ltd,Home Care - Private Contractors Payment,194.47,0,VENDOR
01-11-2022,Adults & Health,Alters Recruitment Ltd,Home Care - Private Contractors Payment,28.74,0,VENDOR
01-11-2022,Adults & Health,Alters Recruitment Ltd,Daycare - Private Contractors Payment,57.48,0,VENDOR
01-11-2022,Adults & Health,Alters Recruitment Ltd,Home Care - Private Contractors Payment,234.71,0,VENDOR
01-11-2022,Adults & Health,Alters Recruitment Ltd,Home Care - Private Contractors Payment,100.59,0,VENDOR
01-11-2022,Adults & Health,Alters Recruitment Ltd,Home Care - Private Contractors Payment,402.36,0,VENDOR
01-11-2022,Adults & Health,Alters Recruitment Ltd,Respite Care - Private Contractors Payment,76.64,0,VENDOR
01-11-2022,Adults & Health,Alters Recruitment Ltd,Daycare - Private Contractors Payment,38.32,0,VENDOR
01-11-2022,Adults & Health,Alters Recruitment Ltd,Home Care - Private Contractors Payment,804.72,0,VENDOR
01-11-2022,Adults & Health,Alters Recruitment Ltd,Home Care - Private Contractors Payment,19.16,0,VENDOR
01-11-2022,Adults & Health,Alters Recruitment Ltd,Respite Care - Private Contractors Payment,287.4,0,VENDOR
01-11-2022,Adults & Health,Alters Recruitment Ltd,Home Care - Private Contractors Payment,57.48,0,VENDOR
01-11-2022,Adults & Health,Alters Recruitment Ltd,Daycare - Private Contractors Payment,38.32,0,VENDOR
01-11-2022,Adults & Health,Alters Recruitment Ltd,Home Care - Private Contractors Payment,19.16,0,VENDOR
01-11-2022,Adults & Health,Alters Recruitment Ltd,Daycare - Private Contractors Payment,38.32,0,VENDOR
01-11-2022,Adults & Health,Alters Recruitment Ltd,Daycare - Private Contractors Payment,57.48,0,VENDOR
01-11-2022,Adults & Health,Alters Recruitment Ltd,Home Care - Private Contractors Payment,227.36,0,VENDOR
01-11-2022,Adults & Health,Alters Recruitment Ltd,Home Care - Private Contractors Payment,100.59,0,VENDOR
01-11-2022,Adults & Health,Alters Recruitment Ltd,Home Care - Private Contractors Payment,28.74,0,VENDOR
01-11-2022,Adults & Health,Alters Recruitment Ltd,Home Care - Private Contractors Payment,234.71,0,VENDOR
01-11-2022,Adults & Health,Alters Recruitment Ltd,Home Care - Private Contractors Payment,100.59,0,VENDOR
01-11-2022,Adults & Health,Alters Recruitment Ltd,Home Care - Private Contractors Payment,306.56,0,VENDOR
01-11-2022,Adults & Health,Alters Recruitment Ltd,Home Care - Private Contractors Payment,167.65,0,VENDOR
01-11-2022,Adults & Health,Alters Recruitment Ltd,Daycare - Private Contractors Payment,95.8,0,VENDOR
01-11-2022,Adults & Health,Alters Recruitment Ltd,Daycare - Private Contractors Payment,38.32,0,VENDOR
01-11-2022,Adults & Health,Alters Recruitment Ltd,Home Care - Private Contractors Payment,201.18,0,VENDOR
01-11-2022,Adults & Health,Alters Recruitment Ltd,Daycare - Private Contractors Payment,19.16,0,VENDOR
01-11-2022,Adults & Health,Alters Recruitment Ltd,Home Care - Private Contractors Payment,95.8,0,VENDOR
01-11-2022,Adults & Health,Alters Recruitment Ltd,Home Care - Private Contractors Payment,234.71,0,VENDOR
01-11-2022,Adults & Health,Alters Recruitment Ltd,Home Care - Private Contractors Payment,306.56,0,VENDOR
01-11-2022,Adults & Health,Alters Recruitment Ltd,Home Care - Private Contractors Payment,737.66,0,VENDOR
01-11-2022,Adults & Health,Alters Recruitment Ltd,Home Care - Private Contractors Payment,95.8,0,VENDOR
01-11-2022,Adults & Health,Alters Recruitment Ltd,Home Care - Private Contractors Payment,104.75,0,VENDOR
01-11-2022,Adults & Health,Alters Recruitment Ltd,Home Care - Private Contractors Payment,28.74,0,VENDOR
01-11-2022,Adults & Health,Alters Recruitment Ltd,Home Care - Private Contractors Payment,194.47,0,VENDOR
01-11-2022,Adults & Health,Alters Recruitment Ltd,Home Care - Private Contractors Payment,194.47,0,VENDOR
01-11-2022,Adults & Health,Alters Recruitment Ltd,Home Care - Private Contractors Payment,153.28,0,VENDOR
01-11-2022,Adults & Health,Alters Recruitment Ltd,Daycare - Private Contractors Payment,19.16,0,VENDOR
01-11-2022,Adults & Health,Alters Recruitment Ltd,Home Care - Private Contractors Payment,19.16,0,VENDOR
01-11-2022,Adults & Health,Alters Recruitment Ltd,Daycare - Private Contractors Payment,19.16,0,VENDOR
01-11-2022,Adults & Health,Alters Recruitment Ltd,Home Care - Private Contractors Payment,28.74,0,VENDOR
01-11-2022,Adults & Health,Alters Recruitment Ltd,Daycare - Private Contractors Payment,38.32,0,VENDOR
01-11-2022,Adults & Health,Alters Recruitment Ltd,Home Care - Private Contractors Payment,268.24,0,VENDOR
01-11-2022,Adults & Health,Alters Recruitment Ltd,Home Care - Private Contractors Payment,201.18,0,VENDOR
01-11-2022,Adults & Health,Alters Recruitment Ltd,Home Care - Private Contractors Payment,19.16,0,VENDOR
01-11-2022,Adults & Health,Alters Recruitment Ltd,Home Care - Private Contractors Payment,134.12,0,VENDOR
01-11-2022,Adults & Health,Alters Recruitment Ltd,Home Care - Private Contractors Payment,804.72,0,VENDOR
01-11-2022,Adults & Health,Alters Recruitment Ltd,Home Care - Private Contractors Payment,134.12,0,VENDOR
01-11-2022,Adults & Health,Alters Recruitment Ltd,Home Care - Private Contractors Payment,19.16,0,VENDOR
01-11-2022,Adults & Health,Alters Recruitment Ltd,Home Care - Private Contractors Payment,19.16,0,VENDOR
01-11-2022,Adults & Health,Alters Recruitment Ltd,Daycare - Private Contractors Payment,57.48,0,VENDOR
01-11-2022,Adults & Health,Alters Recruitment Ltd,Home Care - Private Contractors Payment,38.32,0,VENDOR
01-11-2022,Adults & Health,Alters Recruitment Ltd,Respite Care - Private Contractors Payment,95.8,0,VENDOR
01-11-2022,Adults & Health,Alters Recruitment Ltd,Daycare - Private Contractors Payment,38.32,0,VENDOR
01-11-2022,Adults & Health,Alters Recruitment Ltd,Daycare - Private Contractors Payment,114.96,0,VENDOR
01-11-2022,Adults & Health,Alters Recruitment Ltd,Home Care - Private Contractors Payment,335.3,0,VENDOR
01-11-2022,Adults & Health,Alters Recruitment Ltd,Daycare - Private Contractors Payment,76.64,0,VENDOR
01-11-2022,Adults & Health,Alters Recruitment Ltd,Home Care - Private Contractors Payment,167.65,0,VENDOR
01-11-2022,Adults & Health,Alters Recruitment Ltd,Home Care - Private Contractors Payment,234.71,0,VENDOR
01-11-2022,Adults & Health,Alters Recruitment Ltd,Daycare - Private Contractors Payment,38.32,0,VENDOR
01-11-2022,Adults & Health,Alters Recruitment Ltd,Daycare - Private Contractors Payment,153.28,0,VENDOR
01-11-2022,Adults & Health,Alters Recruitment Ltd,Home Care - Private Contractors Payment,47.9,0,VENDOR
01-11-2022,Adults & Health,Alters Recruitment Ltd,Daycare - Private Contractors Payment,38.32,0,VENDOR
01-11-2022,Adults & Health,Alters Recruitment Ltd,Home Care - Private Contractors Payment,28.74,0,VENDOR
01-11-2022,Adults & Health,Alters Recruitment Ltd,Daycare - Private Contractors Payment,76.64,0,VENDOR
01-11-2022,Adults & Health,Alters Recruitment Ltd,Home Care - Private Contractors Payment,191.6,0,VENDOR
01-11-2022,Adults & Health,Alters Recruitment Ltd,Home Care - Private Contractors Payment,28.74,0,VENDOR
01-11-2022,Adults & Health,Alters Recruitment Ltd,Home Care - Private Contractors Payment,114.96,0,VENDOR
01-11-2022,Adults & Health,Alters Recruitment Ltd,Respite Care - Private Contractors Payment,95.8,0,VENDOR
01-11-2022,Adults & Health,Alters Recruitment Ltd,Home Care - Private Contractors Payment,100.59,0,VENDOR
01-11-2022,Adults & Health,Alters Recruitment Ltd,Home Care - Private Contractors Payment,114.96,0,VENDOR
01-11-2022,Adults & Health,Alters Recruitment Ltd,Home Care - Private Contractors Payment,76.64,0,VENDOR
01-11-2022,Adults & Health,Alters Recruitment Ltd,Daycare - Private Contractors Payment,19.16,0,VENDOR
01-11-2022,Adults & Health,Alters Recruitment Ltd,Home Care - Private Contractors Payment,28.74,0,VENDOR
01-11-2022,Adults & Health,Alters Recruitment Ltd,Daycare - Private Contractors Payment,57.48,0,VENDOR
01-11-2022,Adults & Health,Alters Recruitment Ltd,Home Care - Private Contractors Payment,100.59,0,VENDOR
01-11-2022,Adults & Health,Alters Recruitment Ltd,Home Care - Private Contractors Payment,110.17,0,VENDOR
01-11-2022,Adults & Health,Alters Recruitment Ltd,Home Care - Private Contractors Payment,234.71,0,VENDOR
01-11-2022,Adults & Health,Alters Recruitment Ltd,Daycare - Private Contractors Payment,459.84,0,VENDOR
01-11-2022,Adults & Health,Alters Recruitment Ltd,Home Care - Private Contractors Payment,431.1,0,VENDOR
01-11-2022,Adults & Health,Alters Recruitment Ltd,Home Care - Private Contractors Payment,34.49,0,VENDOR
01-11-2022,Adults & Health,Alters Recruitment Ltd,Home Care - Private Contractors Payment,19.16,0,VENDOR
01-11-2022,Adults & Health,Alters Recruitment Ltd,Home Care - Private Contractors Payment,100.59,0,VENDOR
01-11-2022,Adults & Health,Alters Recruitment Ltd,Home Care - Private Contractors Payment,416.73,0,VENDOR
01-11-2022,Adults & Health,Alters Recruitment Ltd,Daycare - Private Contractors Payment,459.84,0,VENDOR
01-11-2022,Adults & Health,Alters Recruitment Ltd,Daycare - Private Contractors Payment,172.44,0,VENDOR
01-11-2022,Adults & Health,Alters Recruitment Ltd,Daycare - Private Contractors Payment,95.8,0,VENDOR
01-11-2022,Adults & Health,Alters Recruitment Ltd,Home Care - Private Contractors Payment,234.71,0,VENDOR
01-11-2022,Adults & Health,Alters Recruitment Ltd,Daycare - Private Contractors Payment,114.96,0,VENDOR
01-11-2022,Adults & Health,Alters Recruitment Ltd,Home Care - Private Contractors Payment,100.59,0,VENDOR
01-11-2022,Adults & Health,Alters Recruitment Ltd,Home Care - Private Contractors Payment,194.47,0,VENDOR
01-11-2022,Adults & Health,Alters Recruitment Ltd,Home Care - Private Contractors Payment,110.17,0,VENDOR
01-11-2022,Adults & Health,Alters Recruitment Ltd,Home Care - Private Contractors Payment,335.3,0,VENDOR
01-11-2022,Adults & Health,Alters Recruitment Ltd,Home Care - Private Contractors Payment,100.59,0,VENDOR
01-11-2022,Adults & Health,Alters Recruitment Ltd,Home Care - Private Contractors Payment,268.24,0,VENDOR
01-11-2022,Adults & Health,Alters Recruitment Ltd,Home Care - Private Contractors Payment,234.71,0,VENDOR
01-11-2022,Adults & Health,Alters Recruitment Ltd,Daycare - Private Contractors Payment,114.96,0,VENDOR
01-11-2022,Adults & Health,Alters Recruitment Ltd,Home Care - Private Contractors Payment,9.58,0,VENDOR
01-11-2022,Adults & Health,Alters Recruitment Ltd,Daycare - Private Contractors Payment,114.96,0,VENDOR
01-11-2022,Adults & Health,Alters Recruitment Ltd,Daycare - Private Contractors Payment,57.48,0,VENDOR
01-11-2022,Adults & Health,Alters Recruitment Ltd,Home Care - Private Contractors Payment,368.83,0,VENDOR
01-11-2022,Adults & Health,Alters Recruitment Ltd,Home Care - Private Contractors Payment,234.71,0,VENDOR
01-11-2022,Adults & Health,Alters Recruitment Ltd,Daycare - Private Contractors Payment,172.44,0,VENDOR
01-11-2022,Adults & Health,Alters Recruitment Ltd,Home Care - Private Contractors Payment,9.58,0,VENDOR
01-11-2022,Adults & Health,Alters Recruitment Ltd,Home Care - Private Contractors Payment,134.12,0,VENDOR
01-11-2022,Adults & Health,Alters Recruitment Ltd,Home Care - Private Contractors Payment,95.8,0,VENDOR
01-11-2022,Adults & Health,Alters Recruitment Ltd,Home Care - Private Contractors Payment,28.74,0,VENDOR
01-11-2022,Adults & Health,Alters Recruitment Ltd,Home Care - Private Contractors Payment,335.3,0,VENDOR
01-11-2022,Adults & Health,Alters Recruitment Ltd,Daycare - Private Contractors Payment,57.48,0,VENDOR
01-11-2022,Adults & Health,Alters Recruitment Ltd,Home Care - Private Contractors Payment,95.8,0,VENDOR
01-11-2022,Adults & Health,Alters Recruitment Ltd,Daycare - Private Contractors Payment,38.32,0,VENDOR
01-11-2022,Adults & Health,Alters Recruitment Ltd,Home Care - Private Contractors Payment,67.06,0,VENDOR
01-11-2022,Adults & Health,Alters Recruitment Ltd,Daycare - Private Contractors Payment,57.48,0,VENDOR
01-11-2022,Adults & Health,Alters Recruitment Ltd,Daycare - Private Contractors Payment,134.12,0,VENDOR
01-11-2022,Adults & Health,Alters Recruitment Ltd,Home Care - Private Contractors Payment,402.36,0,VENDOR
01-11-2022,Adults & Health,Alters Recruitment Ltd,Home Care - Private Contractors Payment,9.58,0,VENDOR
01-11-2022,Adults & Health,Alters Recruitment Ltd,Home Care - Private Contractors Payment,28.74,0,VENDOR
01-11-2022,Adults & Health,Alters Recruitment Ltd,Home Care - Private Contractors Payment,134.12,0,VENDOR
01-11-2022,Adults & Health,Alters Recruitment Ltd,Daycare - Private Contractors Payment,57.48,0,VENDOR
01-11-2022,Adults & Health,Alters Recruitment Ltd,Daycare - Private Contractors Payment,134.12,0,VENDOR
01-11-2022,Adults & Health,Alters Recruitment Ltd,Home Care - Private Contractors Payment,9.58,0,VENDOR
01-11-2022,Adults & Health,Alters Recruitment Ltd,Home Care - Private Contractors Payment,28.74,0,VENDOR
01-11-2022,Adults & Health,Alters Recruitment Ltd,Home Care - Private Contractors Payment,19.16,0,VENDOR
01-11-2022,Adults & Health,Alters Recruitment Ltd,Home Care - Private Contractors Payment,194.47,0,VENDOR
01-11-2022,Adults & Health,Alters Recruitment Ltd,Home Care - Private Contractors Payment,28.74,0,VENDOR
01-11-2022,Adults & Health,Alters Recruitment Ltd,Daycare - Private Contractors Payment,191.6,0,VENDOR
01-11-2022,Adults & Health,Alters Recruitment Ltd,Home Care - Private Contractors Payment,33.53,0,VENDOR
01-11-2022,Adults & Health,Alters Recruitment Ltd,Daycare - Private Contractors Payment,57.48,0,VENDOR
01-11-2022,Adults & Health,Alters Recruitment Ltd,Daycare - Private Contractors Payment,191.6,0,VENDOR
01-11-2022,Adults & Health,Alters Recruitment Ltd,Home Care - Private Contractors Payment,737.66,0,VENDOR
01-11-2022,Adults & Health,Alters Recruitment Ltd,Respite Care - Private Contractors Payment,287.4,0,VENDOR
01-11-2022,Adults & Health,Alters Recruitment Ltd,Home Care - Private Contractors Payment,134.12,0,VENDOR
01-11-2022,Adults & Health,Alters Recruitment Ltd,Home Care - Private Contractors Payment,167.65,0,VENDOR
01-11-2022,Adults & Health,Alters Recruitment Ltd,Home Care - Private Contractors Payment,19.16,0,VENDOR
01-11-2022,Adults & Health,Alters Recruitment Ltd,Home Care - Private Contractors Payment,9.58,0,VENDOR
01-11-2022,Adults & Health,Alters Recruitment Ltd,Home Care - Private Contractors Payment,301.77,0,VENDOR
01-11-2022,Adults & Health,Alters Recruitment Ltd,Daycare - Private Contractors Payment,55.87,0,VENDOR
01-11-2022,Adults & Health,Alters Recruitment Ltd,Home Care - Private Contractors Payment,368.83,0,VENDOR
01-11-2022,Adults & Health,Alters Recruitment Ltd,Home Care - Private Contractors Payment,9.58,0,VENDOR
01-11-2022,Adults & Health,Alters Recruitment Ltd,Home Care - Private Contractors Payment,28.74,0,VENDOR
01-11-2022,Adults & Health,Alters Recruitment Ltd,Home Care - Private Contractors Payment,153.28,0,VENDOR
01-11-2022,Adults & Health,Alters Recruitment Ltd,Daycare - Private Contractors Payment,57.48,0,VENDOR
01-11-2022,Adults & Health,Alters Recruitment Ltd,Home Care - Private Contractors Payment,680.18,0,VENDOR
01-11-2022,Adults & Health,Alters Recruitment Ltd,Home Care - Private Contractors Payment,19.16,0,VENDOR
01-11-2022,Adults & Health,Alters Recruitment Ltd,Home Care - Private Contractors Payment,28.74,0,VENDOR
01-11-2022,Adults & Health,Alters Recruitment Ltd,Home Care - Private Contractors Payment,100.59,0,VENDOR
01-11-2022,Adults & Health,Alters Recruitment Ltd,Daycare - Private Contractors Payment,38.32,0,VENDOR
01-11-2022,Adults & Health,Alters Recruitment Ltd,Home Care - Private Contractors Payment,67.06,0,VENDOR
01-11-2022,Adults & Health,Alters Recruitment Ltd,Home Care - Private Contractors Payment,19.16,0,VENDOR
01-11-2022,Adults & Health,Alters Recruitment Ltd,Home Care - Private Contractors Payment,134.12,0,VENDOR
01-11-2022,Adults & Health,Alters Recruitment Ltd,Daycare - Private Contractors Payment,19.2,0,VENDOR
01-11-2022,Adults & Health,Alters Recruitment Ltd,Daycare - Private Contractors Payment,38.32,0,VENDOR
01-11-2022,Adults & Health,Alters Recruitment Ltd,Home Care - Private Contractors Payment,19.16,0,VENDOR
01-11-2022,Adults & Health,Alters Recruitment Ltd,Home Care - Private Contractors Payment,67.06,0,VENDOR
01-11-2022,Adults & Health,Alters Recruitment Ltd,Home Care - Private Contractors Payment,9.58,0,VENDOR
01-11-2022,Adults & Health,Alters Recruitment Ltd,Daycare - Private Contractors Payment,76.64,0,VENDOR
01-11-2022,Adults & Health,Alters Recruitment Ltd,Daycare - Private Contractors Payment,57.48,0,VENDOR
01-11-2022,Adults & Health,Alters Recruitment Ltd,Daycare - Private Contractors Payment,57.48,0,VENDOR
01-11-2022,Adults & Health,Alters Recruitment Ltd,Daycare - Private Contractors Payment,114.96,0,VENDOR
01-11-2022,Adults & Health,Alters Recruitment Ltd,Home Care - Private Contractors Payment,335.3,0,VENDOR
01-11-2022,Adults & Health,Alters Recruitment Ltd,Home Care - Private Contractors Payment,268.24,0,VENDOR
01-11-2022,Adults & Health,Alters Recruitment Ltd,Home Care - Private Contractors Payment,38.32,0,VENDOR
01-11-2022,Adults & Health,Alters Recruitment Ltd,Home Care - Private Contractors Payment,421.52,0,VENDOR
01-11-2022,Adults & Health,Alters Recruitment Ltd,Home Care - Private Contractors Payment,100.59,0,VENDOR
01-11-2022,Adults & Health,Alters Recruitment Ltd,Home Care - Private Contractors Payment,209.41,0,VENDOR
01-11-2022,Adults & Health,Alters Recruitment Ltd,Home Care - Private Contractors Payment,402.36,0,VENDOR
01-11-2022,Adults & Health,Alters Recruitment Ltd,Home Care - Private Contractors Payment,134.12,0,VENDOR
01-11-2022,Adults & Health,Alters Recruitment Ltd,Daycare - Private Contractors Payment,57.48,0,VENDOR
01-11-2022,Adults & Health,Alters Recruitment Ltd,Home Care - Private Contractors Payment,9.58,0,VENDOR
01-11-2022,Adults & Health,Alters Recruitment Ltd,Home Care - Private Contractors Payment,182.65,0,VENDOR
01-11-2022,Adults & Health,Alters Recruitment Ltd,Daycare - Private Contractors Payment,89.75,0,VENDOR
01-11-2022,Adults & Health,Alters Recruitment Ltd,Home Care - Private Contractors Payment,110.8,0,VENDOR
01-11-2022,Adults & Health,Alters Recruitment Ltd,Daycare - Private Contractors Payment,114.96,0,VENDOR
01-11-2022,Adults & Health,Alters Recruitment Ltd,Home Care - Private Contractors Payment,110.8,0,VENDOR
01-11-2022,Adults & Health,Alters Recruitment Ltd,Home Care - Private Contractors Payment,28.74,0,VENDOR
01-11-2022,Adults & Health,Alters Recruitment Ltd,Home Care - Private Contractors Payment,115.59,0,VENDOR
01-11-2022,Adults & Health,Alters Recruitment Ltd,Home Care - Private Contractors Payment,201.18,0,VENDOR
01-11-2022,Adults & Health,Alters Recruitment Ltd,Home Care - Private Contractors Payment,194.47,0,VENDOR
01-11-2022,Adults & Health,Alters Recruitment Ltd,Home Care - Private Contractors Payment,114.96,0,VENDOR
01-11-2022,Adults & Health,Alters Recruitment Ltd,Home Care - Private Contractors Payment,737.66,0,VENDOR
01-11-2022,Adults & Health,Alters Recruitment Ltd,Home Care - Private Contractors Payment,368.83,0,VENDOR
01-11-2022,Adults & Health,Alters Recruitment Ltd,Home Care - Private Contractors Payment,28.74,0,VENDOR
01-11-2022,Adults & Health,Alters Recruitment Ltd,Home Care - Private Contractors Payment,421.52,0,VENDOR
01-11-2022,Adults & Health,Alters Recruitment Ltd,Home Care - Private Contractors Payment,100.59,0,VENDOR
01-11-2022,Adults & Health,Alters Recruitment Ltd,Daycare - Private Contractors Payment,38.32,0,VENDOR
01-11-2022,Adults & Health,Alters Recruitment Ltd,Home Care - Private Contractors Payment,19.16,0,VENDOR
01-11-2022,Adults & Health,Alters Recruitment Ltd,Daycare - Private Contractors Payment,191.6,0,VENDOR
01-11-2022,Adults & Health,Alters Recruitment Ltd,Daycare - Private Contractors Payment,57.48,0,VENDOR
01-11-2022,Adults & Health,Alters Recruitment Ltd,Daycare - Private Contractors Payment,76.64,0,VENDOR
01-11-2022,Adults & Health,Alters Recruitment Ltd,Home Care - Private Contractors Payment,57.48,0,VENDOR
01-11-2022,Adults & Health,Alters Recruitment Ltd,Home Care - Private Contractors Payment,67.06,0,VENDOR
01-11-2022,Adults & Health,Alters Recruitment Ltd,Home Care - Private Contractors Payment,301.77,0,VENDOR
01-11-2022,Adults & Health,Alters Recruitment Ltd,Home Care - Private Contractors Payment,421.52,0,VENDOR
01-11-2022,Adults & Health,Alters Recruitment Ltd,Daycare - Private Contractors Payment,134.12,0,VENDOR
01-11-2022,Adults & Health,Alters Recruitment Ltd,Daycare - Private Contractors Payment,57.48,0,VENDOR
01-11-2022,Adults & Health,Alters Recruitment Ltd,Daycare - Private Contractors Payment,38.32,0,VENDOR
01-11-2022,Adults & Health,Alters Recruitment Ltd,Home Care - Private Contractors Payment,234.71,0,VENDOR
01-11-2022,Adults & Health,Alters Recruitment Ltd,Daycare - Private Contractors Payment,153.28,0,VENDOR
01-11-2022,Adults & Health,Alters Recruitment Ltd,Home Care - Private Contractors Payment,167.65,0,VENDOR
01-11-2022,Adults & Health,Alters Recruitment Ltd,Home Care - Private Contractors Payment,19.16,0,VENDOR
01-11-2022,Adults & Health,Alters Recruitment Ltd,Home Care - Private Contractors Payment,28.74,0,VENDOR
01-11-2022,Adults & Health,Alters Recruitment Ltd,Home Care - Private Contractors Payment,19.16,0,VENDOR
01-11-2022,Adults & Health,Alters Recruitment Ltd,Daycare - Private Contractors Payment,38.32,0,VENDOR
01-11-2022,Adults & Health,Alters Recruitment Ltd,Daycare - Private Contractors Payment,114.96,0,VENDOR
01-11-2022,Adults & Health,Alters Recruitment Ltd,Daycare - Private Contractors Payment,95.8,0,VENDOR
01-11-2022,Adults & Health,Alters Recruitment Ltd,Home Care - Private Contractors Payment,134.12,0,VENDOR
01-11-2022,Adults & Health,Alters Recruitment Ltd,Daycare - Private Contractors Payment,57.48,0,VENDOR
01-11-2022,Adults & Health,Alters Recruitment Ltd,Home Care - Private Contractors Payment,38.32,0,VENDOR
01-11-2022,Adults & Health,Alters Recruitment Ltd,Daycare - Private Contractors Payment,172.44,0,VENDOR
01-11-2022,Adults & Health,Alters Recruitment Ltd,Home Care - Private Contractors Payment,234.71,0,VENDOR
01-11-2022,Adults & Health,Alters Recruitment Ltd,Home Care - Private Contractors Payment,19.16,0,VENDOR
01-11-2022,Adults & Health,Alters Recruitment Ltd,Daycare - Private Contractors Payment,134.12,0,VENDOR
01-11-2022,Adults & Health,Alters Recruitment Ltd,Respite Care - Private Contractors Payment,95.8,0,VENDOR
01-11-2022,Adults & Health,Alters Recruitment Ltd,Home Care - Private Contractors Payment,416.73,0,VENDOR
01-11-2022,Adults & Health,Alters Recruitment Ltd,Home Care - Private Contractors Payment,47.9,0,VENDOR
01-11-2022,Adults & Health,Alters Recruitment Ltd,Home Care - Private Contractors Payment,695.18,0,VENDOR
01-11-2022,Adults & Health,Alters Recruitment Ltd,Daycare - Private Contractors Payment,59.71,0,VENDOR
01-11-2022,Adults & Health,Alters Recruitment Ltd,Daycare - Private Contractors Payment,38.32,0,VENDOR
01-11-2022,Adults & Health,Alters Recruitment Ltd,Home Care - Private Contractors Payment,19.16,0,VENDOR
01-11-2022,Adults & Health,Alters Recruitment Ltd,Daycare - Private Contractors Payment,134.12,0,VENDOR
01-11-2022,Adults & Health,Alters Recruitment Ltd,Daycare - Private Contractors Payment,76.64,0,VENDOR
01-11-2022,Adults & Health,Alters Recruitment Ltd,Daycare - Private Contractors Payment,19.16,0,VENDOR
01-11-2022,Adults & Health,Alters Recruitment Ltd,Home Care - Private Contractors Payment,115.59,0,VENDOR
01-11-2022,Adults & Health,Alters Recruitment Ltd,Home Care - Private Contractors Payment,209.41,0,VENDOR
01-11-2022,Adults & Health,Alters Recruitment Ltd,Home Care - Private Contractors Payment,134.12,0,VENDOR
01-11-2022,Adults & Health,Alters Recruitment Ltd,Home Care - Private Contractors Payment,153.28,0,VENDOR
01-11-2022,Adults & Health,Alters Recruitment Ltd,Home Care - Private Contractors Payment,122.31,0,VENDOR
01-11-2022,Adults & Health,Alters Recruitment Ltd,Home Care - Private Contractors Payment,680.18,0,VENDOR
01-11-2022,Adults & Health,Alters Recruitment Ltd,Home Care - Private Contractors Payment,76.64,0,VENDOR
01-11-2022,Adults & Health,Alters Recruitment Ltd,Respite Care - Private Contractors Payment,95.8,0,VENDOR
01-11-2022,Adults & Health,Alters Recruitment Ltd,Home Care - Private Contractors Payment,110.17,0,VENDOR
01-11-2022,Adults & Health,Alters Recruitment Ltd,Home Care - Private Contractors Payment,57.48,0,VENDOR
01-11-2022,Adults & Health,Alters Recruitment Ltd,Home Care - Private Contractors Payment,19.16,0,VENDOR
01-11-2022,Adults & Health,Alters Recruitment Ltd,Respite Care - Private Contractors Payment,287.4,0,VENDOR
01-11-2022,Adults & Health,Alters Recruitment Ltd,Respite Care - Private Contractors Payment,95.8,0,VENDOR
01-11-2022,Adults & Health,Alters Recruitment Ltd,Home Care - Private Contractors Payment,28.74,0,VENDOR
01-11-2022,Adults & Health,Alters Recruitment Ltd,Home Care - Private Contractors Payment,125.17,0,VENDOR
01-11-2022,Adults & Health,Alters Recruitment Ltd,Home Care - Private Contractors Payment,134.75,0,VENDOR
01-11-2022,Adults & Health,Alters Recruitment Ltd,Home Care - Private Contractors Payment,686.57,0,VENDOR
01-11-2022,Adults & Health,Alters Recruitment Ltd,Daycare - Private Contractors Payment,57.48,0,VENDOR
01-11-2022,Adults & Health,Alters Recruitment Ltd,Home Care - Private Contractors Payment,249.71,0,VENDOR
01-11-2022,Adults & Health,Alters Recruitment Ltd,Respite Care - Private Contractors Payment,95.8,0,VENDOR
01-11-2022,Adults & Health,Alters Recruitment Ltd,Daycare - Private Contractors Payment,38.32,0,VENDOR
01-11-2022,Adults & Health,Alters Recruitment Ltd,Respite Care - Private Contractors Payment,287.4,0,VENDOR
01-11-2022,Adults & Health,Alters Recruitment Ltd,Home Care - Private Contractors Payment,19.16,0,VENDOR
01-11-2022,Adults & Health,Alters Recruitment Ltd,Daycare - Private Contractors Payment,57.48,0,VENDOR
01-11-2022,Adults & Health,Alters Recruitment Ltd,Home Care - Private Contractors Payment,268.24,0,VENDOR
01-11-2022,Adults & Health,Alters Recruitment Ltd,Daycare - Private Contractors Payment,76.64,0,VENDOR
01-11-2022,Adults & Health,Alters Recruitment Ltd,Home Care - Private Contractors Payment,67.06,0,VENDOR
01-11-2022,Adults & Health,Alters Recruitment Ltd,Home Care - Private Contractors Payment,268.24,0,VENDOR
01-11-2022,Adults & Health,Alters Recruitment Ltd,Home Care - Private Contractors Payment,100.59,0,VENDOR
01-11-2022,Adults & Health,Alters Recruitment Ltd,Home Care - Private Contractors Payment,804.72,0,VENDOR
01-11-2022,Adults & Health,Alters Recruitment Ltd,Home Care - Private Contractors Payment,234.71,0,VENDOR
01-11-2022,Adults & Health,Alters Recruitment Ltd,Home Care - Private Contractors Payment,234.71,0,VENDOR
01-11-2022,Adults & Health,Alters Recruitment Ltd,Daycare - Private Contractors Payment,76.64,0,VENDOR
01-11-2022,Adults & Health,Alters Recruitment Ltd,Daycare - Private Contractors Payment,153.28,0,VENDOR
01-11-2022,Adults & Health,Alters Recruitment Ltd,Daycare - Private Contractors Payment,114.96,0,VENDOR
01-11-2022,Adults & Health,Alters Recruitment Ltd,Home Care - Private Contractors Payment,402.36,0,VENDOR
01-11-2022,Adults & Health,Alters Recruitment Ltd,Daycare - Private Contractors Payment,57.48,0,VENDOR
01-11-2022,Adults & Health,Alters Recruitment Ltd,Daycare - Private Contractors Payment,19.16,0,VENDOR
01-11-2022,Adults & Health,Alters Recruitment Ltd,Home Care - Private Contractors Payment,76.64,0,VENDOR
01-11-2022,Adults & Health,Alters Recruitment Ltd,Home Care - Private Contractors Payment,129.96,0,VENDOR
01-11-2022,Adults & Health,Alters Recruitment Ltd,Home Care - Private Contractors Payment,79.2,0,VENDOR
01-11-2022,Adults & Health,Alters Recruitment Ltd,Daycare - Private Contractors Payment,57.48,0,VENDOR
01-11-2022,Adults & Health,Alters Recruitment Ltd,Home Care - Private Contractors Payment,19.16,0,VENDOR
01-11-2022,Adults & Health,Alters Recruitment Ltd,Home Care - Private Contractors Payment,9.58,0,VENDOR
01-11-2022,Adults & Health,Alters Recruitment Ltd,Home Care - Private Contractors Payment,229.6,0,VENDOR
01-11-2022,Adults & Health,Alters Recruitment Ltd,Daycare - Private Contractors Payment,76.64,0,VENDOR
01-11-2022,Adults & Health,Alters Recruitment Ltd,Home Care - Private Contractors Payment,335.3,0,VENDOR
01-11-2022,Adults & Health,Alters Recruitment Ltd,Home Care - Private Contractors Payment,19.16,0,VENDOR
01-11-2022,Adults & Health,Alters Recruitment Ltd,Home Care - Private Contractors Payment,383.83,0,VENDOR
01-11-2022,Adults & Health,Alters Recruitment Ltd,Home Care - Private Contractors Payment,28.74,0,VENDOR
01-11-2022,Adults & Health,Alters Recruitment Ltd,Home Care - Private Contractors Payment,436.52,0,VENDOR
01-11-2022,Adults & Health,Alters Recruitment Ltd,Daycare - Private Contractors Payment,19.16,0,VENDOR
01-11-2022,Adults & Health,Alters Recruitment Ltd,Home Care - Private Contractors Payment,268.24,0,VENDOR
01-11-2022,Adults & Health,Alters Recruitment Ltd,Daycare - Private Contractors Payment,459.84,0,VENDOR
01-11-2022,Adults & Health,Alters Recruitment Ltd,Daycare - Private Contractors Payment,57.48,0,VENDOR
01-11-2022,Adults & Health,Alters Recruitment Ltd,Daycare - Private Contractors Payment,57.48,0,VENDOR
01-11-2022,Adults & Health,Alters Recruitment Ltd,Daycare - Private Contractors Payment,38.32,0,VENDOR
01-11-2022,Adults & Health,Alters Recruitment Ltd,Daycare - Private Contractors Payment,57.48,0,VENDOR
01-11-2022,Adults & Health,Alters Recruitment Ltd,Respite Care - Private Contractors Payment,76.64,0,VENDOR
01-11-2022,Adults & Health,Alters Recruitment Ltd,Home Care - Private Contractors Payment,301.77,0,VENDOR
01-11-2022,Adults & Health,Alters Recruitment Ltd,Home Care - Private Contractors Payment,38.32,0,VENDOR
01-11-2022,Adults & Health,Alters Recruitment Ltd,Home Care - Private Contractors Payment,134.12,0,VENDOR
01-11-2022,Adults & Health,Alters Recruitment Ltd,Home Care - Private Contractors Payment,234.71,0,VENDOR
01-11-2022,Adults & Health,Alters Recruitment Ltd,Home Care - Private Contractors Payment,67.06,0,VENDOR
01-11-2022,Adults & Health,Alters Recruitment Ltd,Daycare - Private Contractors Payment,459.84,0,VENDOR
01-11-2022,Adults & Health,Alters Recruitment Ltd,Home Care - Private Contractors Payment,9.58,0,VENDOR
01-11-2022,Adults & Health,Alters Recruitment Ltd,Home Care - Private Contractors Payment,19.16,0,VENDOR
01-11-2022,Adults & Health,Alters Recruitment Ltd,Home Care - Private Contractors Payment,105.38,0,VENDOR
01-11-2022,Adults & Health,Alters Recruitment Ltd,Home Care - Private Contractors Payment,19.16,0,VENDOR
01-11-2022,Adults & Health,Alters Recruitment Ltd,Home Care - Private Contractors Payment,28.74,0,VENDOR
01-11-2022,Adults & Health,Alters Recruitment Ltd,Home Care - Private Contractors Payment,28.74,0,VENDOR
01-11-2022,Adults & Health,Alters Recruitment Ltd,Home Care - Private Contractors Payment,21.08,0,VENDOR
01-11-2022,Adults & Health,Alters Recruitment Ltd,Daycare - Private Contractors Payment,76.64,0,VENDOR
01-11-2022,Adults & Health,Alters Recruitment Ltd,Daycare - Private Contractors Payment,38.32,0,VENDOR
01-11-2022,Adults & Health,Alters Recruitment Ltd,Home Care - Private Contractors Payment,115.59,0,VENDOR
01-11-2022,Adults & Health,Alters Recruitment Ltd,Home Care - Private Contractors Payment,95.8,0,VENDOR
01-11-2022,Adults & Health,Alters Recruitment Ltd,Home Care - Private Contractors Payment,306.56,0,VENDOR
01-11-2022,Adults & Health,Alters Recruitment Ltd,Home Care - Private Contractors Payment,95.8,0,VENDOR
01-11-2022,Adults & Health,Alters Recruitment Ltd,Home Care - Private Contractors Payment,28.74,0,VENDOR
01-11-2022,Adults & Health,Alters Recruitment Ltd,Daycare - Private Contractors Payment,76.64,0,VENDOR
01-11-2022,Adults & Health,Alters Recruitment Ltd,Home Care - Private Contractors Payment,234.71,0,VENDOR
01-11-2022,Adults & Health,Alters Recruitment Ltd,Home Care - Private Contractors Payment,95.8,0,VENDOR
01-11-2022,Adults & Health,Alters Recruitment Ltd,Home Care - Private Contractors Payment,19.16,0,VENDOR
01-11-2022,Adults & Health,Alters Recruitment Ltd,Home Care - Private Contractors Payment,9.58,0,VENDOR
01-11-2022,Adults & Health,Alters Recruitment Ltd,Home Care - Private Contractors Payment,335.3,0,VENDOR
01-11-2022,Adults & Health,Alters Recruitment Ltd,Home Care - Private Contractors Payment,28.74,0,VENDOR
01-11-2022,Adults & Health,Alters Recruitment Ltd,Daycare - Private Contractors Payment,38.32,0,VENDOR
01-11-2022,Adults & Health,Alters Recruitment Ltd,Home Care - Private Contractors Payment,168.28,0,VENDOR
01-11-2022,Adults & Health,Alters Recruitment Ltd,Home Care - Private Contractors Payment,216.18,0,VENDOR
01-11-2022,Adults & Health,Alters Recruitment Ltd,Home Care - Private Contractors Payment,431.73,0,VENDOR
01-11-2022,Adults & Health,Alters Recruitment Ltd,Home Care - Private Contractors Payment,43.74,0,VENDOR
01-11-2022,Adults & Health,Alters Recruitment Ltd,Home Care - Private Contractors Payment,47.9,0,VENDOR
01-11-2022,Adults & Health,Alters Recruitment Ltd,Home Care - Private Contractors Payment,316.77,0,VENDOR
01-11-2022,Adults & Health,Alters Recruitment Ltd,Daycare - Private Contractors Payment,199.6,0,VENDOR
01-11-2022,Adults & Health,Alters Recruitment Ltd,Home Care - Private Contractors Payment,38.32,0,VENDOR
01-11-2022,Adults & Health,Alters Recruitment Ltd,Daycare - Private Contractors Payment,38.32,0,VENDOR
01-11-2022,Adults & Health,Alters Recruitment Ltd,Daycare - Private Contractors Payment,19.16,0,VENDOR
01-11-2022,Adults & Health,Alters Recruitment Ltd,Home Care - Private Contractors Payment,350.3,0,VENDOR
01-11-2022,Adults & Health,Alters Recruitment Ltd,Daycare - Private Contractors Payment,57.48,0,VENDOR
01-11-2022,Adults & Health,Alters Recruitment Ltd,Daycare - Private Contractors Payment,114.96,0,VENDOR
01-11-2022,Adults & Health,Alters Recruitment Ltd,Home Care - Private Contractors Payment,416.73,0,VENDOR
01-11-2022,Adults & Health,Alters Recruitment Ltd,Home Care - Private Contractors Payment,268.24,0,VENDOR
01-11-2022,RMS,Capsticks Solicitors LLP,Legal Fees,344.53,0,LEGAL SERVICES
01-11-2022,Environment and Sustainable Transport,Worldline IT Services UK Ltd Re Fuel Genie,Transport Fuel,252.28,0,COMMERCIAL SUPPLIER
01-11-2022,Environment and Sustainable Transport,Worldline IT Services UK Ltd Re Fuel Genie,Transport Fuel,1208.06,0,COMMERCIAL SUPPLIER
01-11-2022,Environment and Sustainable Transport,Portakabin Ltd,Premises Hire - Facilities,2373.33,0,COMMERCIAL SUPPLIER
01-11-2022,oneSource - Non Shared,Newham Learning Partnership (Project Co) Limited,"Maintenance - Equipment, Furniture And Materials",328311.54,0,VENDOR
01-11-2022,oneSource - Non Shared,Newham Learning Partnership (Project Co) Limited,"Maintenance - Equipment, Furniture And Materials",403590.11,0,VENDOR
01-11-2022,oneSource - Non Shared,Building A Future (Newham Schools) Limited,"Maintenance - Equipment, Furniture And Materials",276481.1,0,VENDOR
01-11-2022,oneSource - Non Shared,Building A Future (Newham Schools) Limited,"Maintenance - Equipment, Furniture And Materials",72819.36,0,VENDOR
01-11-2022,oneSource - Non Shared,Building A Future (Newham Schools) Limited,"Maintenance - Equipment, Furniture And Materials",72313.93,0,VENDOR
01-11-2022,Digital,NEC Software Solutions UK Ltd,Ict Licences,825.01,0,COMMERCIAL SUPPLIER
01-11-2022,Transformation,NEC Software Solutions UK Ltd,Ict Licences,600,0,COMMERCIAL SUPPLIER
01-11-2022,RMS,Benchmarx Kitchens and Joinery,Building Alterations And Materials,363.85,0,COMMERCIAL SUPPLIER
01-11-2022,Environment and Sustainable Transport,Motor Accident Protection Services Ltd t/a MAPS Legal Assistance,Insurance (Excl Premises And Transport),277.5,0,NON COMMERCIAL SUPPLIER
01-11-2022,Children and Young People,Cambian Childcare Ltd,Residential Placements - Private Contractors Payment,5450,0,COMMERCIAL SUPPLIER
01-11-2022,Children and Young People,Cambian Childcare Ltd,Residential Placements - Private Contractors Payment,7007.1,0,COMMERCIAL SUPPLIER
01-11-2022,Children and Young People,Cambian Childcare Ltd,Residential Placements - Private Contractors Payment,5450,0,COMMERCIAL SUPPLIER
01-11-2022,Children and Young People,Cambian Childcare Ltd,Residential Placements - Private Contractors Payment,5450,0,COMMERCIAL SUPPLIER
01-11-2022,Adults & Health,Look Ahead Housing and Care Ltd,Supported Other Accommodation - Private Contractors Payment,842.55,0,COMMERCIAL SUPPLIER
01-11-2022,Adults & Health,Look Ahead Housing and Care Ltd,Supported Other Accommodation - Private Contractors Payment,842.55,0,COMMERCIAL SUPPLIER
01-11-2022,Adults & Health,Look Ahead Housing and Care Ltd,Supported Other Accommodation - Private Contractors Payment,842.55,0,COMMERCIAL SUPPLIER
01-11-2022,Adults & Health,Look Ahead Housing and Care Ltd,Supported Other Accommodation - Private Contractors Payment,842.55,0,COMMERCIAL SUPPLIER
01-11-2022,Adults & Health,Look Ahead Housing and Care Ltd,Supported Other Accommodation - Private Contractors Payment,853.83,0,COMMERCIAL SUPPLIER
01-11-2022,Adults & Health,Look Ahead Housing and Care Ltd,Supported Other Accommodation - Private Contractors Payment,853.83,0,COMMERCIAL SUPPLIER
01-11-2022,Adults & Health,Look Ahead Housing and Care Ltd,Supported Other Accommodation - Private Contractors Payment,853.83,0,COMMERCIAL SUPPLIER
01-11-2022,Adults & Health,Look Ahead Housing and Care Ltd,Supported Other Accommodation - Private Contractors Payment,853.83,0,COMMERCIAL SUPPLIER
01-11-2022,Adults & Health,Look Ahead Housing and Care Ltd,Supported Other Accommodation - Private Contractors Payment,842.55,0,COMMERCIAL SUPPLIER
01-11-2022,Adults & Health,Look Ahead Housing and Care Ltd,Supported Other Accommodation - Private Contractors Payment,842.55,0,COMMERCIAL SUPPLIER
01-11-2022,Adults & Health,Look Ahead Housing and Care Ltd,Supported Other Accommodation - Private Contractors Payment,842.55,0,COMMERCIAL SUPPLIER
01-11-2022,Adults & Health,Look Ahead Housing and Care Ltd,Supported Other Accommodation - Private Contractors Payment,842.55,0,COMMERCIAL SUPPLIER
01-11-2022,Adults & Health,Look Ahead Housing and Care Ltd,Supported Other Accommodation - Private Contractors Payment,842.55,0,COMMERCIAL SUPPLIER
01-11-2022,Adults & Health,Look Ahead Housing and Care Ltd,Supported Other Accommodation - Private Contractors Payment,842.55,0,COMMERCIAL SUPPLIER
01-11-2022,Adults & Health,Look Ahead Housing and Care Ltd,Supported Other Accommodation - Private Contractors Payment,842.55,0,COMMERCIAL SUPPLIER
01-11-2022,Adults & Health,Look Ahead Housing and Care Ltd,Supported Other Accommodation - Private Contractors Payment,842.55,0,COMMERCIAL SUPPLIER
01-11-2022,Adults & Health,Look Ahead Housing and Care Ltd,Supported Other Accommodation - Private Contractors Payment,842.55,0,COMMERCIAL SUPPLIER
01-11-2022,Adults & Health,Look Ahead Housing and Care Ltd,Supported Other Accommodation - Private Contractors Payment,842.55,0,COMMERCIAL SUPPLIER
01-11-2022,Adults & Health,Look Ahead Housing and Care Ltd,Supported Other Accommodation - Private Contractors Payment,842.55,0,COMMERCIAL SUPPLIER
01-11-2022,Adults & Health,Look Ahead Housing and Care Ltd,Supported Other Accommodation - Private Contractors Payment,842.55,0,COMMERCIAL SUPPLIER
01-11-2022,Adults & Health,Look Ahead Housing and Care Ltd,Supported Other Accommodation - Private Contractors Payment,889.78,0,COMMERCIAL SUPPLIER
01-11-2022,Adults & Health,Look Ahead Housing and Care Ltd,Supported Other Accommodation - Private Contractors Payment,888.14,0,COMMERCIAL SUPPLIER
01-11-2022,Adults & Health,Look Ahead Housing and Care Ltd,Supported Other Accommodation - Private Contractors Payment,888.14,0,COMMERCIAL SUPPLIER
01-11-2022,Adults & Health,Look Ahead Housing and Care Ltd,Supported Other Accommodation - Private Contractors Payment,888.14,0,COMMERCIAL SUPPLIER
01-11-2022,Adults & Health,Look Ahead Housing and Care Ltd,Supported Other Accommodation - Private Contractors Payment,239.4,0,COMMERCIAL SUPPLIER
01-11-2022,Adults & Health,Look Ahead Housing and Care Ltd,Supported Other Accommodation - Private Contractors Payment,237,0,COMMERCIAL SUPPLIER
01-11-2022,Adults & Health,Look Ahead Housing and Care Ltd,Supported Other Accommodation - Private Contractors Payment,237,0,COMMERCIAL SUPPLIER
01-11-2022,Adults & Health,Look Ahead Housing and Care Ltd,Supported Other Accommodation - Private Contractors Payment,237,0,COMMERCIAL SUPPLIER
01-11-2022,Adults & Health,Look Ahead Housing and Care Ltd,Supported Other Accommodation - Private Contractors Payment,602.52,0,COMMERCIAL SUPPLIER
01-11-2022,Adults & Health,Look Ahead Housing and Care Ltd,Supported Other Accommodation - Private Contractors Payment,602.52,0,COMMERCIAL SUPPLIER
01-11-2022,Adults & Health,Look Ahead Housing and Care Ltd,Supported Other Accommodation - Private Contractors Payment,602.52,0,COMMERCIAL SUPPLIER
01-11-2022,Adults & Health,Look Ahead Housing and Care Ltd,Supported Other Accommodation - Private Contractors Payment,602.52,0,COMMERCIAL SUPPLIER
01-11-2022,Adults & Health,Look Ahead Housing and Care Ltd,Supported Other Accommodation - Private Contractors Payment,906.74,0,COMMERCIAL SUPPLIER
01-11-2022,Adults & Health,Look Ahead Housing and Care Ltd,Supported Other Accommodation - Private Contractors Payment,906.74,0,COMMERCIAL SUPPLIER
01-11-2022,Adults & Health,Look Ahead Housing and Care Ltd,Supported Other Accommodation - Private Contractors Payment,906.74,0,COMMERCIAL SUPPLIER
01-11-2022,Adults & Health,Look Ahead Housing and Care Ltd,Supported Other Accommodation - Private Contractors Payment,906.74,0,COMMERCIAL SUPPLIER
01-11-2022,Adults & Health,Look Ahead Housing and Care Ltd,Supported Other Accommodation - Private Contractors Payment,707.2,0,COMMERCIAL SUPPLIER
01-11-2022,Adults & Health,Look Ahead Housing and Care Ltd,Supported Other Accommodation - Private Contractors Payment,707.2,0,COMMERCIAL SUPPLIER
01-11-2022,Adults & Health,Look Ahead Housing and Care Ltd,Supported Other Accommodation - Private Contractors Payment,707.2,0,COMMERCIAL SUPPLIER
01-11-2022,Adults & Health,Look Ahead Housing and Care Ltd,Supported Other Accommodation - Private Contractors Payment,707.2,0,COMMERCIAL SUPPLIER
01-11-2022,Adults & Health,Look Ahead Housing and Care Ltd,Supported Other Accommodation - Private Contractors Payment,431.35,0,COMMERCIAL SUPPLIER
01-11-2022,Adults & Health,Look Ahead Housing and Care Ltd,Supported Other Accommodation - Private Contractors Payment,431.35,0,COMMERCIAL SUPPLIER
01-11-2022,Adults & Health,Look Ahead Housing and Care Ltd,Supported Other Accommodation - Private Contractors Payment,431.35,0,COMMERCIAL SUPPLIER
01-11-2022,Adults & Health,Look Ahead Housing and Care Ltd,Supported Other Accommodation - Private Contractors Payment,431.35,0,COMMERCIAL SUPPLIER
01-11-2022,Adults & Health,Look Ahead Housing and Care Ltd,Supported Other Accommodation - Private Contractors Payment,707.2,0,COMMERCIAL SUPPLIER
01-11-2022,Adults & Health,Look Ahead Housing and Care Ltd,Supported Other Accommodation - Private Contractors Payment,707.2,0,COMMERCIAL SUPPLIER
01-11-2022,Adults & Health,Look Ahead Housing and Care Ltd,Supported Other Accommodation - Private Contractors Payment,707.2,0,COMMERCIAL SUPPLIER
01-11-2022,Adults & Health,Look Ahead Housing and Care Ltd,Supported Other Accommodation - Private Contractors Payment,707.2,0,COMMERCIAL SUPPLIER
01-11-2022,Adults & Health,Look Ahead Housing and Care Ltd,Supported Other Accommodation - Private Contractors Payment,707.2,0,COMMERCIAL SUPPLIER
01-11-2022,Adults & Health,Look Ahead Housing and Care Ltd,Supported Other Accommodation - Private Contractors Payment,707.2,0,COMMERCIAL SUPPLIER
01-11-2022,Adults & Health,Look Ahead Housing and Care Ltd,Supported Other Accommodation - Private Contractors Payment,707.2,0,COMMERCIAL SUPPLIER
01-11-2022,Adults & Health,Look Ahead Housing and Care Ltd,Supported Other Accommodation - Private Contractors Payment,707.2,0,COMMERCIAL SUPPLIER
01-11-2022,Adults & Health,Look Ahead Housing and Care Ltd,Supported Other Accommodation - Private Contractors Payment,115.46,0,COMMERCIAL SUPPLIER
01-11-2022,Adults & Health,Look Ahead Housing and Care Ltd,Supported Other Accommodation - Private Contractors Payment,115.46,0,COMMERCIAL SUPPLIER
01-11-2022,Adults & Health,Look Ahead Housing and Care Ltd,Supported Other Accommodation - Private Contractors Payment,115.46,0,COMMERCIAL SUPPLIER
01-11-2022,Adults & Health,Look Ahead Housing and Care Ltd,Supported Other Accommodation - Private Contractors Payment,115.46,0,COMMERCIAL SUPPLIER
01-11-2022,Adults & Health,Look Ahead Housing and Care Ltd,Supported Other Accommodation - Private Contractors Payment,125.05,0,COMMERCIAL SUPPLIER
01-11-2022,Adults & Health,Look Ahead Housing and Care Ltd,Supported Other Accommodation - Private Contractors Payment,125.05,0,COMMERCIAL SUPPLIER
01-11-2022,Adults & Health,Look Ahead Housing and Care Ltd,Supported Other Accommodation - Private Contractors Payment,125.05,0,COMMERCIAL SUPPLIER
01-11-2022,Adults & Health,Look Ahead Housing and Care Ltd,Supported Other Accommodation - Private Contractors Payment,125.05,0,COMMERCIAL SUPPLIER
01-11-2022,Adults & Health,Look Ahead Housing and Care Ltd,Supported Other Accommodation - Private Contractors Payment,104.86,0,COMMERCIAL SUPPLIER
01-11-2022,Adults & Health,Look Ahead Housing and Care Ltd,Supported Other Accommodation - Private Contractors Payment,104.86,0,COMMERCIAL SUPPLIER
01-11-2022,Adults & Health,Look Ahead Housing and Care Ltd,Supported Other Accommodation - Private Contractors Payment,104.86,0,COMMERCIAL SUPPLIER
01-11-2022,Adults & Health,Look Ahead Housing and Care Ltd,Supported Other Accommodation - Private Contractors Payment,104.86,0,COMMERCIAL SUPPLIER
01-11-2022,Adults & Health,Look Ahead Housing and Care Ltd,Daycare - Private Contractors Payment,160,0,COMMERCIAL SUPPLIER
01-11-2022,Adults & Health,Look Ahead Housing and Care Ltd,Daycare - Private Contractors Payment,160,0,COMMERCIAL SUPPLIER
01-11-2022,Adults & Health,Look Ahead Housing and Care Ltd,Daycare - Private Contractors Payment,160,0,COMMERCIAL SUPPLIER
01-11-2022,Adults & Health,Look Ahead Housing and Care Ltd,Daycare - Private Contractors Payment,160,0,COMMERCIAL SUPPLIER
01-11-2022,Adults & Health,Look Ahead Housing and Care Ltd,Supported Other Accommodation - Private Contractors Payment,317.38,0,COMMERCIAL SUPPLIER
01-11-2022,Adults & Health,Look Ahead Housing and Care Ltd,Supported Other Accommodation - Private Contractors Payment,317.38,0,COMMERCIAL SUPPLIER
01-11-2022,Adults & Health,Look Ahead Housing and Care Ltd,Supported Other Accommodation - Private Contractors Payment,317.38,0,COMMERCIAL SUPPLIER
01-11-2022,Adults & Health,Look Ahead Housing and Care Ltd,Supported Other Accommodation - Private Contractors Payment,317.38,0,COMMERCIAL SUPPLIER
01-11-2022,Adults & Health,Look Ahead Housing and Care Ltd,Supported Other Accommodation - Private Contractors Payment,372.35,0,COMMERCIAL SUPPLIER
01-11-2022,Adults & Health,Look Ahead Housing and Care Ltd,Supported Other Accommodation - Private Contractors Payment,372.35,0,COMMERCIAL SUPPLIER
01-11-2022,Adults & Health,Look Ahead Housing and Care Ltd,Supported Other Accommodation - Private Contractors Payment,372.35,0,COMMERCIAL SUPPLIER
01-11-2022,Adults & Health,Look Ahead Housing and Care Ltd,Supported Other Accommodation - Private Contractors Payment,372.35,0,COMMERCIAL SUPPLIER
01-11-2022,Adults & Health,Look Ahead Housing and Care Ltd,Supported Other Accommodation - Private Contractors Payment,175.69,0,COMMERCIAL SUPPLIER
01-11-2022,Adults & Health,Look Ahead Housing and Care Ltd,Supported Other Accommodation - Private Contractors Payment,175.69,0,COMMERCIAL SUPPLIER
01-11-2022,Adults & Health,Look Ahead Housing and Care Ltd,Supported Other Accommodation - Private Contractors Payment,175.69,0,COMMERCIAL SUPPLIER
01-11-2022,Adults & Health,Look Ahead Housing and Care Ltd,Supported Other Accommodation - Private Contractors Payment,175.69,0,COMMERCIAL SUPPLIER
01-11-2022,Adults & Health,Look Ahead Housing and Care Ltd,Supported Other Accommodation - Private Contractors Payment,842.55,0,COMMERCIAL SUPPLIER
01-11-2022,Adults & Health,Look Ahead Housing and Care Ltd,Supported Other Accommodation - Private Contractors Payment,842.55,0,COMMERCIAL SUPPLIER
01-11-2022,Adults & Health,Look Ahead Housing and Care Ltd,Supported Other Accommodation - Private Contractors Payment,842.55,0,COMMERCIAL SUPPLIER
01-11-2022,Adults & Health,Look Ahead Housing and Care Ltd,Supported Other Accommodation - Private Contractors Payment,842.55,0,COMMERCIAL SUPPLIER
01-11-2022,Adults & Health,Look Ahead Housing and Care Ltd,Supported Other Accommodation - Private Contractors Payment,853.83,0,COMMERCIAL SUPPLIER
01-11-2022,Adults & Health,Look Ahead Housing and Care Ltd,Supported Other Accommodation - Private Contractors Payment,853.83,0,COMMERCIAL SUPPLIER
01-11-2022,Adults & Health,Look Ahead Housing and Care Ltd,Supported Other Accommodation - Private Contractors Payment,853.83,0,COMMERCIAL SUPPLIER
01-11-2022,Adults & Health,Look Ahead Housing and Care Ltd,Supported Other Accommodation - Private Contractors Payment,853.83,0,COMMERCIAL SUPPLIER
01-11-2022,Adults & Health,Look Ahead Housing and Care Ltd,Supported Other Accommodation - Private Contractors Payment,842.55,0,COMMERCIAL SUPPLIER
01-11-2022,Adults & Health,Look Ahead Housing and Care Ltd,Supported Other Accommodation - Private Contractors Payment,842.55,0,COMMERCIAL SUPPLIER
01-11-2022,Adults & Health,Look Ahead Housing and Care Ltd,Supported Other Accommodation - Private Contractors Payment,842.55,0,COMMERCIAL SUPPLIER
01-11-2022,Adults & Health,Look Ahead Housing and Care Ltd,Supported Other Accommodation - Private Contractors Payment,842.55,0,COMMERCIAL SUPPLIER
01-11-2022,Adults & Health,Look Ahead Housing and Care Ltd,Supported Other Accommodation - Private Contractors Payment,842.55,0,COMMERCIAL SUPPLIER
